Workbook

Sheet Main
B10: 2018-10-08
B12: Sheet No. | C12: Template Name | D12: Summary
B13: 1 | C13: Future Intra | D13: For Intraday trading in F&O segment
B14: 2 | C14: Cash Intra | D14: For Intraday trading in cash market segment
B15: 3 | C15: Mid-cap Intra | D15: For Intraday trading in Mid-cap stocks
B16: 4 | C16: Bulk Deals | D16: Reveals Bulk Deals carried on NSE & BSE
B17: 5 | C17: Call Tracker

Sheet Future Intra
M5: Back to Main Page
A6: FOR INTRA DAY TRADING | L6: =Main!B10 -> 2018-10-08
A9: Sr.no | B9: Sector | C9: Scrip | D9: CLOSE RATE | E9: Pivot Point | F9: Supports | I9: Resistances
B10: Sector | D10: Point | E10: Point | F10: S1 | G10: S2 | H10: S3 | I10: R1 | J10: R2 | K10: R3 | L10: HIGH | M10: LOW | N10: OI | O10: % Change in OI
A11: 1 | B11: Index | C11: BANKNIFTY | D11: 24519.70 | E11: 24647.37 | F11: 24144.73 | G11: 23769.77 | H11: 23267.13 | I11: 25022.33 | J11: 25524.97 | K11: 25899.93 | L11: 25150 | M11: 24272.4 | N11: 1565880 | O11: -7.45%
A12: 2 | B12: Index | C12: NIFTY | D12: 10347.15 | E12: 10409.35 | F12: 10229.80 | G12: 10112.45 | H12: 9932.90 | I12: 10526.70 | J12: 10706.25 | K12: 10823.60 | L12: 10588.9 | M12: 10292 | N12: 21897975 | O12: 9.41%
A13: 3 | B13: Index | C13: NIFTYCPSE | D13: 2315.55 | E13: 771.85 | F13: 1543.70 | G13: 771.85 | H13: 1543.70 | I13: 1543.70 | J13: 771.85 | K13: 1543.70 | L13: 0 | M13: 0 | N13: 0 | O13: 0.00%
A14: 4 | B14: Index | C14: NIFTYINFRA | D14: 3177.55 | E14: 1059.18 | F14: 2118.37 | G14: 1059.18 | H14: 2118.37 | I14: 2118.37 | J14: 1059.18 | K14: 2118.37 | L14: 0 | M14: 0 | N14: 0 | O14: 0.00%
A15: 5 | B15: Index | C15: NIFTYIT | D15: 15656.00 | E15: 15555.33 | F15: 15343.67 | G15: 15031.33 | H15: 14819.67 | I15: 15867.67 | J15: 16079.33 | K15: 16391.67 | L15: 15767 | M15: 15243 | N15: 38750 | O15: -1.40%
A16: 6 | B16: Index | C16: NIFTYMID50 | D16: 4539.25 | E16: 4509.50 | F16: 4479.75 | G16: 4420.25 | H16: 4390.50 | I16: 4569.00 | J16: 4598.75 | K16: 4658.25 | L16: 4539.25 | M16: 4450 | N16: 725890 | O16: -4.65%
A17: 7 | B17: Index | C17: NIFTYPSE | D17: 3599.05 | E17: 1199.68 | F17: 2399.37 | G17: 1199.68 | H17: 2399.37 | I17: 2399.37 | J17: 1199.68 | K17: 2399.37 | L17: 0 | M17: 0 | N17: 0 | O17: 0.00%
A18: 8 | B18: Cement | C18: ACC | D18: 1478.70 | E18: 1489.58 | F18: 1459.92 | G18: 1441.13 | H18: 1411.47 | I18: 1508.37 | J18: 1538.03 | K18: 1556.82 | L18: 1519.25 | M18: 1470.8 | N18: 1320800 | O18: -1.43%
A19: 9 | B19: Others | C19: ADANIENT | D19: 130.20 | E19: 131.75 | F19: 127.00 | G19: 123.80 | H19: 119.05 | I19: 134.95 | J19: 139.70 | K19: 142.90 | L19: 136.5 | M19: 128.55 | N19: 39156000 | O19: -0.09%
A20: 10 | B20: Others | C20: ADANIPORTS | D20: 302.80 | E20: 307.15 | F20: 295.70 | G20: 288.60 | H20: 277.15 | I20: 314.25 | J20: 325.70 | K20: 332.80 | L20: 318.6 | M20: 300.05 | N20: 11650000 | O20: 11.08%
A21: 11 | B21: Power | C21: ADANIPOWER | D21: 23.55 | E21: 23.87 | F21: 22.78 | G21: 22.02 | H21: 20.93 | I21: 24.63 | J21: 25.72 | K21: 26.48 | L21: 24.95 | M21: 23.1 | N21: 160660000 | O21: 0.96%
A22: 12 | B22: Pharma | C22: AJANTPHARM | D22: 1020.25 | E22: 1021.75 | F22: 1007.40 | G22: 994.55 | H22: 980.20 | I22: 1034.60 | J22: 1048.95 | K22: 1061.80 | L22: 1036.1 | M22: 1008.9 | N22: 605500 | O22: -4.27%
A23: 13 | B23: Banking | C23: ALBK | D23: 34.75 | E23: 34.92 | F23: 33.73 | G23: 32.72 | H23: 31.53 | I23: 35.93 | J23: 37.12 | K23: 38.13 | L23: 36.1 | M23: 33.9 | N23: 18425000 | O23: 1.95%
A24: 14 | B24: Automobile | C24: AMARAJABAT | D24: 718.10 | E24: 722.73 | F24: 705.47 | G24: 692.83 | H24: 675.57 | I24: 735.37 | J24: 752.63 | K24: 765.27 | L24: 740 | M24: 710.1 | N24: 1029700 | O24: 1.38%
A25: 15 | B25: Cement | C25: AMBUJACEM | D25: 209.15 | E25: 210.50 | F25: 206.25 | G25: 203.35 | H25: 199.10 | I25: 213.40 | J25: 217.65 | K25: 220.55 | L25: 214.75 | M25: 207.6 | N25: 13065000 | O25: -2.41%
A26: 17 | B26: Others | C26: APOLLOHOSP | D26: 1059.90 | E26: 1057.97 | F26: 1037.93 | G26: 1015.97 | H26: 995.93 | I26: 1079.93 | J26: 1099.97 | K26: 1121.93 | L26: 1078 | M26: 1036 | N26: 1118000 | O26: 0.54%
A27: 18 | B27: Automobile | C27: APOLLOTYRE | D27: 198.00 | E27: 199.12 | F27: 193.33 | G27: 188.67 | H27: 182.88 | I27: 203.78 | J27: 209.57 | K27: 214.23 | L27: 204.9 | M27: 194.45 | N27: 11679000 | O27: -3.66%
A28: 19 | B28: Textile | C28: ARVIND | D28: 314.20 | E28: 315.88 | F28: 308.02 | G28: 301.83 | H28: 293.97 | I28: 322.07 | J28: 329.93 | K28: 336.12 | L28: 323.75 | M28: 309.7 | N28: 7418000 | O28: -3.46%
A29: 20 | B29: Automobile | C29: ASHOKLEY | D29: 108.05 | E29: 110.25 | F29: 102.40 | G29: 96.75 | H29: 88.90 | I29: 115.90 | J29: 123.75 | K29: 129.40 | L29: 118.1 | M29: 104.6 | N29: 57756000 | O29: 5.49%
A30: 21 | B30: FMCG | C30: ASIANPAINT | D30: 1213.05 | E30: 1220.37 | F30: 1193.73 | G30: 1174.42 | H30: 1147.78 | I30: 1239.68 | J30: 1266.32 | K30: 1285.63 | L30: 1247 | M30: 1201.05 | N30: 5090400 | O30: -0.71%
A31: 22 | B31: Pharma | C31: AUROPHARMA | D31: 744.20 | E31: 749.15 | F31: 732.05 | G31: 719.90 | H31: 702.80 | I31: 761.30 | J31: 778.40 | K31: 790.55 | L31: 766.25 | M31: 737 | N31: 20763000 | O31: -0.42%
A32: 23 | B32: Banking | C32: AXISBANK | D32: 571.30 | E32: 577.45 | F32: 561.45 | G32: 551.60 | H32: 535.60 | I32: 587.30 | J32: 603.30 | K32: 613.15 | L32: 593.45 | M32: 567.6 | N32: 36867600 | O32: -1.59%
A33: 24 | B33: Automobile | C33: BAJAJ-AUTO | D33: 2543.05 | E33: 2569.20 | F33: 2489.85 | G33: 2436.65 | H33: 2357.30 | I33: 2622.40 | J33: 2701.75 | K33: 2754.95 | L33: 2648.55 | M33: 2516 | N33: 2691750 | O33: -1.04%
A34: 25 | B34: Others | C34: BAJAJFINSV | D34: 5384.10 | E34: 5460.70 | F34: 5177.40 | G34: 4970.70 | H34: 4687.40 | I34: 5667.40 | J34: 5950.70 | K34: 6157.40 | L34: 5744 | M34: 5254 | N34: 767000 | O34: 1.09%
A35: 26 | B35: Finance | C35: BAJFINANCE | D35: 2040.30 | E35: 2078.10 | F35: 1934.20 | G35: 1828.10 | H35: 1684.20 | I35: 2184.20 | J35: 2328.10 | K35: 2434.20 | L35: 2222 | M35: 1972 | N35: 7833000 | O35: 6.54%
A36: 27 | B36: Others | C36: BALKRISIND | D36: 1007.15 | E36: 1022.05 | F36: 984.85 | G36: 962.55 | H36: 925.35 | I36: 1044.35 | J36: 1081.55 | K36: 1103.85 | L36: 1059.25 | M36: 999.75 | N36: 2143200 | O36: 7.63%
A37: 29 | B37: Banking | C37: BANKBARODA | D37: 99.35 | E37: 100.68 | F37: 96.67 | G37: 93.98 | H37: 89.97 | I37: 103.37 | J37: 107.38 | K37: 110.07 | L37: 104.7 | M37: 98 | N37: 76248000 | O37: 0.17%
A38: 30 | B38: Banking | C38: BANKINDIA | D38: 77.00 | E38: 77.68 | F38: 74.97 | G38: 72.93 | H38: 70.22 | I38: 79.72 | J38: 82.43 | K38: 84.47 | L38: 80.4 | M38: 75.65 | N38: 20124000 | O38: -6.34%
A39: 31 | B39: FMCG | C39: BATAINDIA | D39: 862.10 | E39: 866.35 | F39: 852.70 | G39: 843.30 | H39: 829.65 | I39: 875.75 | J39: 889.40 | K39: 898.80 | L39: 880 | M39: 856.95 | N39: 1739100 | O39: -4.36%
A40: 32 | B40: Capital_Goods | C40: BEL | D40: 80.55 | E40: 81.15 | F40: 78.95 | G40: 77.35 | H40: 75.15 | I40: 82.75 | J40: 84.95 | K40: 86.55 | L40: 83.35 | M40: 79.55 | N40: 33397650 | O40: -2.39%
A41: 33 | B41: Infrastructure | C41: BEML | D41: 578.70 | E41: 588.43 | F41: 548.97 | G41: 519.23 | H41: 479.77 | I41: 618.17 | J41: 657.63 | K41: 687.37 | L41: 627.9 | M41: 558.7 | N41: 1631500 | O41: -0.79%
A42: 34 | B42: Others | C42: BERGEPAINT | D42: 266.20 | E42: 268.23 | F42: 262.22 | G42: 258.23 | H42: 252.22 | I42: 272.22 | J42: 278.23 | K42: 282.22 | L42: 274.25 | M42: 264.25 | N42: 1896400 | O42: 0.47%
A43: 35 | B43: Finance | C43: BHARATFIN | D43: 1000.15 | E43: 1002.95 | F43: 984.55 | G43: 968.95 | H43: 950.55 | I43: 1018.55 | J43: 1036.95 | K43: 1052.55 | L43: 1021.35 | M43: 987.35 | N43: 4713000 | O43: 0.80%
A44: 36 | B44: Automobile | C44: BHARATFORG | D44: 577.60 | E44: 583.28 | F44: 568.32 | G44: 559.03 | H44: 544.07 | I44: 592.57 | J44: 607.53 | K44: 616.82 | L44: 598.25 | M44: 574 | N44: 7621200 | O44: -0.66%
A45: 37 | B45: Telecom | C45: BHARTIARTL | D45: 298.60 | E45: 303.32 | F45: 288.73 | G45: 278.87 | H45: 264.28 | I45: 313.18 | J45: 327.77 | K45: 337.63 | L45: 317.9 | M45: 293.45 | N45: 49585600 | O45: -0.87%
A46: 38 | B46: Capital_Goods | C46: BHEL | D46: 70.50 | E46: 71.50 | F46: 68.85 | G46: 67.20 | H46: 64.55 | I46: 73.15 | J46: 75.80 | K46: 77.45 | L46: 74.15 | M46: 69.85 | N46: 36667500 | O46: 1.96%
A47: 39 | B47: Pharma | C47: BIOCON | D47: 614.60 | E47: 620.80 | F47: 601.50 | G47: 588.40 | H47: 569.10 | I47: 633.90 | J47: 653.20 | K47: 666.30 | L47: 640.1 | M47: 607.7 | N47: 7576200 | O47: 4.94%
A48: 40 | B48: Automobile | C48: BOSCHLTD | D48: 18845.95 | E48: 18930.83 | F48: 18626.17 | G48: 18406.38 | H48: 18101.72 | I48: 19150.62 | J48: 19455.28 | K48: 19675.07 | L48: 19235.5 | M48: 18711.05 | N48: 115830 | O48: -0.85%
A49: 41 | B49: Oil_Gas | C49: BPCL | D49: 265.30 | E49: 264.83 | F49: 239.67 | G49: 214.03 | H49: 188.87 | I49: 290.47 | J49: 315.63 | K49: 341.27 | L49: 290 | M49: 239.2 | N49: 12421800 | O49: 18.88%
A50: 42 | B50: FMCG | C50: BRITANNIA | D50: 5448.10 | E50: 5488.85 | F50: 5357.70 | G50: 5267.30 | H50: 5136.15 | I50: 5579.25 | J50: 5710.40 | K50: 5800.80 | L50: 5620 | M50: 5398.45 | N50: 1381400 | O50: 1.08%
A51: 43 | B51: Pharma | C51: CADILAHC | D51: 379.40 | E51: 382.52 | F51: 374.38 | G51: 369.37 | H51: 361.23 | I51: 387.53 | J51: 395.67 | K51: 400.68 | L51: 390.65 | M51: 377.5 | N51: 9779200 | O51: -3.78%
A52: 44 | B52: Banking | C52: CANBK | D52: 219.75 | E52: 222.73 | F52: 213.27 | G52: 206.78 | H52: 197.32 | I52: 229.22 | J52: 238.68 | K52: 245.17 | L52: 232.2 | M52: 216.25 | N52: 8750000 | O52: 5.68%
A53: 45 | B53: Others | C53: CANFINHOME | D53: 237.55 | E53: 241.08 | F53: 228.47 | G53: 219.38 | H53: 206.77 | I53: 250.17 | J53: 262.78 | K53: 271.87 | L53: 253.7 | M53: 232 | N53: 5300000 | O53: -2.62%
A54: 46 | B54: Finance | C54: CAPF | D54: 477.20 | E54: 480.33 | F54: 463.22 | G54: 449.23 | H54: 432.12 | I54: 494.32 | J54: 511.43 | K54: 525.42 | L54: 497.45 | M54: 466.35 | N54: 6124000 | O54: 1.73%
A55: 47 | B55: Oil_Gas | C55: CASTROLIND | D55: 136.00 | E55: 137.58 | F55: 133.42 | G55: 130.83 | H55: 126.67 | I55: 140.17 | J55: 144.33 | K55: 146.92 | L55: 141.75 | M55: 135 | N55: 9522800 | O55: -0.32%
A56: 48 | B56: Automobile | C56: CEATLTD | D56: 1046.55 | E56: 1052.88 | F56: 1016.77 | G56: 986.98 | H56: 950.87 | I56: 1082.67 | J56: 1118.78 | K56: 1148.57 | L56: 1089 | M56: 1023.1 | N56: 1058400 | O56: -3.20%
A57: 49 | B57: Textile | C57: CENTURYTEX | D57: 766.15 | E57: 775.80 | F57: 747.60 | G57: 729.05 | H57: 700.85 | I57: 794.35 | J57: 822.55 | K57: 841.10 | L57: 804 | M57: 757.25 | N57: 6635750 | O57: 0.31%
A58: 50 | B58: Power | C58: CESC | D58: 826.65 | E58: 834.40 | F58: 811.40 | G58: 796.15 | H58: 773.15 | I58: 849.65 | J58: 872.65 | K58: 887.90 | L58: 857.4 | M58: 819.15 | N58: 5921300 | O58: 1.31%
A59: 51 | B59: Power | C59: CGPOWER | D59: 41.50 | E59: 42.07 | F59: 39.43 | G59: 37.37 | H59: 34.73 | I59: 44.13 | J59: 46.77 | K59: 48.83 | L59: 44.7 | M59: 40 | N59: 34512000 | O59: -1.17%
A60: 52 | B60: Others | C60: CHENNPETRO | D60: 255.95 | E60: 259.92 | F60: 248.43 | G60: 240.92 | H60: 229.43 | I60: 267.43 | J60: 278.92 | K60: 286.43 | L60: 271.4 | M60: 252.4 | N60: 891000 | O60: -18.18%
A61: 53 | B61: Others | C61: CHOLAFIN | D61: 1119.95 | E61: 1131.57 | F61: 1075.13 | G61: 1030.32 | H61: 973.88 | I61: 1176.38 | J61: 1232.82 | K61: 1277.63 | L61: 1188 | M61: 1086.75 | N61: 839500 | O61: -1.18%
A62: 54 | B62: Pharma | C62: CIPLA | D62: 636.95 | E62: 639.13 | F62: 629.82 | G62: 622.68 | H62: 613.37 | I62: 646.27 | J62: 655.58 | K62: 662.72 | L62: 648.45 | M62: 632 | N62: 10242000 | O62: -2.31%
A63: 55 | B63: Others | C63: COALINDIA | D63: 263.60 | E63: 267.47 | F63: 258.48 | G63: 253.37 | H63: 244.38 | I63: 272.58 | J63: 281.57 | K63: 286.68 | L63: 276.45 | M63: 262.35 | N63: 18383200 | O63: 1.00%
A64: 56 | B64: FMCG | C64: COLPAL | D64: 1064.10 | E64: 1064.37 | F64: 1054.78 | G64: 1045.47 | H64: 1035.88 | I64: 1073.68 | J64: 1083.27 | K64: 1092.58 | L64: 1073.95 | M64: 1055.05 | N64: 1587600 | O64: -0.74%
A65: 57 | B65: Others | C65: CONCOR | D65: 606.55 | E65: 602.47 | F65: 586.73 | G65: 566.92 | H65: 551.18 | I65: 622.28 | J65: 638.02 | K65: 657.83 | L65: 618.2 | M65: 582.65 | N65: 2746250 | O65: 5.42%
A66: 58 | B66: Capital_Goods | C66: CUMMINSIND | D66: 661.30 | E66: 665.38 | F66: 652.07 | G66: 642.83 | H66: 629.52 | I66: 674.62 | J66: 687.93 | K66: 697.17 | L66: 678.7 | M66: 656.15 | N66: 1176000 | O66: 0.78%
A67: 59 | B67: FMCG | C67: DABUR | D67: 420.20 | E67: 417.43 | F67: 409.27 | G67: 398.33 | H67: 390.17 | I67: 428.37 | J67: 436.53 | K67: 447.47 | L67: 425.6 | M67: 406.5 | N67: 16070000 | O67: 0.44%
A68: 60 | B68: Cement | C68: DALMIABHA | D68: 2108.65 | E68: 2125.88 | F68: 2072.77 | G68: 2036.88 | H68: 1983.77 | I68: 2161.77 | J68: 2214.88 | K68: 2250.77 | L68: 2179 | M68: 2090 | N68: 427500 | O68: -1.38%
A69: 61 | B69: Banking | C69: DCBBANK | D69: 140.35 | E69: 141.37 | F69: 135.93 | G69: 131.52 | H69: 126.08 | I69: 145.78 | J69: 151.22 | K69: 155.63 | L69: 146.8 | M69: 136.95 | N69: 6129000 | O69: 2.56%
A70: 62 | B70: Finance | C70: DHFL | D70: 274.45 | E70: 279.67 | F70: 252.78 | G70: 231.12 | H70: 204.23 | I70: 301.33 | J70: 328.22 | K70: 349.88 | L70: 306.55 | M70: 258 | N70: 11292000 | O70: -15.19%
A71: 63 | B71: Media | C71: DISHTV | D71: 52.15 | E71: 52.95 | F71: 50.00 | G71: 47.85 | H71: 44.90 | I71: 55.10 | J71: 58.05 | K71: 60.20 | L71: 55.9 | M71: 50.8 | N71: 37832000 | O71: 4.19%
A72: 64 | B72: Pharma | C72: DIVISLAB | D72: 1286.30 | E72: 1292.47 | F72: 1265.08 | G72: 1243.87 | H72: 1216.48 | I72: 1313.68 | J72: 1341.07 | K72: 1362.28 | L72: 1319.85 | M72: 1271.25 | N72: 2716000 | O72: -0.26%
A73: 65 | B73: Realty | C73: DLF | D73: 149.40 | E73: 153.10 | F73: 141.60 | G73: 133.80 | H73: 122.30 | I73: 160.90 | J73: 172.40 | K73: 180.20 | L73: 164.6 | M73: 145.3 | N73: 33375000 | O73: -1.56%
A74: 66 | B74: Pharma | C74: DRREDDY | D74: 2402.00 | E74: 2401.95 | F74: 2363.90 | G74: 2325.80 | H74: 2287.75 | I74: 2440.05 | J74: 2478.10 | K74: 2516.20 | L74: 2440 | M74: 2363.85 | N74: 4196250 | O74: -0.46%
A75: 67 | B75: Automobile | C75: EICHERMOT | D75: 21248.50 | E75: 21700.60 | F75: 20631.25 | G75: 20014.00 | H75: 18944.65 | I75: 22317.85 | J75: 23387.20 | K75: 24004.45 | L75: 22769.95 | M75: 21083.35 | N75: 305925 | O75: -0.44%
A76: 68 | B76: Infrastructure | C76: ENGINERSIN | D76: 102.95 | E76: 105.55 | F76: 99.40 | G76: 95.85 | H76: 89.70 | I76: 109.10 | J76: 115.25 | K76: 118.80 | L76: 111.7 | M76: 102 | N76: 10304000 | O76: -4.69%
A77: 69 | B77: Finance | C77: EQUITAS | D77: 112.30 | E77: 113.92 | F77: 108.43 | G77: 104.57 | H77: 99.08 | I77: 117.78 | J77: 123.27 | K77: 127.13 | L77: 119.4 | M77: 110.05 | N77: 14784000 | O77: -4.42%
A78: 70 | B78: Automobile | C78: ESCORTS | D78: 586.25 | E78: 595.22 | F78: 569.53 | G78: 552.82 | H78: 527.13 | I78: 611.93 | J78: 637.62 | K78: 654.33 | L78: 620.9 | M78: 578.5 | N78: 5452700 | O78: -0.08%
A79: 71 | B79: Automobile | C79: EXIDEIND | D79: 249.05 | E79: 250.10 | F79: 245.50 | G79: 241.95 | H79: 237.35 | I79: 253.65 | J79: 258.25 | K79: 261.80 | L79: 254.7 | M79: 246.55 | N79: 5560000 | O79: -1.97%
A80: 72 | B80: Banking | C80: FEDERALBNK | D80: 68.30 | E80: 68.55 | F80: 66.95 | G80: 65.60 | H80: 64.00 | I80: 69.90 | J80: 71.50 | K80: 72.85 | L80: 70.15 | M80: 67.2 | N80: 47146000 | O80: -4.06%
A81: 73 | B81: Oil_Gas | C81: GAIL | D81: 333.80 | E81: 331.20 | F81: 312.60 | G81: 291.40 | H81: 272.80 | I81: 352.40 | J81: 371.00 | K81: 392.20 | L81: 349.8 | M81: 310 | N81: 19850481 | O81: 11.14%
A82: 74 | B82: Pharma | C82: GLENMARK | D82: 589.50 | E82: 596.40 | F82: 578.20 | G82: 566.90 | H82: 548.70 | I82: 607.70 | J82: 625.90 | K82: 637.20 | L82: 614.6 | M82: 585.1 | N82: 3900000 | O82: 2.52%
A83: 75 | B83: Infrastructure | C83: GMRINFRA | D83: 15.90 | E83: 16.08 | F83: 15.47 | G83: 15.03 | H83: 14.42 | I83: 16.52 | J83: 17.13 | K83: 17.57 | L83: 16.7 | M83: 15.65 | N83: 189810000 | O83: 0.62%
A84: 76 | B84: Others | C84: GODFRYPHLP | D84: 683.45 | E84: 690.60 | F84: 667.85 | G84: 652.25 | H84: 629.50 | I84: 706.20 | J84: 728.95 | K84: 744.55 | L84: 713.35 | M84: 675 | N84: 589400 | O84: -6.03%
A85: 77 | B85: FMCG | C85: GODREJCP | D85: 705.35 | E85: 701.47 | F85: 687.93 | G85: 670.52 | H85: 656.98 | I85: 718.88 | J85: 732.42 | K85: 749.83 | L85: 715 | M85: 684.05 | N85: 4692000 | O85: 4.24%
A86: 78 | B86: FMCG | C86: GODREJIND | D86: 473.85 | E86: 477.40 | F86: 466.80 | G86: 459.75 | H86: 449.15 | I86: 484.45 | J86: 495.05 | K86: 502.10 | L86: 488 | M86: 470.35 | N86: 2131500 | O86: 0.35%
A87: 79 | B87: Pharma | C87: GRANULES | D87: 94.15 | E87: 93.90 | F87: 91.40 | G87: 88.65 | H87: 86.15 | I87: 96.65 | J87: 99.15 | K87: 101.90 | L87: 96.4 | M87: 91.15 | N87: 14475000 | O87: 2.41%
A88: 80 | B88: Cement | C88: GRASIM | D88: 925.50 | E88: 938.13 | F88: 908.37 | G88: 891.23 | H88: 861.47 | I88: 955.27 | J88: 985.03 | K88: 1002.17 | L88: 967.9 | M88: 921 | N88: 3762750 | O88: -0.02%
A89: 81 | B89: Others | C89: GSFC | D89: 93.65 | E89: 93.85 | F89: 91.50 | G89: 89.35 | H89: 87.00 | I89: 96.00 | J89: 98.35 | K89: 100.50 | L89: 96.2 | M89: 91.7 | N89: 13522500 | O89: -0.10%
A90: 82 | B90: Others | C90: HAVELLS | D90: 595.05 | E90: 596.72 | F90: 586.93 | G90: 578.82 | H90: 569.03 | I90: 604.83 | J90: 614.62 | K90: 622.73 | L90: 606.5 | M90: 588.6 | N90: 4173000 | O90: 1.02%
A91: 83 | B91: Others | C91: HCC | D91: 11.15 | E91: 11.23 | F91: 10.77 | G91: 10.38 | H91: 9.92 | I91: 11.62 | J91: 12.08 | K91: 12.47 | L91: 11.7 | M91: 10.85 | N91: 36378000 | O91: -1.32%
A92: 84 | B92: Technology | C92: HCLTECH | D92: 1089.60 | E92: 1088.23 | F92: 1075.02 | G92: 1060.43 | H92: 1047.22 | I92: 1102.82 | J92: 1116.03 | K92: 1130.62 | L92: 1101.45 | M92: 1073.65 | N92: 7177800 | O92: -1.94%
A93: 85 | B93: Finance | C93: HDFC | D93: 1719.30 | E93: 1732.08 | F93: 1679.67 | G93: 1640.03 | H93: 1587.62 | I93: 1771.72 | J93: 1824.13 | K93: 1863.77 | L93: 1784.5 | M93: 1692.45 | N93: 26764500 | O93: 4.38%
A94: 86 | B94: Banking | C94: HDFCBANK | D94: 1965.85 | E94: 1970.50 | F94: 1946.60 | G94: 1927.35 | H94: 1903.45 | I94: 1989.75 | J94: 2013.65 | K94: 2032.90 | L94: 1994.4 | M94: 1951.25 | N94: 12601500 | O94: -6.37%
A95: 88 | B95: Automobile | C95: HEROMOTOCO | D95: 2743.55 | E95: 2746.92 | F95: 2700.68 | G95: 2657.82 | H95: 2611.58 | I95: 2789.78 | J95: 2836.02 | K95: 2878.88 | L95: 2793.15 | M95: 2704.05 | N95: 1425600 | O95: -1.03%
A96: 89 | B96: Technology | C96: HEXAWARE | D96: 411.35 | E96: 406.28 | F96: 396.87 | G96: 382.38 | H96: 372.97 | I96: 420.77 | J96: 430.18 | K96: 444.67 | L96: 415.7 | M96: 391.8 | N96: 4657500 | O96: 8.11%
A97: 90 | B97: Metals | C97: HINDALCO | D97: 241.45 | E97: 243.55 | F97: 237.10 | G97: 232.75 | H97: 226.30 | I97: 247.90 | J97: 254.35 | K97: 258.70 | L97: 250 | M97: 239.2 | N97: 38118500 | O97: -4.48%
A98: 91 | B98: Oil_Gas | C98: HINDPETRO | D98: 164.90 | E98: 171.85 | F98: 151.55 | G98: 138.20 | H98: 117.90 | I98: 185.20 | J98: 205.50 | K98: 218.85 | L98: 192.15 | M98: 158.5 | N98: 30165975 | O98: 16.94%
A99: 92 | B99: FMCG | C99: HINDUNILVR | D99: 1552.90 | E99: 1550.00 | F99: 1527.15 | G99: 1501.40 | H99: 1478.55 | I99: 1575.75 | J99: 1598.60 | K99: 1624.35 | L99: 1572.85 | M99: 1524.25 | N99: 9436200 | O99: 3.64%
A100: 93 | B100: Metals | C100: HINDZINC | D100: 279.95 | E100: 282.28 | F100: 275.27 | G100: 270.58 | H100: 263.57 | I100: 286.97 | J100: 293.98 | K100: 298.67 | L100: 289.3 | M100: 277.6 | N100: 7712000 | O100: -3.45%
A101: 94 | B101: Finance | C101: IBULHSGFIN | D101: 913.80 | E101: 932.57 | F101: 872.33 | G101: 830.87 | H101: 770.63 | I101: 974.03 | J101: 1034.27 | K101: 1075.73 | L101: 992.8 | M101: 891.1 | N101: 15694000 | O101: 6.51%
A102: 95 | B102: Banking | C102: ICICIBANK | D102: 307.10 | E102: 309.72 | F102: 297.43 | G102: 287.77 | H102: 275.48 | I102: 319.38 | J102: 331.67 | K102: 341.33 | L102: 322 | M102: 300.05 | N102: 98219000 | O102: -7.15%
A103: 96 | B103: Others | C103: ICICIPRULI | D103: 321.65 | E103: 320.90 | F103: 316.10 | G103: 310.55 | H103: 305.75 | I103: 326.45 | J103: 331.25 | K103: 336.80 | L103: 325.7 | M103: 315.35 | N103: 4444700 | O103: -5.53%
A104: 97 | B104: Banking | C104: IDBI | D104: 57.45 | E104: 57.72 | F104: 56.03 | G104: 54.62 | H104: 52.93 | I104: 59.13 | J104: 60.82 | K104: 62.23 | L104: 59.4 | M104: 56.3 | N104: 50610000 | O104: -5.56%
A105: 98 | B105: Telecom | C105: IDEA | D105: 33.75 | E105: 33.90 | F105: 32.95 | G105: 32.15 | H105: 31.20 | I105: 34.70 | J105: 35.65 | K105: 36.45 | L105: 34.85 | M105: 33.1 | N105: 150171000 | O105: -3.00%
A106: 99 | B106: Finance | C106: IDFC | D106: 38.50 | E106: 38.93 | F106: 37.37 | G106: 36.23 | H106: 34.67 | I106: 40.07 | J106: 41.63 | K106: 42.77 | L106: 40.5 | M106: 37.8 | N106: 117559200 | O106: 0.23%
A107: 100 | B107: Banking | C107: IDFCBANK | D107: 35.40 | E107: 35.68 | F107: 34.47 | G107: 33.53 | H107: 32.32 | I107: 36.62 | J107: 37.83 | K107: 38.77 | L107: 36.9 | M107: 34.75 | N107: 122815000 | O107: 0.89%
A108: 101 | B108: Finance | C108: IFCI | D108: 12.30 | E108: 12.38 | F108: 12.07 | G108: 11.83 | H108: 11.52 | I108: 12.62 | J108: 12.93 | K108: 13.17 | L108: 12.7 | M108: 12.15 | N108: 57900000 | O108: -1.24%
A109: 102 | B109: Oil_Gas | C109: IGL | D109: 223.35 | E109: 224.67 | F109: 217.28 | G109: 211.22 | H109: 203.83 | I109: 230.73 | J109: 238.12 | K109: 244.18 | L109: 232.05 | M109: 218.6 | N109: 4226750 | O109: 3.64%
A110: 103 | B110: Cement | C110: INDIACEM | D110: 95.90 | E110: 97.15 | F110: 93.05 | G110: 90.20 | H110: 86.10 | I110: 100.00 | J110: 104.10 | K110: 106.95 | L110: 101.25 | M110: 94.3 | N110: 18032000 | O110: -0.14%
A111: 104 | B111: Banking | C111: INDIANB | D111: 230.25 | E111: 236.60 | F111: 221.80 | G111: 213.35 | H111: 198.55 | I111: 245.05 | J111: 259.85 | K111: 268.30 | L111: 251.4 | M111: 228.15 | N111: 4882000 | O111: 1.12%
A112: 105 | B112: Others | C112: INDIGO | D112: 768.10 | E112: 780.23 | F112: 745.47 | G112: 722.83 | H112: 688.07 | I112: 802.87 | J112: 837.63 | K112: 860.27 | L112: 815 | M112: 757.6 | N112: 3276600 | O112: -1.43%
A113: 106 | B113: Banking | C113: INDUSINDBK | D113: 1607.80 | E113: 1610.75 | F113: 1578.10 | G113: 1548.40 | H113: 1515.75 | I113: 1640.45 | J113: 1673.10 | K113: 1702.80 | L113: 1643.4 | M113: 1581.05 | N113: 6476100 | O113: -6.74%
A114: 107 | B114: Technology | C114: INFIBEAM | D114: 56.85 | E114: 58.33 | F114: 54.32 | G114: 51.78 | H114: 47.77 | I114: 60.87 | J114: 64.88 | K114: 67.42 | L114: 62.35 | M114: 55.8 | N114: 24916000 | O114: 5.18%
A115: 108 | B115: Telecom | C115: INFRATEL | D115: 261.45 | E115: 260.67 | F115: 256.43 | G115: 251.42 | H115: 247.18 | I115: 265.68 | J115: 269.92 | K115: 274.93 | L115: 264.9 | M115: 255.65 | N115: 5882000 | O115: 1.08%
A116: 109 | B116: Technology | C116: INFY | D116: 726.00 | E116: 723.48 | F116: 714.27 | G116: 702.53 | H116: 693.32 | I116: 735.22 | J116: 744.43 | K116: 756.17 | L116: 732.7 | M116: 711.75 | N116: 27594000 | O116: 2.60%
A117: 110 | B117: Oil_Gas | C117: IOC | D117: 117.85 | E117: 116.32 | F117: 109.03 | G117: 100.22 | H117: 92.93 | I117: 125.13 | J117: 132.42 | K117: 141.23 | L117: 123.6 | M117: 107.5 | N117: 28602000 | O117: 5.44%
A118: 111 | B118: Infrastructure | C118: IRB | D118: 127.85 | E118: 129.18 | F118: 123.77 | G118: 119.68 | H118: 114.27 | I118: 133.27 | J118: 138.68 | K118: 142.77 | L118: 134.6 | M118: 125.1 | N118: 13752500 | O118: 1.31%
A119: 112 | B119: FMCG | C119: ITC | D119: 277.95 | E119: 281.22 | F119: 273.18 | G119: 268.42 | H119: 260.38 | I119: 285.98 | J119: 294.02 | K119: 298.78 | L119: 289.25 | M119: 276.45 | N119: 69213600 | O119: 4.03%
A120: 113 | B120: Others | C120: JETAIRWAYS | D120: 180.35 | E120: 184.52 | F120: 173.13 | G120: 165.92 | H120: 154.53 | I120: 191.73 | J120: 203.12 | K120: 210.33 | L120: 195.9 | M120: 177.3 | N120: 6777600 | O120: -9.28%
A121: 114 | B121: Metals | C121: JINDALSTEL | D121: 176.00 | E121: 180.02 | F121: 164.58 | G121: 153.17 | H121: 137.73 | I121: 191.43 | J121: 206.87 | K121: 218.28 | L121: 195.45 | M121: 168.6 | N121: 31932000 | O121: 4.41%
A122: 115 | B122: Others | C122: JISLJALEQS | D122: 63.15 | E122: 64.42 | F122: 60.83 | G122: 58.52 | H122: 54.93 | I122: 66.73 | J122: 70.32 | K122: 72.63 | L122: 68 | M122: 62.1 | N122: 38349000 | O122: 2.35%
A123: 116 | B123: Realty | C123: JPASSOCIAT | D123: 6.55 | E123: 6.65 | F123: 6.30 | G123: 6.05 | H123: 5.70 | I123: 6.90 | J123: 7.25 | K123: 7.50 | L123: 7 | M123: 6.4 | N123: 104584000 | O123: 3.22%
A124: 117 | B124: Metals | C124: JSWSTEEL | D124: 367.20 | E124: 369.68 | F124: 359.62 | G124: 352.03 | H124: 341.97 | I124: 377.27 | J124: 387.33 | K124: 394.92 | L124: 379.75 | M124: 362.1 | N124: 52128000 | O124: 1.29%
A125: 118 | B125: Others | C125: JUBLFOOD | D125: 1155.25 | E125: 1140.32 | F125: 1098.63 | G125: 1042.02 | H125: 1000.33 | I125: 1196.93 | J125: 1238.62 | K125: 1295.23 | L125: 1182 | M125: 1083.7 | N125: 3505000 | O125: -1.88%
A126: 119 | B126: Others | C126: JUSTDIAL | D126: 457.20 | E126: 458.72 | F126: 439.53 | G126: 421.87 | H126: 402.68 | I126: 476.38 | J126: 495.57 | K126: 513.23 | L126: 477.9 | M126: 441.05 | N126: 2445800 | O126: -0.96%
A127: 120 | B127: Others | C127: KAJARIACER | D127: 343.25 | E127: 346.77 | F127: 336.48 | G127: 329.72 | H127: 319.43 | I127: 353.53 | J127: 363.82 | K127: 370.58 | L127: 357.05 | M127: 340 | N127: 2425000 | O127: -2.84%
A128: 121 | B128: Banking | C128: KOTAKBANK | D128: 1055.50 | E128: 1064.63 | F128: 1036.02 | G128: 1016.53 | H128: 987.92 | I128: 1084.12 | J128: 1112.73 | K128: 1132.22 | L128: 1093.25 | M128: 1045.15 | N128: 11816000 | O128: -7.70%
A129: 122 | B129: Technology | C129: KPIT | D129: 196.10 | E129: 199.57 | F129: 188.53 | G129: 180.97 | H129: 169.93 | I129: 207.13 | J129: 218.17 | K129: 225.73 | L129: 210.6 | M129: 192 | N129: 10170000 | O129: 3.86%
A130: 123 | B130: Others | C130: KSCL | D130: 501.80 | E130: 503.88 | F130: 489.97 | G130: 478.13 | H130: 464.22 | I130: 515.72 | J130: 529.63 | K130: 541.47 | L130: 517.8 | M130: 492.05 | N130: 1228500 | O130: 3.02%
A131: 124 | B131: Banking | C131: KTKBANK | D131: 96.55 | E131: 97.25 | F131: 94.70 | G131: 92.85 | H131: 90.30 | I131: 99.10 | J131: 101.65 | K131: 103.50 | L131: 99.8 | M131: 95.4 | N131: 16402500 | O131: -0.79%
A132: 125 | B132: Finance | C132: L&TFH | D132: 119.35 | E132: 121.07 | F132: 113.48 | G132: 107.62 | H132: 100.03 | I132: 126.93 | J132: 134.52 | K132: 140.38 | L132: 128.65 | M132: 115.2 | N132: 37273500 | O132: -1.02%
A133: 126 | B133: Finance | C133: LICHSGFIN | D133: 398.85 | E133: 400.87 | F133: 387.83 | G133: 376.82 | H133: 363.78 | I133: 411.88 | J133: 424.92 | K133: 435.93 | L133: 413.9 | M133: 389.85 | N133: 10403800 | O133: 1.50%
A134: 127 | B134: Capital_Goods | C134: LT | D134: 1220.05 | E134: 1232.20 | F134: 1200.70 | G134: 1181.35 | H134: 1149.85 | I134: 1251.55 | J134: 1283.05 | K134: 1302.40 | L134: 1263.7 | M134: 1212.85 | N134: 11561250 | O134: 2.60%
A135: 128 | B135: Pharma | C135: LUPIN | D135: 839.20 | E135: 845.10 | F135: 822.20 | G135: 805.20 | H135: 782.30 | I135: 862.10 | J135: 885.00 | K135: 902.00 | L135: 868 | M135: 828.1 | N135: 9655100 | O135: -2.11%
A136: 129 | B136: Automobile | C136: M&M | D136: 770.70 | E136: 776.30 | F136: 751.75 | G136: 732.80 | H136: 708.25 | I136: 795.25 | J136: 819.80 | K136: 838.75 | L136: 800.85 | M136: 757.35 | N136: 16742000 | O136: 3.87%
A137: 130 | B137: Finance | C137: M&MFIN | D137: 371.45 | E137: 375.07 | F137: 348.18 | G137: 324.92 | H137: 298.03 | I137: 398.33 | J137: 425.22 | K137: 448.48 | L137: 401.95 | M137: 351.8 | N137: 11063750 | O137: -2.31%
A138: 131 | B138: Others | C138: MANAPPURAM | D138: 72.70 | E138: 73.20 | F138: 71.10 | G138: 69.50 | H138: 67.40 | I138: 74.80 | J138: 76.90 | K138: 78.50 | L138: 75.3 | M138: 71.6 | N138: 20256000 | O138: -0.62%
A139: 132 | B139: FMCG | C139: MARICO | D139: 308.65 | E139: 310.03 | F139: 304.57 | G139: 300.48 | H139: 295.02 | I139: 314.12 | J139: 319.58 | K139: 323.67 | L139: 315.5 | M139: 305.95 | N139: 9019400 | O139: -5.32%
A140: 133 | B140: Automobile | C140: MARUTI | D140: 6910.80 | E140: 6998.82 | F140: 6736.18 | G140: 6561.57 | H140: 6298.93 | I140: 7173.43 | J140: 7436.07 | K140: 7610.68 | L140: 7261.45 | M140: 6824.2 | N140: 3160050 | O140: -1.23%
A141: 134 | B141: FMCG | C141: MCDOWELL-N | D141: 472.15 | E141: 476.47 | F141: 462.93 | G141: 453.72 | H141: 440.18 | I141: 485.68 | J141: 499.22 | K141: 508.43 | L141: 490 | M141: 467.25 | N141: 10703750 | O141: -1.06%
A142: 135 | B142: Others | C142: MCX | D142: 674.25 | E142: 682.00 | F142: 660.35 | G142: 646.45 | H142: 624.80 | I142: 695.90 | J142: 717.55 | K142: 731.45 | L142: 703.65 | M142: 668.1 | N142: 4251100 | O142: -1.72%
A143: 136 | B143: Finance | C143: MFSL | D143: 358.10 | E143: 360.05 | F143: 352.45 | G143: 346.80 | H143: 339.20 | I143: 365.70 | J143: 373.30 | K143: 378.95 | L143: 367.65 | M143: 354.4 | N143: 2586000 | O143: -4.94%
A144: 137 | B144: Others | C144: MGL | D144: 777.35 | E144: 781.03 | F144: 764.12 | G144: 750.88 | H144: 733.97 | I144: 794.27 | J144: 811.18 | K144: 824.42 | L144: 797.95 | M144: 767.8 | N144: 2004000 | O144: -7.66%
A145: 138 | B145: Technology | C145: MINDTREE | D145: 1043.00 | E145: 1052.38 | F145: 1027.62 | G145: 1012.23 | H145: 987.47 | I145: 1067.77 | J145: 1092.53 | K145: 1107.92 | L145: 1077.15 | M145: 1037 | N145: 4250400 | O145: -0.67%
A146: 139 | B146: Automobile | C146: MOTHERSUMI | D146: 241.35 | E146: 242.42 | F146: 236.93 | G146: 232.52 | H146: 227.03 | I146: 246.83 | J146: 252.32 | K146: 256.73 | L146: 247.9 | M146: 238 | N146: 16547200 | O146: -0.39%
A147: 140 | B147: Automobile | C147: MRF | D147: 60948.55 | E147: 61077.92 | F147: 60535.83 | G147: 60123.12 | H147: 59581.03 | I147: 61490.63 | J147: 62032.72 | K147: 62445.43 | L147: 61620 | M147: 60665.2 | N147: 27500 | O147: -2.45%
A148: 141 | B148: Others | C148: MRPL | D148: 64.15 | E148: 63.28 | F148: 60.57 | G148: 56.98 | H148: 54.27 | I148: 66.87 | J148: 69.58 | K148: 73.17 | L148: 66 | M148: 59.7 | N148: 5274000 | O148: -10.81%
A149: 142 | B149: Finance | C149: MUTHOOTFIN | D149: 384.90 | E149: 390.13 | F149: 374.77 | G149: 364.63 | H149: 349.27 | I149: 400.27 | J149: 415.63 | K149: 425.77 | L149: 405.5 | M149: 380 | N149: 2377500 | O149: 1.47%
A150: 143 | B150: Others | C150: NATIONALUM | D150: 65.25 | E150: 66.35 | F150: 63.05 | G150: 60.85 | H150: 57.55 | I150: 68.55 | J150: 71.85 | K150: 74.05 | L150: 69.65 | M150: 64.15 | N150: 47896000 | O150: -3.70%
A151: 144 | B151: Others | C151: NBCC | D151: 53.55 | E151: 54.37 | F151: 51.53 | G151: 49.52 | H151: 46.68 | I151: 56.38 | J151: 59.22 | K151: 61.23 | L151: 57.2 | M151: 52.35 | N151: 20202000 | O151: -9.93%
A152: 145 | B152: Infrastructure | C152: NCC | D152: 71.55 | E152: 72.95 | F152: 69.30 | G152: 67.05 | H152: 63.40 | I152: 75.20 | J152: 78.85 | K152: 81.10 | L152: 76.6 | M152: 70.7 | N152: 45672000 | O152: 1.84%
A153: 146 | B153: Others | C153: NESTLEIND | D153: 9419.05 | E153: 9383.03 | F153: 9216.07 | G153: 9013.08 | H153: 8846.12 | I153: 9586.02 | J153: 9752.98 | K153: 9955.97 | L153: 9550 | M153: 9180.05 | N153: 356600 | O153: -0.92%
A154: 147 | B154: Power | C154: NHPC | D154: 23.15 | E154: 23.30 | F154: 22.85 | G154: 22.55 | H154: 22.10 | I154: 23.60 | J154: 24.05 | K154: 24.35 | L154: 23.75 | M154: 23 | N154: 21465000 | O154: -2.09%
A155: 148 | B155: Technology | C155: NIITTECH | D155: 1163.45 | E155: 1170.38 | F155: 1145.07 | G155: 1126.68 | H155: 1101.37 | I155: 1188.77 | J155: 1214.08 | K155: 1232.47 | L155: 1195.7 | M155: 1152 | N155: 1335000 | O155: -6.12%
A156: 149 | B156: Metals | C156: NMDC | D156: 109.15 | E156: 110.63 | F156: 106.12 | G156: 103.08 | H156: 98.57 | I156: 113.67 | J156: 118.18 | K156: 121.22 | L156: 115.15 | M156: 107.6 | N156: 21498000 | O156: 0.28%
A157: 150 | B157: Power | C157: NTPC | D157: 163.65 | E157: 164.72 | F157: 160.53 | G157: 157.42 | H157: 153.23 | I157: 167.83 | J157: 172.02 | K157: 175.13 | L157: 168.9 | M157: 161.6 | N157: 34620000 | O157: 2.08%
A158: 151 | B158: Technology | C158: OFSS | D158: 4026.90 | E158: 4023.22 | F158: 3956.43 | G158: 3885.97 | H158: 3819.18 | I158: 4093.68 | J158: 4160.47 | K158: 4230.93 | L158: 4090 | M158: 3952.75 | N158: 330300 | O158: -2.87%
A159: 152 | B159: Oil_Gas | C159: OIL | D159: 186.20 | E159: 187.08 | F159: 178.27 | G159: 170.33 | H159: 161.52 | I159: 195.02 | J159: 203.83 | K159: 211.77 | L159: 195.9 | M159: 179.15 | N159: 2858559 | O159: -8.29%
A160: 153 | B160: Oil_Gas | C160: ONGC | D160: 147.80 | E160: 151.82 | F160: 142.53 | G160: 137.27 | H160: 127.98 | I160: 157.08 | J160: 166.37 | K160: 171.63 | L160: 161.1 | M160: 146.55 | N160: 46976250 | O160: -0.24%
A161: 154 | B161: Banking | C161: ORIENTBANK | D161: 61.10 | E161: 61.82 | F161: 59.43 | G161: 57.77 | H161: 55.38 | I161: 63.48 | J161: 65.87 | K161: 67.53 | L161: 64.2 | M161: 60.15 | N161: 12816000 | O161: 0.75%
A162: 155 | B162: Textile | C162: PAGEIND | D162: 29693.65 | E162: 30012.48 | F162: 29031.17 | G162: 28368.68 | H162: 27387.37 | I162: 30674.97 | J162: 31656.28 | K162: 32318.77 | L162: 30993.8 | M162: 29350 | N162: 129625 | O162: -3.96%
A163: 156 | B163: Others | C163: PCJEWELLER | D163: 59.85 | E163: 59.78 | F163: 56.42 | G163: 52.98 | H163: 49.62 | I163: 63.22 | J163: 66.58 | K163: 70.02 | L163: 63.15 | M163: 56.35 | N163: 8745000 | O163: -5.08%
A164: 157 | B164: Pharma | C164: PEL | D164: 2224.45 | E164: 2245.00 | F164: 2160.95 | G164: 2097.45 | H164: 2013.40 | I164: 2308.50 | J164: 2392.55 | K164: 2456.05 | L164: 2329.05 | M164: 2181.5 | N164: 3594102 | O164: -3.33%
A165: 158 | B165: Oil_Gas | C165: PETRONET | D165: 213.65 | E165: 212.55 | F165: 206.70 | G165: 199.75 | H165: 193.90 | I165: 219.50 | J165: 225.35 | K165: 232.30 | L165: 218.4 | M165: 205.6 | N165: 13311000 | O165: -0.72%
A166: 159 | B166: Finance | C166: PFC | D166: 76.05 | E166: 76.78 | F166: 74.97 | G166: 73.88 | H166: 72.07 | I166: 77.87 | J166: 79.68 | K166: 80.77 | L166: 78.6 | M166: 75.7 | N166: 83040000 | O166: 2.88%
A167: 160 | B167: FMCG | C167: PIDILITIND | D167: 966.05 | E167: 973.40 | F167: 951.80 | G167: 937.55 | H167: 915.95 | I167: 987.65 | J167: 1009.25 | K167: 1023.50 | L167: 995 | M167: 959.15 | N167: 3240000 | O167: -0.55%
A168: 161 | B168: Banking | C168: PNB | D168: 63.95 | E168: 64.57 | F168: 62.48 | G168: 61.02 | H168: 58.93 | I168: 66.03 | J168: 68.12 | K168: 69.58 | L168: 66.65 | M168: 63.1 | N168: 112189000 | O168: -0.76%
A169: 162 | B169: Power | C169: POWERGRID | D169: 187.85 | E169: 188.98 | F169: 185.87 | G169: 183.88 | H169: 180.77 | I169: 190.97 | J169: 194.08 | K169: 196.07 | L169: 192.1 | M169: 187 | N169: 42652000 | O169: 2.30%
A170: 163 | B170: Power | C170: PTC | D170: 67.10 | E170: 67.78 | F170: 65.67 | G170: 64.23 | H170: 62.12 | I170: 69.22 | J170: 71.33 | K170: 72.77 | L170: 69.9 | M170: 66.35 | N170: 9464000 | O170: -5.13%
A171: 164 | B171: Others | C171: PVR | D171: 1169.45 | E171: 1181.55 | F171: 1137.90 | G171: 1106.35 | H171: 1062.70 | I171: 1213.10 | J171: 1256.75 | K171: 1288.30 | L171: 1225.2 | M171: 1150 | N171: 1090400 | O171: 4.40%
A172: 165 | B172: Cement | C172: RAMCOCEM | D172: 621.40 | E172: 624.63 | F172: 613.27 | G172: 605.13 | H172: 593.77 | I172: 632.77 | J172: 644.13 | K172: 652.27 | L172: 636 | M172: 616.5 | N172: 834400 | O172: 1.16%
A173: 166 | B173: Others | C173: RAYMOND | D173: 652.95 | E173: 650.75 | F173: 627.60 | G173: 602.25 | H173: 579.10 | I173: 676.10 | J173: 699.25 | K173: 724.60 | L173: 673.9 | M173: 625.4 | N173: 4791200 | O173: -2.32%
A174: 167 | B174: Banking | C174: RBLBANK | D174: 490.90 | E174: 497.55 | F174: 479.50 | G174: 468.10 | H174: 450.05 | I174: 508.95 | J174: 527.00 | K174: 538.40 | L174: 515.6 | M174: 486.15 | N174: 4610400 | O174: -2.24%
A175: 168 | B175: Telecom | C175: RCOM | D175: 11.45 | E175: 11.62 | F175: 11.08 | G175: 10.72 | H175: 10.18 | I175: 11.98 | J175: 12.52 | K175: 12.88 | L175: 12.15 | M175: 11.25 | N175: 94416000 | O175: -0.77%
A176: 169 | B176: Power | C176: RECLTD | D176: 100.85 | E176: 102.12 | F176: 98.78 | G176: 96.72 | H176: 93.38 | I176: 104.18 | J176: 107.52 | K176: 109.58 | L176: 105.45 | M176: 100.05 | N176: 38394000 | O176: 0.61%
A177: 170 | B177: Finance | C177: RELCAPITAL | D177: 259.35 | E177: 262.67 | F177: 249.73 | G177: 240.12 | H177: 227.18 | I177: 272.28 | J177: 285.22 | K177: 294.83 | L177: 275.6 | M177: 253.05 | N177: 10851000 | O177: -0.67%
A178: 171 | B178: Oil_Gas | C178: RELIANCE | D178: 1054.25 | E178: 1073.13 | F178: 1024.27 | G178: 994.28 | H178: 945.42 | I178: 1103.12 | J178: 1151.98 | K178: 1181.97 | L178: 1122 | M178: 1043.15 | N178: 49942000 | O178: 7.23%
A179: 172 | B179: Power | C179: RELINFRA | D179: 289.50 | E179: 293.43 | F179: 281.22 | G179: 272.93 | H179: 260.72 | I179: 301.72 | J179: 313.93 | K179: 322.22 | L179: 305.65 | M179: 285.15 | N179: 8473400 | O179: -0.84%
A180: 173 | B180: Others | C180: REPCOHOME | D180: 397.20 | E180: 396.67 | F180: 388.33 | G180: 379.47 | H180: 371.13 | I180: 405.53 | J180: 413.87 | K180: 422.73 | L180: 405 | M180: 387.8 | N180: 587700 | O180: 0.00%
A181: 174 | B181: Power | C181: RPOWER | D181: 26.05 | E181: 26.55 | F181: 25.30 | G181: 24.55 | H181: 23.30 | I181: 27.30 | J181: 28.55 | K181: 29.30 | L181: 27.8 | M181: 25.8 | N181: 44655000 | O181: 0.67%
A182: 175 | B182: Metals | C182: SAIL | D182: 66.00 | E182: 67.05 | F182: 63.95 | G182: 61.90 | H182: 58.80 | I182: 69.10 | J182: 72.20 | K182: 74.25 | L182: 70.15 | M182: 65 | N182: 73320000 | O182: 0.02%
A183: 176 | B183: Banking | C183: SBIN | D183: 259.10 | E183: 262.60 | F183: 253.35 | G183: 247.60 | H183: 238.35 | I183: 268.35 | J183: 277.60 | K183: 283.35 | L183: 271.85 | M183: 256.85 | N183: 86331000 | O183: 3.29%
A184: 177 | B184: Cement | C184: SHREECEM | D184: 15815.05 | E184: 16032.08 | F184: 15414.17 | G184: 15013.28 | H184: 14395.37 | I184: 16432.97 | J184: 17050.88 | K184: 17451.77 | L184: 16650 | M184: 15631.2 | N184: 100350 | O184: 1.67%
A185: 178 | B185: Capital_Goods | C185: SIEMENS | D185: 946.15 | E185: 948.88 | F185: 929.82 | G185: 913.48 | H185: 894.42 | I185: 965.22 | J185: 984.28 | K185: 1000.62 | L185: 967.95 | M185: 932.55 | N185: 1310500 | O185: 0.85%
A186: 179 | B186: Banking | C186: SOUTHBANK | D186: 13.95 | E186: 14.05 | F186: 13.55 | G186: 13.15 | H186: 12.65 | I186: 14.45 | J186: 14.95 | K186: 15.35 | L186: 14.55 | M186: 13.65 | N186: 126035223 | O186: -1.43%
A187: 180 | B187: Others | C187: SREINFRA | D187: 32.30 | E187: 32.92 | F187: 30.58 | G187: 28.87 | H187: 26.53 | I187: 34.63 | J187: 36.97 | K187: 38.68 | L187: 35.25 | M187: 31.2 | N187: 14658000 | O187: -4.56%
A188: 181 | B188: Textile | C188: SRF | D188: 1704.05 | E188: 1715.07 | F188: 1680.38 | G188: 1656.72 | H188: 1622.03 | I188: 1738.73 | J188: 1773.42 | K188: 1797.08 | L188: 1749.75 | M188: 1691.4 | N188: 632000 | O188: -3.51%
A189: 182 | B189: Finance | C189: SRTRANSFIN | D189: 1046.55 | E189: 1059.67 | F189: 1016.88 | G189: 987.22 | H189: 944.43 | I189: 1089.33 | J189: 1132.12 | K189: 1161.78 | L189: 1102.45 | M189: 1030 | N189: 4477200 | O189: -2.09%
A190: 183 | B190: Pharma | C190: STAR | D190: 422.15 | E190: 423.32 | F190: 412.83 | G190: 403.52 | H190: 393.03 | I190: 432.63 | J190: 443.12 | K190: 452.43 | L190: 433.8 | M190: 414 | N190: 4656000 | O190: -1.72%
A191: 184 | B191: Pharma | C191: SUNPHARMA | D191: 601.10 | E191: 604.67 | F191: 590.63 | G191: 580.17 | H191: 566.13 | I191: 615.13 | J191: 629.17 | K191: 639.63 | L191: 618.7 | M191: 594.2 | N191: 31729500 | O191: 0.91%
A192: 185 | B192: Media | C192: SUNTV | D192: 610.55 | E192: 618.18 | F192: 597.37 | G192: 584.18 | H192: 563.37 | I192: 631.37 | J192: 652.18 | K192: 665.37 | L192: 639 | M192: 605 | N192: 6735000 | O192: 1.77%
A193: 186 | B193: Power | C193: SUZLON | D193: 5.50 | E193: 5.58 | F193: 5.32 | G193: 5.13 | H193: 4.87 | I193: 5.77 | J193: 6.03 | K193: 6.22 | L193: 5.85 | M193: 5.4 | N193: 317835000 | O193: -0.07%
A194: 187 | B194: Banking | C194: SYNDIBANK | D194: 31.15 | E194: 31.43 | F194: 30.22 | G194: 29.28 | H194: 28.07 | I194: 32.37 | J194: 33.58 | K194: 34.52 | L194: 32.65 | M194: 30.5 | N194: 24957000 | O194: -0.86%
A195: 188 | B195: Fertilisers | C195: TATACHEM | D195: 654.55 | E195: 655.93 | F195: 645.87 | G195: 637.18 | H195: 627.12 | I195: 664.62 | J195: 674.68 | K195: 683.37 | L195: 666 | M195: 647.25 | N195: 2925750 | O195: -5.38%
A196: 189 | B196: Telecom | C196: TATACOMM | D196: 472.75 | E196: 474.60 | F196: 465.35 | G196: 457.95 | H196: 448.70 | I196: 482.00 | J196: 491.25 | K196: 498.65 | L196: 483.85 | M196: 467.2 | N196: 2893600 | O196: -1.93%
A197: 190 | B197: Technology | C197: TATAELXSI | D197: 1143.85 | E197: 1148.92 | F197: 1125.93 | G197: 1108.02 | H197: 1085.03 | I197: 1166.83 | J197: 1189.82 | K197: 1207.73 | L197: 1171.9 | M197: 1131 | N197: 1968000 | O197: 5.76%
A198: 191 | B198: FMCG | C198: TATAGLOBAL | D198: 209.45 | E198: 211.92 | F198: 203.98 | G198: 198.52 | H198: 190.58 | I198: 217.38 | J198: 225.32 | K198: 230.78 | L198: 219.85 | M198: 206.45 | N198: 12125250 | O198: 1.74%
A199: 192 | B199: Automobile | C199: TATAMOTORS | D199: 217.15 | E199: 220.05 | F199: 212.60 | G199: 208.05 | H199: 200.60 | I199: 224.60 | J199: 232.05 | K199: 236.60 | L199: 227.5 | M199: 215.5 | N199: 76629000 | O199: 0.43%
A200: 193 | B200: Automobile | C200: TATAMTRDVR | D200: 117.40 | E200: 118.90 | F200: 115.00 | G200: 112.60 | H200: 108.70 | I200: 121.30 | J200: 125.20 | K200: 127.60 | L200: 122.8 | M200: 116.5 | N200: 30385600 | O200: -1.30%
A201: 194 | B201: Power | C201: TATAPOWER | D201: 63.30 | E201: 64.45 | F201: 61.50 | G201: 59.70 | H201: 56.75 | I201: 66.25 | J201: 69.20 | K201: 71.00 | L201: 67.4 | M201: 62.65 | N201: 44019000 | O201: 0.82%
A202: 195 | B202: Metals | C202: TATASTEEL | D202: 568.65 | E202: 573.47 | F202: 558.28 | G202: 547.92 | H202: 532.73 | I202: 583.83 | J202: 599.02 | K202: 609.38 | L202: 588.65 | M202: 563.1 | N202: 31983845 | O202: -3.49%
A203: 196 | B203: Technology | C203: TCS | D203: 2113.30 | E203: 2092.58 | F203: 2055.12 | G203: 1996.93 | H203: 1959.47 | I203: 2150.77 | J203: 2188.23 | K203: 2246.42 | L203: 2130.05 | M203: 2034.4 | N203: 8327000 | O203: 1.38%
A204: 197 | B204: Technology | C204: TECHM | D204: 716.65 | E204: 714.88 | F204: 701.77 | G204: 686.88 | H204: 673.77 | I204: 729.77 | J204: 742.88 | K204: 757.77 | L204: 728 | M204: 700 | N204: 15373200 | O204: 3.12%
A205: 198 | B205: FMCG | C205: TITAN | D205: 793.90 | E205: 799.65 | F205: 781.45 | G205: 769.00 | H205: 750.80 | I205: 812.10 | J205: 830.30 | K205: 842.75 | L205: 817.85 | M205: 787.2 | N205: 14568000 | O205: 2.48%
A206: 199 | B206: Pharma | C206: TORNTPHARM | D206: 1610.90 | E206: 1617.97 | F206: 1585.18 | G206: 1559.47 | H206: 1526.68 | I206: 1643.68 | J206: 1676.47 | K206: 1702.18 | L206: 1650.75 | M206: 1592.25 | N206: 521000 | O206: -3.87%
... 33 more rows

Sheet Cash Intra
M5: Back to Main Page
A6: FOR INTRA DAY TRADING | K6: =Main!B10 -> 2018-10-08
A8: Sr.no | B8: Scrip | C8: CLOSE RATE | D8: Pivot Point | E8: Supports | H8: Resistances
C9: Point | E9: S1 | F9: S2 | G9: S3 | H9: R1 | I9: R2 | J9: R3 | K9: HIGH | L9: LOW | M9: Total Trade Quanity in Lakhs
A10: 1 | B10: Nifty 50 | C10: 10316.45 | D10: 10373.00 | E10: 10205.35 | F10: 10094.25 | G10: 9926.60 | H10: 10484.10 | I10: 10651.75 | J10: 10762.85 | K10: 10540.65 | L10: 10261.9
A11: 2 | B11: Nifty Bank | C11: 24443.45 | D11: 24591.43 | E11: 24102.67 | F11: 23761.88 | G11: 23273.12 | H11: 24932.22 | I11: 25420.98 | J11: 25761.77 | K11: 25080.2 | L11: 24250.65
A12: 3 | B12: Nifty CPSE | C12: 2023 | D12: 2050.02 | E12: 1967.78 | F12: 1912.57 | G12: 1830.33 | H12: 2105.23 | I12: 2187.47 | J12: 2242.68 | K12: 2132.25 | L12: 1994.8
A13: 4 | B13: Nifty Infra | C13: 2845.4 | D13: 2868.68 | E13: 2804.82 | F13: 2764.23 | G13: 2700.37 | H13: 2909.27 | I13: 2973.13 | J13: 3013.72 | K13: 2932.55 | L13: 2828.1
A14: 5 | B14: Nifty IT | C14: 15591.65 | D14: 15522.43 | E14: 15334.87 | F14: 15078.08 | G14: 14890.52 | H14: 15779.22 | I14: 15966.78 | J14: 16223.57 | K14: 15710 | L14: 15265.65
A15: 6 | B15: Nifty PSE | C15: 3205.9 | D15: 3253.37 | E15: 3144.08 | F15: 3082.27 | G15: 2972.98 | H15: 3315.18 | I15: 3424.47 | J15: 3486.28 | K15: 3362.65 | L15: 3191.55
A16: 7 | B16: Nifty Midcap 50 | C16: 4407.5 | D16: 4447.90 | E16: 4342.05 | F16: 4276.60 | G16: 4170.75 | H16: 4513.35 | I16: 4619.20 | J16: 4684.65 | K16: 4553.75 | L16: 4382.45
A17: 8 | B17: ABB | C17: 1374.75 | D17: 1367.00 | E17: 1340.75 | F17: 1306.75 | G17: 1280.50 | H17: 1401.00 | I17: 1427.25 | J17: 1461.25 | K17: 1393.25 | L17: 1333 | M17: 1.03463
A18: 9 | B18: ACC | C18: 1478.6 | D18: 1487.58 | E18: 1456.17 | F18: 1433.73 | G18: 1402.32 | H18: 1510.02 | I18: 1541.43 | J18: 1563.87 | K18: 1519 | L18: 1465.15 | M18: 8.97662
A19: 10 | B19: AIAENG | C19: 1697.95 | D19: 1700.48 | E19: 1684.47 | F19: 1670.98 | G19: 1654.97 | H19: 1713.97 | I19: 1729.98 | J19: 1743.47 | K19: 1716.5 | L19: 1687 | M19: 0.41832
A20: 11 | B20: AUBANK | C20: 550.7 | D20: 555.25 | E20: 544.50 | F20: 538.30 | G20: 527.55 | H20: 561.45 | I20: 572.20 | J20: 578.40 | K20: 566 | L20: 549.05 | M20: 2.48164
A21: 12 | B21: ADANIENT | C21: 130.2 | D21: 131.40 | E21: 127.05 | F21: 123.90 | G21: 119.55 | H21: 134.55 | I21: 138.90 | J21: 142.05 | K21: 135.75 | L21: 128.25 | M21: 60.99515
A22: 13 | B22: ADANIPORTS | C22: 301.8 | D22: 306.07 | E22: 293.73 | F22: 285.67 | G22: 273.33 | H22: 314.13 | I22: 326.47 | J22: 334.53 | K22: 318.4 | L22: 298 | M22: 71.77862
A23: 14 | B23: ADANIPOWER | C23: 23.45 | D23: 23.75 | E23: 22.60 | F23: 21.75 | G23: 20.60 | H23: 24.60 | I23: 25.75 | J23: 26.60 | K23: 24.9 | L23: 22.9 | M23: 156.16716
A24: 15 | B24: ABFRL | C24: 180.9 | D24: 181.48 | E24: 177.57 | F24: 174.23 | G24: 170.32 | H24: 184.82 | I24: 188.73 | J24: 192.07 | K24: 185.4 | L24: 178.15 | M24: 7.46959
A25: 16 | B25: AJANTPHARM | C25: 1019.5 | D25: 1015.50 | E25: 999.00 | F25: 978.50 | G25: 962.00 | H25: 1036.00 | I25: 1052.50 | J25: 1073.00 | K25: 1032 | L25: 995 | M25: 2.8819
A26: 17 | B26: ALKEM | C26: 2038.9 | D26: 2042.03 | E26: 2020.97 | F26: 2003.03 | G26: 1981.97 | H26: 2059.97 | I26: 2081.03 | J26: 2098.97 | K26: 2063.1 | L26: 2024.1 | M26: 0.46286
A27: 18 | B27: AMARAJABAT | C27: 719.35 | D27: 723.83 | E27: 707.97 | F27: 696.58 | G27: 680.72 | H27: 735.22 | I27: 751.08 | J27: 762.47 | K27: 739.7 | L27: 712.45 | M27: 4.49889
A28: 19 | B28: AMBUJACEM | C28: 208.45 | D28: 209.90 | E28: 205.55 | F28: 202.65 | G28: 198.30 | H28: 212.80 | I28: 217.15 | J28: 220.05 | K28: 214.25 | L28: 207 | M28: 30.07099
A29: 20 | B29: APOLLOHOSP | C29: 1057.2 | D29: 1055.40 | E29: 1036.80 | F29: 1016.40 | G29: 997.80 | H29: 1075.80 | I29: 1094.40 | J29: 1114.80 | K29: 1074 | L29: 1035 | M29: 3.87404
A30: 21 | B30: APOLLOTYRE | C30: 198 | D30: 198.73 | E30: 193.27 | F30: 188.53 | G30: 183.07 | H30: 203.47 | I30: 208.93 | J30: 213.67 | K30: 204.2 | L30: 194 | M30: 29.51857
A31: 22 | B31: ARVIND | C31: 313.8 | D31: 315.20 | E31: 307.60 | F31: 301.40 | G31: 293.80 | H31: 321.40 | I31: 329.00 | J31: 335.20 | K31: 322.8 | L31: 309 | M31: 13.58206
A32: 23 | B32: ASHOKLEY | C32: 107.75 | D32: 109.12 | E32: 100.28 | F32: 92.82 | G32: 83.98 | H32: 116.58 | I32: 125.42 | J32: 132.88 | K32: 117.95 | L32: 101.65 | M32: 311.57884
A33: 24 | B33: ASIANPAINT | C33: 1209.5 | D33: 1213.78 | E33: 1187.57 | F33: 1165.63 | G33: 1139.42 | H33: 1235.72 | I33: 1261.93 | J33: 1283.87 | K33: 1240 | L33: 1191.85 | M33: 13.44685
A34: 25 | B34: AUROPHARMA | C34: 744.25 | D34: 747.23 | E34: 732.07 | F34: 719.88 | G34: 704.72 | H34: 759.42 | I34: 774.58 | J34: 786.77 | K34: 762.4 | L34: 735.05 | M34: 21.70891
A35: 26 | B35: DMART | C35: 1331.2 | D35: 1345.05 | E35: 1297.40 | F35: 1263.60 | G35: 1215.95 | H35: 1378.85 | I35: 1426.50 | J35: 1460.30 | K35: 1392.7 | L35: 1311.25 | M35: 5.64118
A36: 27 | B36: AXISBANK | C36: 568.5 | D36: 574.67 | E36: 558.83 | F36: 549.17 | G36: 533.33 | H36: 584.33 | I36: 600.17 | J36: 609.83 | K36: 590.5 | L36: 565 | M36: 98.6001
A37: 28 | B37: BAJAJ-AUTO | C37: 2543.05 | D37: 2566.02 | E37: 2497.03 | F37: 2451.02 | G37: 2382.03 | H37: 2612.03 | I37: 2681.02 | J37: 2727.03 | K37: 2635 | L37: 2520 | M37: 9.47343
A38: 29 | B38: BAJFINANCE | C38: 2023.3 | D38: 2067.05 | E38: 1919.50 | F38: 1815.70 | G38: 1668.15 | H38: 2170.85 | I38: 2318.40 | J38: 2422.20 | K38: 2214.6 | L38: 1963.25 | M38: 34.70441
A39: 30 | B39: BAJAJFINSV | C39: 5375.65 | D39: 5439.85 | E39: 5158.70 | F39: 4941.75 | G39: 4660.60 | H39: 5656.80 | I39: 5937.95 | J39: 6154.90 | K39: 5721 | L39: 5222.9 | M39: 2.52881
A40: 31 | B40: BALKRISIND | C40: 1002.35 | D40: 1016.82 | E40: 979.53 | F40: 956.72 | G40: 919.43 | H40: 1039.63 | I40: 1076.92 | J40: 1099.73 | K40: 1054.1 | L40: 994 | M40: 8.09561
A41: 32 | B41: BANKBARODA | C41: 99.1 | D41: 100.28 | E41: 96.37 | F41: 93.63 | G41: 89.72 | H41: 103.02 | I41: 106.93 | J41: 109.67 | K41: 104.2 | L41: 97.55 | M41: 382.98074
A42: 33 | B42: BANKINDIA | C42: 76.8 | D42: 77.42 | E42: 74.88 | F42: 72.97 | G42: 70.43 | H42: 79.33 | I42: 81.87 | J42: 83.78 | K42: 79.95 | L42: 75.5 | M42: 76.98118
A43: 34 | B43: BATAINDIA | C43: 860.3 | D43: 863.13 | E43: 849.77 | F43: 839.23 | G43: 825.87 | H43: 873.67 | I43: 887.03 | J43: 897.57 | K43: 876.5 | L43: 852.6 | M43: 12.10299
A44: 35 | B44: BERGEPAINT | C44: 267.9 | D44: 269.47 | E44: 263.98 | F44: 260.07 | G44: 254.58 | H44: 273.38 | I44: 278.87 | J44: 282.78 | K44: 274.95 | L44: 265.55 | M44: 8.46114
A45: 36 | B45: BEL | C45: 80.6 | D45: 81.15 | E45: 79.05 | F45: 77.50 | G45: 75.40 | H45: 82.70 | I45: 84.80 | J45: 86.35 | K45: 83.25 | L45: 79.6 | M45: 69.81811
A46: 37 | B46: BHARATFIN | C46: 997.7 | D46: 998.42 | E46: 980.83 | F46: 963.97 | G46: 946.38 | H46: 1015.28 | I46: 1032.87 | J46: 1049.73 | K46: 1016 | L46: 981.55 | M46: 9.64923
A47: 38 | B47: BHARATFORG | C47: 576.95 | D47: 582.65 | E47: 569.30 | F47: 561.65 | G47: 548.30 | H47: 590.30 | I47: 603.65 | J47: 611.30 | K47: 596 | L47: 575 | M47: 9.02066
A48: 39 | B48: BHEL | C48: 70.4 | D48: 71.38 | E48: 68.77 | F48: 67.13 | G48: 64.52 | H48: 73.02 | I48: 75.63 | J48: 77.27 | K48: 74 | L48: 69.75 | M48: 93.85085
A49: 40 | B49: BPCL | C49: 265.3 | D49: 267.30 | E49: 236.55 | F49: 207.80 | G49: 177.05 | H49: 296.05 | I49: 326.80 | J49: 355.55 | K49: 298.05 | L49: 238.55 | M49: 557.20377
A50: 41 | B50: BHARTIARTL | C50: 298.6 | D50: 302.13 | E50: 288.37 | F50: 278.13 | G50: 264.37 | H50: 312.37 | I50: 326.13 | J50: 336.37 | K50: 315.9 | L50: 291.9 | M50: 71.68719
A51: 42 | B51: INFRATEL | C51: 260.2 | D51: 259.27 | E51: 254.53 | F51: 248.87 | G51: 244.13 | H51: 264.93 | I51: 269.67 | J51: 275.33 | K51: 264 | L51: 253.6 | M51: 44.98382
A52: 43 | B52: BIOCON | C52: 611.95 | D52: 617.98 | E52: 598.77 | F52: 585.58 | G52: 566.37 | H52: 631.17 | I52: 650.38 | J52: 663.57 | K52: 637.2 | L52: 604.8 | M52: 27.45902
A53: 44 | B53: BOSCHLTD | C53: 18813.9 | D53: 18887.68 | E53: 18625.37 | F53: 18436.83 | G53: 18174.52 | H53: 19076.22 | I53: 19338.53 | J53: 19527.07 | K53: 19150 | L53: 18699.15 | M53: 0.14961
A54: 45 | B54: BRITANNIA | C54: 5447.7 | D54: 5480.95 | E54: 5346.90 | F54: 5246.10 | G54: 5112.05 | H54: 5581.75 | I54: 5715.80 | J54: 5816.60 | K54: 5615 | L54: 5380.15 | M54: 2.59162
A55: 46 | B55: CRISIL | C55: 1626.1 | D55: 1621.15 | E55: 1606.05 | F55: 1586.00 | G55: 1570.90 | H55: 1641.20 | I55: 1656.30 | J55: 1676.35 | K55: 1636.25 | L55: 1601.1 | M55: 0.18484
A56: 47 | B56: CADILAHC | C56: 378.35 | D56: 381.27 | E56: 373.08 | F56: 367.82 | G56: 359.63 | H56: 386.53 | I56: 394.72 | J56: 399.98 | K56: 389.45 | L56: 376 | M56: 18.04396
A57: 48 | B57: CANBK | C57: 219.35 | D57: 221.90 | E57: 212.45 | F57: 205.55 | G57: 196.10 | H57: 228.80 | I57: 238.25 | J57: 245.15 | K57: 231.35 | L57: 215 | M57: 67.99304
A58: 49 | B58: CASTROLIND | C58: 136.8 | D58: 138.20 | E58: 133.60 | F58: 130.40 | G58: 125.80 | H58: 141.40 | I58: 146.00 | J58: 149.20 | K58: 142.8 | L58: 135 | M58: 22.14518
A59: 50 | B59: CENTRALBK | C59: 33.4 | D59: 34.00 | E59: 32.00 | F59: 30.60 | G59: 28.60 | H59: 35.40 | I59: 37.40 | J59: 38.80 | K59: 36 | L59: 32.6 | M59: 25.1168
A60: 51 | B60: CENTURYTEX | C60: 763.6 | D60: 772.87 | E60: 745.13 | F60: 726.67 | G60: 698.93 | H60: 791.33 | I60: 819.07 | J60: 837.53 | K60: 800.6 | L60: 754.4 | M60: 6.14859
A61: 52 | B61: CHOLAFIN | C61: 1111.15 | D61: 1126.10 | E61: 1070.20 | F61: 1029.25 | G61: 973.35 | H61: 1167.05 | I61: 1222.95 | J61: 1263.90 | K61: 1182 | L61: 1085.15 | M61: 3.4704
A62: 53 | B62: CIPLA | C62: 636.65 | D62: 639.07 | E62: 628.58 | F62: 620.52 | G62: 610.03 | H62: 647.13 | I62: 657.62 | J62: 665.68 | K62: 649.55 | L62: 631 | M62: 18.0615
A63: 54 | B63: COALINDIA | C63: 263 | D63: 266.15 | E63: 258.15 | F63: 253.30 | G63: 245.30 | H63: 271.00 | I63: 279.00 | J63: 283.85 | K63: 274.15 | L63: 261.3 | M63: 40.49564
A64: 55 | B64: COLPAL | C64: 1069.55 | D64: 1068.45 | E64: 1057.90 | F64: 1046.25 | G64: 1035.70 | H64: 1080.10 | I64: 1090.65 | J64: 1102.30 | K64: 1079 | L64: 1056.8 | M64: 3.0046
A65: 56 | B65: CONCOR | C65: 605.75 | D65: 603.57 | E65: 588.38 | F65: 571.02 | G65: 555.83 | H65: 620.93 | I65: 636.12 | J65: 653.48 | K65: 618.75 | L65: 586.2 | M65: 6.78508
A66: 57 | B66: COROMANDEL | C66: 371.85 | D66: 375.93 | E66: 362.32 | F66: 352.78 | G66: 339.17 | H66: 385.47 | I66: 399.08 | J66: 408.62 | K66: 389.55 | L66: 366.4 | M66: 1.21482
A67: 58 | B67: CROMPTON | C67: 211.25 | D67: 210.08 | E67: 205.17 | F67: 199.08 | G67: 194.17 | H67: 216.17 | I67: 221.08 | J67: 227.17 | K67: 215 | L67: 204 | M67: 5.21823
A68: 59 | B68: CUMMINSIND | C68: 658.25 | D68: 663.65 | E68: 649.60 | F68: 640.95 | G68: 626.90 | H68: 672.30 | I68: 686.35 | J68: 695.00 | K68: 677.7 | L68: 655 | M68: 1.08912
A69: 60 | B69: DLF | C69: 149.25 | D69: 152.80 | E69: 141.75 | F69: 134.25 | G69: 123.20 | H69: 160.30 | I69: 171.35 | J69: 178.85 | K69: 163.85 | L69: 145.3 | M69: 110.93634
A70: 61 | B70: DABUR | C70: 420.05 | D70: 416.33 | E70: 407.67 | F70: 395.28 | G70: 386.62 | H70: 428.72 | I70: 437.38 | J70: 449.77 | K70: 425 | L70: 403.95 | M70: 37.97505
A71: 62 | B71: DALMIABHA | C71: 2119.9 | D71: 2133.67 | E71: 2087.23 | F71: 2054.57 | G71: 2008.13 | H71: 2166.33 | I71: 2212.77 | J71: 2245.43 | K71: 2180.1 | L71: 2101 | M71: 0.62305
A72: 63 | B72: DHFL | C72: 275.15 | D72: 281.98 | E72: 258.17 | F72: 241.18 | G72: 217.37 | H72: 298.97 | I72: 322.78 | J72: 339.77 | K72: 305.8 | L72: 265 | M72: 152.28207
A73: 64 | B73: DISHTV | C73: 52.3 | D73: 52.92 | E73: 49.93 | F73: 47.57 | G73: 44.58 | H73: 55.28 | I73: 58.27 | J73: 60.63 | K73: 55.9 | L73: 50.55 | M73: 83.82714
A74: 65 | B74: DIVISLAB | C74: 1281.65 | D74: 1288.35 | E74: 1261.70 | F74: 1241.75 | G74: 1215.10 | H74: 1308.30 | I74: 1334.95 | J74: 1354.90 | K74: 1315 | L74: 1268.4 | M74: 8.76772
A75: 66 | B75: LALPATHLAB | C75: 912.1 | D75: 912.75 | E75: 891.65 | F75: 871.20 | G75: 850.10 | H75: 933.20 | I75: 954.30 | J75: 974.75 | K75: 933.85 | L75: 892.3 | M75: 0.29327
A76: 67 | B76: DRREDDY | C76: 2394.55 | D76: 2391.32 | E76: 2353.53 | F76: 2312.52 | G76: 2274.73 | H76: 2432.33 | I76: 2470.12 | J76: 2511.13 | K76: 2429.1 | L76: 2350.3 | M76: 7.36953
A77: 68 | B77: EDELWEISS | C77: 175.9 | D77: 179.12 | E77: 166.78 | F77: 157.67 | G77: 145.33 | H77: 188.23 | I77: 200.57 | J77: 209.68 | K77: 191.45 | L77: 170 | M77: 40.90228
A78: 69 | B78: EICHERMOT | C78: 21190.45 | D78: 21611.67 | E78: 20553.88 | F78: 19917.32 | G78: 18859.53 | H78: 22248.23 | I78: 23306.02 | J78: 23942.58 | K78: 22669.45 | L78: 20975.1 | M78: 1.79115
A79: 70 | B79: EMAMILTD | C79: 446.85 | D79: 443.95 | E79: 417.90 | F79: 388.95 | G79: 362.90 | H79: 472.90 | I79: 498.95 | J79: 527.90 | K79: 470 | L79: 415 | M79: 15.67636
A80: 71 | B80: ENDURANCE | C80: 1229.45 | D80: 1240.37 | E80: 1204.43 | F80: 1179.42 | G80: 1143.48 | H80: 1265.38 | I80: 1301.32 | J80: 1326.33 | K80: 1276.3 | L80: 1215.35 | M80: 0.73255
A81: 72 | B81: ENGINERSIN | C81: 103 | D81: 106.20 | E81: 99.00 | F81: 95.00 | G81: 87.80 | H81: 110.20 | I81: 117.40 | J81: 121.40 | K81: 113.4 | L81: 102.2 | M81: 64.23794
A82: 73 | B82: EXIDEIND | C82: 248.65 | D82: 249.52 | E82: 245.03 | F82: 241.42 | G82: 236.93 | H82: 253.13 | I82: 257.62 | J82: 261.23 | K82: 254 | L82: 245.9 | M82: 17.04372
A83: 74 | B83: FEDERALBNK | C83: 68.3 | D83: 68.50 | E83: 66.90 | F83: 65.50 | G83: 63.90 | H83: 69.90 | I83: 71.50 | J83: 72.90 | K83: 70.1 | L83: 67.1 | M83: 107.82812
A84: 75 | B84: GAIL | C84: 332.05 | D84: 325.43 | E84: 301.87 | F84: 271.68 | G84: 248.12 | H84: 355.62 | I84: 379.18 | J84: 409.37 | K84: 349 | L84: 295.25 | M84: 210.45602
A85: 76 | B85: GMRINFRA | C85: 15.95 | D85: 16.12 | E85: 15.58 | F85: 15.22 | G85: 14.68 | H85: 16.48 | I85: 17.02 | J85: 17.38 | K85: 16.65 | L85: 15.75 | M85: 270.8696
A86: 77 | B86: GSKCONS | C86: 6556.75 | D86: 6531.58 | E86: 6379.17 | F86: 6201.58 | G86: 6049.17 | H86: 6709.17 | I86: 6861.58 | J86: 7039.17 | K86: 6684 | L86: 6354 | M86: 0.20869
A87: 78 | B87: GLAXO | C87: 1360.25 | D87: 1370.08 | E87: 1340.17 | F87: 1320.08 | G87: 1290.17 | H87: 1390.17 | I87: 1420.08 | J87: 1440.17 | K87: 1400 | L87: 1350 | M87: 0.22596
A88: 79 | B88: GLENMARK | C88: 585.7 | D88: 592.93 | E88: 572.87 | F88: 560.03 | G88: 539.97 | H88: 605.77 | I88: 625.83 | J88: 638.67 | K88: 613 | L88: 580.1 | M88: 8.22352
A89: 80 | B89: GODREJCP | C89: 701.2 | D89: 698.40 | E89: 682.80 | F89: 664.40 | G89: 648.80 | H89: 716.80 | I89: 732.40 | J89: 750.80 | K89: 714 | L89: 680 | M89: 24.06165
A90: 81 | B90: GODREJIND | C90: 472.25 | D90: 475.85 | E90: 465.20 | F90: 458.15 | G90: 447.50 | H90: 482.90 | I90: 493.55 | J90: 500.60 | K90: 486.5 | L90: 468.8 | M90: 4.36854
A91: 82 | B91: GRUH | C91: 274.65 | D91: 275.68 | E91: 268.82 | F91: 262.98 | G91: 256.12 | H91: 281.52 | I91: 288.38 | J91: 294.22 | K91: 282.55 | L91: 269.85 | M91: 3.80637
A92: 83 | B92: GPPL | C92: 100.75 | D92: 101.25 | E92: 99.50 | F92: 98.25 | G92: 96.50 | H92: 102.50 | I92: 104.25 | J92: 105.50 | K92: 103 | L92: 100 | M92: 0.64478
A93: 84 | B93: GSPL | C93: 176.3 | D93: 177.03 | E93: 172.47 | F93: 168.63 | G93: 164.07 | H93: 180.87 | I93: 185.43 | J93: 189.27 | K93: 181.6 | L93: 173.2 | M93: 3.73732
A94: 85 | B94: HCLTECH | C94: 1084 | D94: 1084.03 | E94: 1070.07 | F94: 1056.13 | G94: 1042.17 | H94: 1097.97 | I94: 1111.93 | J94: 1125.87 | K94: 1098 | L94: 1070.1 | M94: 14.47957
A95: 86 | B95: HDFCBANK | C95: 1965.3 | D95: 1965.15 | E95: 1940.30 | F95: 1915.30 | G95: 1890.45 | H95: 1990.15 | I95: 2015.00 | J95: 2040.00 | K95: 1990 | L95: 1940.15 | M95: 39.32295
A96: 87 | B96: HAVELLS | C96: 594.55 | D96: 595.30 | E96: 585.60 | F96: 576.65 | G96: 566.95 | H96: 604.25 | I96: 613.95 | J96: 622.90 | K96: 605 | L96: 586.35 | M96: 15.20121
A97: 88 | B97: HEROMOTOCO | C97: 2740.75 | D97: 2737.57 | E97: 2695.18 | F97: 2649.62 | G97: 2607.23 | H97: 2783.13 | I97: 2825.52 | J97: 2871.08 | K97: 2779.95 | L97: 2692 | M97: 8.11688
A98: 89 | B98: HEXAWARE | C98: 408.95 | D98: 404.37 | E98: 395.73 | F98: 382.52 | G98: 373.88 | H98: 417.58 | I98: 426.22 | J98: 439.43 | K98: 413 | L98: 391.15 | M98: 18.39671
A99: 90 | B99: HINDALCO | C99: 241.05 | D99: 243.15 | E99: 236.65 | F99: 232.25 | G99: 225.75 | H99: 247.55 | I99: 254.05 | J99: 258.45 | K99: 249.65 | L99: 238.75 | M99: 138.62891
A100: 91 | B100: HINDPETRO | C100: 165.1 | D100: 174.52 | E100: 153.58 | F100: 142.07 | G100: 121.13 | H100: 186.03 | I100: 206.97 | J100: 218.48 | K100: 195.45 | L100: 163 | M100: 869.01748
A101: 92 | B101: HINDUNILVR | C101: 1558.55 | D101: 1554.00 | E101: 1533.15 | F101: 1507.75 | G101: 1486.90 | H101: 1579.40 | I101: 1600.25 | J101: 1625.65 | K101: 1574.85 | L101: 1528.6 | M101: 16.38027
A102: 93 | B102: HINDZINC | C102: 280.9 | D102: 283.53 | E102: 276.37 | F102: 271.83 | G102: 264.67 | H102: 288.07 | I102: 295.23 | J102: 299.77 | K102: 290.7 | L102: 279 | M102: 8.10505
A103: 94 | B103: HUDCO | C103: 43.8 | D103: 43.95 | E103: 43.30 | F103: 42.80 | G103: 42.15 | H103: 44.45 | I103: 45.10 | J103: 45.60 | K103: 44.6 | L103: 43.45 | M103: 10.0133
A104: 95 | B104: HDFC | C104: 1708.65 | D104: 1722.47 | E104: 1669.93 | F104: 1631.22 | G104: 1578.68 | H104: 1761.18 | I104: 1813.72 | J104: 1852.43 | K104: 1775 | L104: 1683.75 | M104: 41.09132
A105: 96 | B105: ITC | C105: 276.5 | D105: 279.20 | E105: 272.40 | F105: 268.30 | G105: 261.50 | H105: 283.30 | I105: 290.10 | J105: 294.20 | K105: 286 | L105: 275.1 | M105: 176.22969
A106: 97 | B106: ICICIBANK | C106: 307.3 | D106: 309.50 | E106: 297.15 | F106: 287.00 | G106: 274.65 | H106: 319.65 | I106: 332.00 | J106: 342.15 | K106: 321.85 | L106: 299.35 | M106: 361.31946
A107: 98 | B107: ICICIPRULI | C107: 321.2 | D107: 320.85 | E107: 313.70 | F107: 306.20 | G107: 299.05 | H107: 328.35 | I107: 335.50 | J107: 343.00 | K107: 328 | L107: 313.35 | M107: 16.50839
A108: 99 | B108: IDBI | C108: 57.4 | D108: 57.63 | E108: 55.97 | F108: 54.53 | G108: 52.87 | H108: 59.07 | I108: 60.73 | J108: 62.17 | K108: 59.3 | L108: 56.2 | M108: 271.42321
A109: 100 | B109: IDFCBANK | C109: 35.35 | D109: 35.73 | E109: 34.62 | F109: 33.88 | G109: 32.77 | H109: 36.47 | I109: 37.58 | J109: 38.32 | K109: 36.85 | L109: 35 | M109: 123.40537
A110: 101 | B110: IDFC | C110: 38.45 | D110: 38.85 | E110: 37.40 | F110: 36.35 | G110: 34.90 | H110: 39.90 | I110: 41.35 | J110: 42.40 | K110: 40.3 | L110: 37.8 | M110: 35.1961
A111: 102 | B111: IRB | C111: 127.75 | D111: 128.83 | E111: 123.82 | F111: 119.88 | G111: 114.87 | H111: 132.77 | I111: 137.78 | J111: 141.72 | K111: 133.85 | L111: 124.9 | M111: 22.86501
A112: 103 | B112: IDEA | C112: 33.55 | D112: 33.70 | E112: 32.80 | F112: 32.05 | G112: 31.15 | H112: 34.45 | I112: 35.35 | J112: 36.10 | K112: 34.6 | L112: 32.95 | M112: 362.02967
A113: 104 | B113: IBULHSGFIN | C113: 911.7 | D113: 929.27 | E113: 868.93 | F113: 826.17 | G113: 765.83 | H113: 972.03 | I113: 1032.37 | J113: 1075.13 | K113: 989.6 | L113: 886.5 | M113: 63.45064
A114: 105 | B114: INDIANB | C114: 229.45 | D114: 235.45 | E114: 220.30 | F114: 211.15 | G114: 196.00 | H114: 244.60 | I114: 259.75 | J114: 268.90 | K114: 250.6 | L114: 226.3 | M114: 26.94318
A115: 106 | B115: INDHOTEL | C115: 124.6 | D115: 124.23 | E115: 122.72 | F115: 120.83 | G115: 119.32 | H115: 126.12 | I115: 127.63 | J115: 129.52 | K115: 125.75 | L115: 122.35 | M115: 10.33378
A116: 107 | B116: IOC | C116: 118.05 | D116: 116.53 | E116: 106.77 | F116: 95.48 | G116: 85.72 | H116: 127.82 | I116: 137.58 | J116: 148.87 | K116: 126.3 | L116: 105.25 | M116: 808.85401
A117: 108 | B117: IGL | C117: 221.7 | D117: 223.37 | E117: 215.73 | F117: 209.77 | G117: 202.13 | H117: 229.33 | I117: 236.97 | J117: 242.93 | K117: 231 | L117: 217.4 | M117: 30.49724
A118: 109 | B118: INDUSINDBK | C118: 1607.35 | D118: 1605.93 | E118: 1573.42 | F118: 1539.48 | G118: 1506.97 | H118: 1639.87 | I118: 1672.38 | J118: 1706.32 | K118: 1638.45 | L118: 1572 | M118: 43.52946
A119: 110 | B119: NAUKRI | C119: 1433.35 | D119: 1413.20 | E119: 1361.40 | F119: 1289.45 | G119: 1237.65 | H119: 1485.15 | I119: 1536.95 | J119: 1608.90 | K119: 1465 | L119: 1341.25 | M119: 0.61975
A120: 111 | B120: INFY | C120: 724.6 | D120: 721.80 | E120: 712.10 | F120: 699.60 | G120: 689.90 | H120: 734.30 | I120: 744.00 | J120: 756.50 | K120: 731.5 | L120: 709.3 | M120: 85.43578
A121: 112 | B121: INDIGO | C121: 766.85 | D121: 778.60 | E121: 744.20 | F121: 721.55 | G121: 687.15 | H121: 801.25 | I121: 835.65 | J121: 858.30 | K121: 813 | L121: 755.95 | M121: 11.81505
A122: 113 | B122: IPCALAB | C122: 643.8 | D122: 644.62 | E122: 629.33 | F122: 614.87 | G122: 599.58 | H122: 659.08 | I122: 674.37 | J122: 688.83 | K122: 659.9 | L122: 630.15 | M122: 0.51285
A123: 114 | B123: JSWENERGY | C123: 60.05 | D123: 60.95 | E123: 58.40 | F123: 56.75 | G123: 54.20 | H123: 62.60 | I123: 65.15 | J123: 66.80 | K123: 63.5 | L123: 59.3 | M123: 7.87128
A124: 115 | B124: JSWSTEEL | C124: 366.6 | D124: 368.72 | E124: 358.28 | F124: 349.97 | G124: 339.53 | H124: 377.03 | I124: 387.47 | J124: 395.78 | K124: 379.15 | L124: 360.4 | M124: 71.70165
A125: 116 | B125: JINDALSTEL | C125: 175.9 | D125: 179.78 | E125: 165.12 | F125: 154.33 | G125: 139.67 | H125: 190.57 | I125: 205.23 | J125: 216.02 | K125: 194.45 | L125: 169 | M125: 127.81374
A126: 117 | B126: JUBLFOOD | C126: 1152.05 | D126: 1135.77 | E126: 1096.68 | F126: 1041.32 | G126: 1002.23 | H126: 1191.13 | I126: 1230.22 | J126: 1285.58 | K126: 1174.85 | L126: 1080.4 | M126: 19.5629
A127: 118 | B127: JUBILANT | C127: 685.6 | D127: 690.92 | E127: 669.83 | F127: 654.07 | G127: 632.98 | H127: 706.68 | I127: 727.77 | J127: 743.53 | K127: 712 | L127: 675.15 | M127: 1.05285
A128: 119 | B128: KARURVYSYA | C128: 77.9 | D128: 78.38 | E128: 76.92 | F128: 75.93 | G128: 74.47 | H128: 79.37 | I128: 80.83 | J128: 81.82 | K128: 79.85 | L128: 77.4 | M128: 16.08924
A129: 120 | B129: KOTAKBANK | C129: 1052.2 | D129: 1060.53 | E129: 1032.12 | F129: 1012.03 | G129: 983.62 | H129: 1080.62 | I129: 1109.03 | J129: 1129.12 | K129: 1088.95 | L129: 1040.45 | M129: 37.67039
A130: 121 | B130: L&TFH | C130: 120.05 | D130: 121.08 | E130: 114.27 | F130: 108.48 | G130: 101.67 | H130: 126.87 | I130: 133.68 | J130: 139.47 | K130: 127.9 | L130: 115.3 | M130: 151.82522
A131: 122 | B131: LICHSGFIN | C131: 398.75 | D131: 399.45 | E131: 386.90 | F131: 375.05 | G131: 362.50 | H131: 411.30 | I131: 423.85 | J131: 435.70 | K131: 412 | L131: 387.6 | M131: 25.61728
A132: 123 | B132: LT | C132: 1227.4 | D132: 1236.98 | E132: 1206.27 | F132: 1185.13 | G132: 1154.42 | H132: 1258.12 | I132: 1288.83 | J132: 1309.97 | K132: 1267.7 | L132: 1215.85 | M132: 42.06887
A133: 124 | B133: LUPIN | C133: 838.75 | D133: 845.10 | E133: 823.65 | F133: 808.55 | G133: 787.10 | H133: 860.20 | I133: 881.65 | J133: 896.75 | K133: 866.55 | L133: 830 | M133: 23.51664
A134: 125 | B134: MRF | C134: 61022.2 | D134: 60974.40 | E134: 60548.80 | F134: 60075.40 | G134: 59649.80 | H134: 61447.80 | I134: 61873.40 | J134: 62346.80 | K134: 61400 | L134: 60501 | M134: 0.092
A135: 126 | B135: MGL | C135: 779.55 | D135: 781.33 | E135: 764.22 | F135: 748.88 | G135: 731.77 | H135: 796.67 | I135: 813.78 | J135: 829.12 | K135: 798.45 | L135: 766 | M135: 4.80763
A136: 127 | B136: M&MFIN | C136: 368.75 | D136: 370.47 | E136: 340.93 | F136: 313.12 | G136: 283.58 | H136: 398.28 | I136: 427.82 | J136: 455.63 | K136: 400 | L136: 342.65 | M136: 21.5931
A137: 128 | B137: M&M | C137: 769.55 | D137: 772.73 | E137: 749.72 | F137: 729.88 | G137: 706.87 | H137: 792.57 | I137: 815.58 | J137: 835.42 | K137: 795.75 | L137: 752.9 | M137: 51.57618
A138: 129 | B138: MANAPPURAM | C138: 72.8 | D138: 73.03 | E138: 71.17 | F138: 69.53 | G138: 67.67 | H138: 74.67 | I138: 76.53 | J138: 78.17 | K138: 74.9 | L138: 71.4 | M138: 26.9965
A139: 130 | B139: MRPL | C139: 64 | D139: 64.37 | E139: 61.23 | F139: 58.47 | G139: 55.33 | H139: 67.13 | I139: 70.27 | J139: 73.03 | K139: 67.5 | L139: 61.6 | M139: 60.72846
A140: 131 | B140: MARICO | C140: 307.6 | D140: 308.77 | E140: 303.08 | F140: 298.57 | G140: 292.88 | H140: 313.28 | I140: 318.97 | J140: 323.48 | K140: 314.45 | L140: 304.25 | M140: 20.85811
A141: 132 | B141: MARUTI | C141: 6904.35 | D141: 6975.40 | E141: 6730.80 | F141: 6557.25 | G141: 6312.65 | H141: 7148.95 | I141: 7393.55 | J141: 7567.10 | K141: 7220 | L141: 6801.85 | M141: 14.81376
A142: 133 | B142: MFSL | C142: 359.35 | D142: 359.77 | E142: 352.58 | F142: 345.82 | G142: 338.63 | H142: 366.53 | I142: 373.72 | J142: 380.48 | K142: 366.95 | L142: 353 | M142: 8.50391
A143: 134 | B143: MINDTREE | C143: 1040.65 | D143: 1049.98 | E143: 1023.97 | F143: 1007.28 | G143: 981.27 | H143: 1066.67 | I143: 1092.68 | J143: 1109.37 | K143: 1076 | L143: 1033.3 | M143: 7.15895
A144: 135 | B144: MOTHERSUMI | C144: 240.7 | D144: 241.40 | E144: 236.30 | F144: 231.90 | G144: 226.80 | H144: 245.80 | I144: 250.90 | J144: 255.30 | K144: 246.5 | L144: 237 | M144: 19.45793
A145: 136 | B145: MPHASIS | C145: 1120.6 | D145: 1130.35 | E145: 1105.85 | F145: 1091.10 | G145: 1066.60 | H145: 1145.10 | I145: 1169.60 | J145: 1184.35 | K145: 1154.85 | L145: 1115.6 | M145: 6.21187
A146: 137 | B146: MUTHOOTFIN | C146: 383.7 | D146: 389.23 | E146: 372.97 | F146: 362.23 | G146: 345.97 | H146: 399.97 | I146: 416.23 | J146: 426.97 | K146: 405.5 | L146: 378.5 | M146: 8.96852
A147: 138 | B147: NATCOPHARM | C147: 693.15 | D147: 702.93 | E147: 676.87 | F147: 660.58 | G147: 634.52 | H147: 719.22 | I147: 745.28 | J147: 761.57 | K147: 729 | L147: 686.65 | M147: 2.09406
A148: 139 | B148: NBCC | C148: 53.5 | D148: 54.53 | E148: 51.87 | F148: 50.23 | G148: 47.57 | H148: 56.17 | I148: 58.83 | J148: 60.47 | K148: 57.2 | L148: 52.9 | M148: 90.2215
A149: 140 | B149: NHPC | C149: 23.2 | D149: 23.37 | E149: 22.88 | F149: 22.57 | G149: 22.08 | H149: 23.68 | I149: 24.17 | J149: 24.48 | K149: 23.85 | L149: 23.05 | M149: 51.42104
A150: 141 | B150: NMDC | C150: 109.35 | D150: 110.65 | E150: 106.25 | F150: 103.15 | G150: 98.75 | H150: 113.75 | I150: 118.15 | J150: 121.25 | K150: 115.05 | L150: 107.55 | M150: 48.24633
A151: 142 | B151: NTPC | C151: 162.9 | D151: 163.78 | E151: 159.67 | F151: 156.43 | G151: 152.32 | H151: 167.02 | I151: 171.13 | J151: 174.37 | K151: 167.9 | L151: 160.55 | M151: 110.7745
A152: 143 | B152: NATIONALUM | C152: 65.1 | D152: 66.13 | E152: 62.82 | F152: 60.53 | G152: 57.22 | H152: 68.42 | I152: 71.73 | J152: 74.02 | K152: 69.45 | L152: 63.85 | M152: 112.43726
A153: 144 | B153: OBEROIRLTY | C153: 390 | D153: 379.60 | E153: 361.75 | F153: 333.50 | G153: 315.65 | H153: 407.85 | I153: 425.70 | J153: 453.95 | K153: 397.45 | L153: 351.35 | M153: 13.57452
A154: 145 | B154: ONGC | C154: 147.05 | D154: 150.90 | E154: 141.75 | F154: 136.45 | G154: 127.30 | H154: 156.20 | I154: 165.35 | J154: 170.65 | K154: 160.05 | L154: 145.6 | M154: 352.55036
A155: 146 | B155: OIL | C155: 186.9 | D155: 188.77 | E155: 179.13 | F155: 171.37 | G155: 161.73 | H155: 196.53 | I155: 206.17 | J155: 213.93 | K155: 198.4 | L155: 181 | M155: 29.38441
A156: 147 | B156: OFSS | C156: 4019.9 | D156: 4016.32 | E156: 3949.58 | F156: 3879.27 | G156: 3812.53 | H156: 4086.63 | I156: 4153.37 | J156: 4223.68 | K156: 4083.05 | L156: 3946 | M156: 1.15225
A157: 148 | B157: PCJEWELLER | C157: 59.7 | D157: 59.57 | E157: 56.23 | F157: 52.77 | G157: 49.43 | H157: 63.03 | I157: 66.37 | J157: 69.83 | K157: 62.9 | L157: 56.1 | M157: 248.76056
A158: 149 | B158: PIIND | C158: 701.5 | D158: 706.42 | E158: 695.08 | F158: 688.67 | G158: 677.33 | H158: 712.83 | I158: 724.17 | J158: 730.58 | K158: 717.75 | L158: 700 | M158: 0.35386
A159: 150 | B159: PNBHOUSING | C159: 852.6 | D159: 866.72 | E159: 830.93 | F159: 809.27 | G159: 773.48 | H159: 888.38 | I159: 924.17 | J159: 945.83 | K159: 902.5 | L159: 845.05 | M159: 5.6623
A160: 151 | B160: PAGEIND | C160: 29545.5 | D160: 29895.17 | E160: 28900.33 | F160: 28255.17 | G160: 27260.33 | H160: 30540.33 | I160: 31535.17 | J160: 32180.33 | K160: 30890 | L160: 29250 | M160: 0.35027
A161: 152 | B161: PETRONET | C161: 213.7 | D161: 212.07 | E161: 206.63 | F161: 199.57 | G161: 194.13 | H161: 219.13 | I161: 224.57 | J161: 231.63 | K161: 217.5 | L161: 205 | M161: 28.59601
A162: 153 | B162: PIDILITIND | C162: 966.85 | D162: 972.58 | E162: 953.17 | F162: 939.48 | G162: 920.07 | H162: 986.27 | I162: 1005.68 | J162: 1019.37 | K162: 992 | L162: 958.9 | M162: 5.49453
A163: 154 | B163: PEL | C163: 2216.05 | D163: 2235.82 | E163: 2151.23 | F163: 2086.42 | G163: 2001.83 | H163: 2300.63 | I163: 2385.22 | J163: 2450.03 | K163: 2320.4 | L163: 2171 | M163: 5.46032
A164: 155 | B164: PFC | C164: 75.85 | D164: 76.57 | E164: 74.83 | F164: 73.82 | G164: 72.08 | H164: 77.58 | I164: 79.32 | J164: 80.33 | K164: 78.3 | L164: 75.55 | M164: 70.18035
A165: 156 | B165: POWERGRID | C165: 187.3 | D165: 188.40 | E165: 185.25 | F165: 183.20 | G165: 180.05 | H165: 190.45 | I165: 193.60 | J165: 195.65 | K165: 191.55 | L165: 186.35 | M165: 39.57511
A166: 157 | B166: PRESTIGE | C166: 196.15 | D166: 195.82 | E166: 192.78 | F166: 189.42 | G166: 186.38 | H166: 199.18 | I166: 202.22 | J166: 205.58 | K166: 198.85 | L166: 192.45 | M166: 1.04502
A167: 158 | B167: PGHH | C167: 9347.7 | D167: 9324.57 | E167: 9224.13 | F167: 9100.57 | G167: 9000.13 | H167: 9448.13 | I167: 9548.57 | J167: 9672.13 | K167: 9425 | L167: 9201 | M167: 0.01934
A168: 159 | B168: PNB | C168: 63.85 | D168: 64.40 | E168: 62.45 | F168: 61.05 | G168: 59.10 | H168: 65.80 | I168: 67.75 | J168: 69.15 | K168: 66.35 | L168: 63 | M168: 318.72123
A169: 160 | B169: RBLBANK | C169: 490.25 | D169: 497.18 | E169: 478.07 | F169: 465.88 | G169: 446.77 | H169: 509.37 | I169: 528.48 | J169: 540.67 | K169: 516.3 | L169: 485 | M169: 19.15931
A170: 161 | B170: RAJESHEXPO | C170: 682.55 | D170: 710.90 | E170: 637.00 | F170: 591.45 | G170: 517.55 | H170: 756.45 | I170: 830.35 | J170: 875.90 | K170: 784.8 | L170: 665.35 | M170: 5.11157
A171: 162 | B171: RELCAPITAL | C171: 258.9 | D171: 262.18 | E171: 249.82 | F171: 240.73 | G171: 228.37 | H171: 271.27 | I171: 283.63 | J171: 292.72 | K171: 274.55 | L171: 253.1 | M171: 65.27413
A172: 163 | B172: RCOM | C172: 11.45 | D172: 11.63 | E172: 11.12 | F172: 10.78 | G172: 10.27 | H172: 11.97 | I172: 12.48 | J172: 12.82 | K172: 12.15 | L172: 11.3 | M172: 569.41722
A173: 164 | B173: RELIANCE | C173: 1048.85 | D173: 1067.43 | E173: 1019.57 | F173: 990.28 | G173: 942.42 | H173: 1096.72 | I173: 1144.58 | J173: 1173.87 | K173: 1115.3 | L173: 1038.15 | M173: 219.4319
A174: 165 | B174: RELINFRA | C174: 289.6 | D174: 292.78 | E174: 281.57 | F174: 273.53 | G174: 262.32 | H174: 300.82 | I174: 312.03 | J174: 320.07 | K174: 304 | L174: 284.75 | M174: 35.71116
A175: 166 | B175: RPOWER | C175: 25.95 | D175: 26.43 | E175: 25.22 | F175: 24.48 | G175: 23.27 | H175: 27.17 | I175: 28.38 | J175: 29.12 | K175: 27.65 | L175: 25.7 | M175: 81.7759
A176: 167 | B176: RECLTD | C176: 100.9 | D176: 102.05 | E176: 98.85 | F176: 96.80 | G176: 93.60 | H176: 104.10 | I176: 107.30 | J176: 109.35 | K176: 105.25 | L176: 100 | M176: 72.34922
A177: 168 | B177: SRF | C177: 1700.1 | D177: 1709.97 | E177: 1670.13 | F177: 1640.17 | G177: 1600.33 | H177: 1739.93 | I177: 1779.77 | J177: 1809.73 | K177: 1749.8 | L177: 1680 | M177: 2.5522
A178: 169 | B178: SHREECEM | C178: 15717.65 | D178: 15923.05 | E178: 15346.10 | F178: 14974.55 | G178: 14397.60 | H178: 16294.60 | I178: 16871.55 | J178: 17243.10 | K178: 16500 | L178: 15551.5 | M178: 0.18344
A179: 170 | B179: SRTRANSFIN | C179: 1044 | D179: 1055.33 | E179: 1013.67 | F179: 983.33 | G179: 941.67 | H179: 1085.67 | I179: 1127.33 | J179: 1157.67 | K179: 1097 | L179: 1025 | M179: 17.59166
A180: 171 | B180: SIEMENS | C180: 947.35 | D180: 948.47 | E180: 932.38 | F180: 917.42 | G180: 901.33 | H180: 963.43 | I180: 979.52 | J180: 994.48 | K180: 964.55 | L180: 933.5 | M180: 1.96498
A181: 172 | B181: SBIN | C181: 258.35 | D181: 261.78 | E181: 252.57 | F181: 246.78 | G181: 237.57 | H181: 267.57 | I181: 276.78 | J181: 282.57 | K181: 271 | L181: 256 | M181: 366.28643
A182: 173 | B182: SAIL | C182: 65.9 | D182: 66.95 | E182: 64.05 | F182: 62.20 | G182: 59.30 | H182: 68.80 | I182: 71.70 | J182: 73.55 | K182: 69.85 | L182: 65.1 | M182: 118.08545
A183: 174 | B183: SPARC | C183: 319.15 | D183: 323.73 | E183: 308.67 | F183: 298.18 | G183: 283.12 | H183: 334.22 | I183: 349.28 | J183: 359.77 | K183: 338.8 | L183: 313.25 | M183: 3.93397
A184: 175 | B184: SUNPHARMA | C184: 597.95 | D184: 601.78 | E184: 587.22 | F184: 576.48 | G184: 561.92 | H184: 612.52 | I184: 627.08 | J184: 637.82 | K184: 616.35 | L184: 591.05 | M184: 68.04502
A185: 176 | B185: SUNTV | C185: 610.55 | D185: 617.35 | E185: 595.20 | F185: 579.85 | G185: 557.70 | H185: 632.70 | I185: 654.85 | J185: 670.20 | K185: 639.5 | L185: 602 | M185: 18.17267
A186: 177 | B186: SUZLON | C186: 5.5 | D186: 5.57 | E186: 5.28 | F186: 5.07 | G186: 4.78 | H186: 5.78 | I186: 6.07 | J186: 6.28 | K186: 5.85 | L186: 5.35 | M186: 358.08862
A187: 178 | B187: SYNDIBANK | C187: 31.1 | D187: 31.38 | E187: 30.32 | F187: 29.53 | G187: 28.47 | H187: 32.17 | I187: 33.23 | J187: 34.02 | K187: 32.45 | L187: 30.6 | M187: 28.81533
A188: 179 | B188: SYNGENE | C188: 578.05 | D188: 583.90 | E188: 569.15 | F188: 560.25 | G188: 545.50 | H188: 592.80 | I188: 607.55 | J188: 616.45 | K188: 598.65 | L188: 575 | M188: 1.07613
A189: 180 | B189: TV18BRDCST | C189: 33.5 | D189: 33.82 | E189: 32.43 | F189: 31.37 | G189: 29.98 | H189: 34.88 | I189: 36.27 | J189: 37.33 | K189: 35.2 | L189: 32.75 | M189: 56.97582
A190: 181 | B190: TVSMOTOR | C190: 503.95 | D190: 508.77 | E190: 492.78 | F190: 481.62 | G190: 465.63 | H190: 519.93 | I190: 535.92 | J190: 547.08 | K190: 524.75 | L190: 497.6 | M190: 18.30748
A191: 182 | B191: TATACHEM | C191: 655.55 | D191: 655.52 | E191: 646.08 | F191: 636.62 | G191: 627.18 | H191: 664.98 | I191: 674.42 | J191: 683.88 | K191: 664.95 | L191: 646.05 | M191: 3.89183
A192: 183 | B192: TATACOMM | C192: 473.1 | D192: 474.10 | E192: 465.55 | F192: 458.00 | G192: 449.45 | H192: 481.65 | I192: 490.20 | J192: 497.75 | K192: 482.65 | L192: 466.55 | M192: 1.96403
A193: 184 | B193: TCS | C193: 2102.65 | D193: 2081.18 | E193: 2042.37 | F193: 1982.08 | G193: 1943.27 | H193: 2141.47 | I193: 2180.28 | J193: 2240.57 | K193: 2120 | L193: 2020.9 | M193: 34.17624
A194: 185 | B194: TATAGLOBAL | C194: 209.2 | D194: 211.23 | E194: 203.87 | F194: 198.53 | G194: 191.17 | H194: 216.57 | I194: 223.93 | J194: 229.27 | K194: 218.6 | L194: 205.9 | M194: 35.19515
A195: 186 | B195: TATAMTRDVR | C195: 117.35 | D195: 118.70 | E195: 114.90 | F195: 112.45 | G195: 108.65 | H195: 121.15 | I195: 124.95 | J195: 127.40 | K195: 122.5 | L195: 116.25 | M195: 24.53938
A196: 187 | B196: TATAMOTORS | C196: 216.25 | D196: 219.15 | E196: 211.85 | F196: 207.45 | G196: 200.15 | H196: 223.55 | I196: 230.85 | J196: 235.25 | K196: 226.45 | L196: 214.75 | M196: 104.71026
A197: 188 | B197: TATAPOWER | C197: 62.85 | D197: 64.22 | E197: 60.93 | F197: 59.02 | G197: 55.73 | H197: 66.13 | I197: 69.42 | J197: 71.33 | K197: 67.5 | L197: 62.3 | M197: 37.5174
A198: 189 | B198: TATASTEEL | C198: 568 | D198: 572.10 | E198: 558.20 | F198: 548.40 | G198: 534.50 | H198: 581.90 | I198: 595.80 | J198: 605.60 | K198: 586 | L198: 562.3 | M198: 78.68967
A199: 190 | B199: TECHM | C199: 714.5 | D199: 711.30 | E199: 698.70 | F199: 682.90 | G199: 670.30 | H199: 727.10 | I199: 739.70 | J199: 755.50 | K199: 723.9 | L199: 695.5 | M199: 47.69105
A200: 191 | B200: RAMCOCEM | C200: 625.25 | D200: 628.42 | E200: 616.83 | F200: 608.42 | G200: 596.83 | H200: 636.83 | I200: 648.42 | J200: 656.83 | K200: 640 | L200: 620 | M200: 2.77391
A201: 192 | B201: TITAN | C201: 792.1 | D201: 797.27 | E201: 778.83 | F201: 765.57 | G201: 747.13 | H201: 810.53 | I201: 828.97 | J201: 842.23 | K201: 815.7 | L201: 784 | M201: 73.98167
A202: 193 | B202: TORNTPHARM | C202: 1610.25 | D202: 1617.08 | E202: 1584.17 | F202: 1558.08 | G202: 1525.17 | H202: 1643.17 | I202: 1676.08 | J202: 1702.17 | K202: 1650 | L202: 1591 | M202: 1.24941
A203: 194 | B203: TORNTPOWER | C203: 224.35 | D203: 223.75 | E203: 219.60 | F203: 214.85 | G203: 210.70 | H203: 228.50 | I203: 232.65 | J203: 237.40 | K203: 227.9 | L203: 219 | M203: 11.76895
A204: 195 | B204: UPL | C204: 596.65 | D204: 606.42 | E204: 580.88 | F204: 565.12 | G204: 539.58 | H204: 622.18 | I204: 647.72 | J204: 663.48 | K204: 631.95 | L204: 590.65 | M204: 25.54877
A205: 196 | B205: ULTRACEMCO | C205: 3793.8 | D205: 3829.05 | E205: 3733.25 | F205: 3672.70 | G205: 3576.90 | H205: 3889.60 | I205: 3985.40 | J205: 4045.95 | K205: 3924.85 | L205: 3768.5 | M205: 3.80282
... 30 more rows

Sheet MidCap Intra
L5: Back To Main Page
A6: FOR INTRA DAY TRADING | K6: =Main!B10 -> 2018-10-08
A9: Sr.no | B9: Scrip | C9: CLOSE RATE | D9: Pivot Point | E9: Supports | H9: Resistances
C10: Point | E10: S1 | F10: S2 | G10: S3 | H10: R1 | I10: R2 | J10: R3 | K10: HIGH | L10: LOW | M10: Total Trade Quanity in Lakhs
A11: 1 | B11: 3MINDIA | C11: 21917.2 | D11: 22074.73 | E11: 21452.47 | F11: 20987.73 | G11: 20365.47 | H11: 22539.47 | I11: 23161.73 | J11: 23626.47 | K11: 22697 | L11: 21610 | M11: 0.01463
A12: 2 | B12: 8KMILES | C12: 155.95 | D12: 155.95 | E12: 155.95 | F12: 155.95 | G12: 155.95 | H12: 155.95 | I12: 155.95 | J12: 155.95 | K12: 155.95 | L12: 155.95 | M12: 1.28563
A13: 3 | B13: AARTIIND | C13: 1199.55 | D13: 1196.12 | E13: 1183.43 | F13: 1167.32 | G13: 1154.63 | H13: 1212.23 | I13: 1224.92 | J13: 1241.03 | K13: 1208.8 | L13: 1180 | M13: 0.27697
A14: 4 | B14: ABAN | C14: 76.95 | D14: 77.90 | E14: 75.05 | F14: 73.15 | G14: 70.30 | H14: 79.80 | I14: 82.65 | J14: 84.55 | K14: 80.75 | L14: 76 | M14: 5.31642
A15: 5 | B15: ABB | C15: 1374.75 | D15: 1367.00 | E15: 1340.75 | F15: 1306.75 | G15: 1280.50 | H15: 1401.00 | I15: 1427.25 | J15: 1461.25 | K15: 1393.25 | L15: 1333 | M15: 1.03463
A16: 6 | B16: ABCAPITAL | C16: 107.8 | D16: 108.52 | E16: 105.58 | F16: 103.37 | G16: 100.43 | H16: 110.73 | I16: 113.67 | J16: 115.88 | K16: 111.45 | L16: 106.3 | M16: 15.16268
A17: 7 | B17: ABFRL | C17: 180.9 | D17: 181.48 | E17: 177.57 | F17: 174.23 | G17: 170.32 | H17: 184.82 | I17: 188.73 | J17: 192.07 | K17: 185.4 | L17: 178.15 | M17: 7.46959
A18: 8 | B18: ACC | C18: 1478.6 | D18: 1487.58 | E18: 1456.17 | F18: 1433.73 | G18: 1402.32 | H18: 1510.02 | I18: 1541.43 | J18: 1563.87 | K18: 1519 | L18: 1465.15 | M18: 8.97662
A19: 9 | B19: ADANIPORTS | C19: 301.8 | D19: 306.07 | E19: 293.73 | F19: 285.67 | G19: 273.33 | H19: 314.13 | I19: 326.47 | J19: 334.53 | K19: 318.4 | L19: 298 | M19: 71.77862
A20: 10 | B20: ADANIPOWER | C20: 23.45 | D20: 23.75 | E20: 22.60 | F20: 21.75 | G20: 20.60 | H20: 24.60 | I20: 25.75 | J20: 26.60 | K20: 24.9 | L20: 22.9 | M20: 156.16716
A21: 11 | B21: ADANITRANS | C21: 148.9 | D21: 149.27 | E21: 144.83 | F21: 140.77 | G21: 136.33 | H21: 153.33 | I21: 157.77 | J21: 161.83 | K21: 153.7 | L21: 145.2 | M21: 0.4747
A22: 12 | B22: ADVENZYMES | C22: 175.2 | D22: 176.78 | E22: 169.82 | F22: 164.43 | G22: 157.47 | H22: 182.17 | I22: 189.13 | J22: 194.52 | K22: 183.75 | L22: 171.4 | M22: 0.77088
A23: 13 | B23: AEGISCHEM | C23: 185.05 | D23: 186.47 | E23: 180.13 | F23: 175.22 | G23: 168.88 | H23: 191.38 | I23: 197.72 | J23: 202.63 | K23: 192.8 | L23: 181.55 | M23: 0.92526
A24: 14 | B24: AIAENG | C24: 1697.95 | D24: 1700.48 | E24: 1684.47 | F24: 1670.98 | G24: 1654.97 | H24: 1713.97 | I24: 1729.98 | J24: 1743.47 | K24: 1716.5 | L24: 1687 | M24: 0.41832
A25: 15 | B25: AJANTPHARM | C25: 1019.5 | D25: 1015.50 | E25: 999.00 | F25: 978.50 | G25: 962.00 | H25: 1036.00 | I25: 1052.50 | J25: 1073.00 | K25: 1032 | L25: 995 | M25: 2.8819
A26: 16 | B26: AKZOINDIA | C26: 1561.85 | D26: 1568.45 | E26: 1544.95 | F26: 1528.05 | G26: 1504.55 | H26: 1585.35 | I26: 1608.85 | J26: 1625.75 | K26: 1591.95 | L26: 1551.55 | M26: 0.0335
A27: 17 | B27: ALBK | C27: 35.35 | D27: 35.53 | E27: 34.87 | F27: 34.38 | G27: 33.72 | H27: 36.02 | I27: 36.68 | J27: 37.17 | K27: 36.2 | L27: 35.05 | M27: 28.97728
A28: 18 | B28: ALKEM | C28: 2038.9 | D28: 2042.03 | E28: 2020.97 | F28: 2003.03 | G28: 1981.97 | H28: 2059.97 | I28: 2081.03 | J28: 2098.97 | K28: 2063.1 | L28: 2024.1 | M28: 0.46286
A29: 19 | B29: ALLCARGO | C29: 96.35 | D29: 97.53 | E29: 94.22 | F29: 92.08 | G29: 88.77 | H29: 99.67 | I29: 102.98 | J29: 105.12 | K29: 100.85 | L29: 95.4 | M29: 4.6707
A30: 20 | B30: AMARAJABAT | C30: 719.35 | D30: 723.83 | E30: 707.97 | F30: 696.58 | G30: 680.72 | H30: 735.22 | I30: 751.08 | J30: 762.47 | K30: 739.7 | L30: 712.45 | M30: 4.49889
A31: 21 | B31: AMBUJACEM | C31: 208.45 | D31: 209.90 | E31: 205.55 | F31: 202.65 | G31: 198.30 | H31: 212.80 | I31: 217.15 | J31: 220.05 | K31: 214.25 | L31: 207 | M31: 30.07099
A32: 22 | B32: ANDHRABANK | C32: 26.85 | D32: 27.08 | E32: 26.37 | F32: 25.88 | G32: 25.17 | H32: 27.57 | I32: 28.28 | J32: 28.77 | K32: 27.8 | L32: 26.6 | M32: 16.35907
A33: 23 | B33: APLAPOLLO | C33: 1271.55 | D33: 1252.07 | E33: 1222.13 | F33: 1172.72 | G33: 1142.78 | H33: 1301.48 | I33: 1331.42 | J33: 1380.83 | K33: 1282 | L33: 1202.65 | M33: 0.24985
A34: 24 | B34: APLLTD | C34: 594.85 | D34: 602.95 | E34: 583.90 | F34: 572.95 | G34: 553.90 | H34: 613.90 | I34: 632.95 | J34: 643.90 | K34: 622 | L34: 592 | M34: 1.16814
A35: 25 | B35: APOLLOHOSP | C35: 1057.2 | D35: 1055.40 | E35: 1036.80 | F35: 1016.40 | G35: 997.80 | H35: 1075.80 | I35: 1094.40 | J35: 1114.80 | K35: 1074 | L35: 1035 | M35: 3.87404
A36: 26 | B36: APOLLOTYRE | C36: 198 | D36: 198.73 | E36: 193.27 | F36: 188.53 | G36: 183.07 | H36: 203.47 | I36: 208.93 | J36: 213.67 | K36: 204.2 | L36: 194 | M36: 29.51857
A37: 27 | B37: ARVIND | C37: 313.8 | D37: 315.20 | E37: 307.60 | F37: 301.40 | G37: 293.80 | H37: 321.40 | I37: 329.00 | J37: 335.20 | K37: 322.8 | L37: 309 | M37: 13.58206
A38: 28 | B38: ASAHIINDIA | C38: 295.2 | D38: 299.07 | E38: 288.13 | F38: 281.07 | G38: 270.13 | H38: 306.13 | I38: 317.07 | J38: 324.13 | K38: 310 | L38: 292 | M38: 0.32645
A39: 29 | B39: ASHOKA | C39: 103.5 | D39: 102.35 | E39: 95.75 | F39: 88.00 | G39: 81.40 | H39: 110.10 | I39: 116.70 | J39: 124.45 | K39: 108.95 | L39: 94.6 | M39: 7.41869
A40: 30 | B40: ASHOKLEY | C40: 107.75 | D40: 109.12 | E40: 100.28 | F40: 92.82 | G40: 83.98 | H40: 116.58 | I40: 125.42 | J40: 132.88 | K40: 117.95 | L40: 101.65 | M40: 311.57884
A41: 31 | B41: ASIANPAINT | C41: 1209.5 | D41: 1213.78 | E41: 1187.57 | F41: 1165.63 | G41: 1139.42 | H41: 1235.72 | I41: 1261.93 | J41: 1283.87 | K41: 1240 | L41: 1191.85 | M41: 13.44685
A42: 32 | B42: ASTRAL | C42: 842.2 | D42: 844.72 | E42: 829.43 | F42: 816.67 | G42: 801.38 | H42: 857.48 | I42: 872.77 | J42: 885.53 | K42: 860 | L42: 831.95 | M42: 0.88316
A43: 33 | B43: ATUL | C43: 3033.35 | D43: 3019.15 | E43: 2844.30 | F43: 2655.25 | G43: 2480.40 | H43: 3208.20 | I43: 3383.05 | J43: 3572.10 | K43: 3194 | L43: 2830.1 | M43: 0.92504
A44: 34 | B44: AUBANK | C44: 550.7 | D44: 555.25 | E44: 544.50 | F44: 538.30 | G44: 527.55 | H44: 561.45 | I44: 572.20 | J44: 578.40 | K44: 566 | L44: 549.05 | M44: 2.48164
A45: 35 | B45: AUROPHARMA | C45: 744.25 | D45: 747.23 | E45: 732.07 | F45: 719.88 | G45: 704.72 | H45: 759.42 | I45: 774.58 | J45: 786.77 | K45: 762.4 | L45: 735.05 | M45: 21.70891
A46: 36 | B46: AVANTIFEED | C46: 365 | D46: 364.22 | E46: 356.78 | F46: 348.57 | G46: 341.13 | H46: 372.43 | I46: 379.87 | J46: 388.08 | K46: 371.65 | L46: 356 | M46: 5.22907
A47: 37 | B47: AXISBANK | C47: 568.5 | D47: 574.67 | E47: 558.83 | F47: 549.17 | G47: 533.33 | H47: 584.33 | I47: 600.17 | J47: 609.83 | K47: 590.5 | L47: 565 | M47: 98.6001
A48: 38 | B48: BAJAJ-AUTO | C48: 2543.05 | D48: 2566.02 | E48: 2497.03 | F48: 2451.02 | G48: 2382.03 | H48: 2612.03 | I48: 2681.02 | J48: 2727.03 | K48: 2635 | L48: 2520 | M48: 9.47343
A49: 39 | B49: BAJAJCORP | C49: 396.8 | D49: 395.78 | E49: 390.57 | F49: 384.33 | G49: 379.12 | H49: 402.02 | I49: 407.23 | J49: 413.47 | K49: 401 | L49: 389.55 | M49: 0.29056
A50: 40 | B50: BAJAJELEC | C50: 488.75 | D50: 484.58 | E50: 474.17 | F50: 459.58 | G50: 449.17 | H50: 499.17 | I50: 509.58 | J50: 524.17 | K50: 495 | L50: 470 | M50: 3.66736
A51: 41 | B51: BAJAJFINSV | C51: 5375.65 | D51: 5439.85 | E51: 5158.70 | F51: 4941.75 | G51: 4660.60 | H51: 5656.80 | I51: 5937.95 | J51: 6154.90 | K51: 5721 | L51: 5222.9 | M51: 2.52881
A52: 42 | B52: BAJAJHIND | C52: 8.75 | D52: 8.85 | E52: 8.55 | F52: 8.35 | G52: 8.05 | H52: 9.05 | I52: 9.35 | J52: 9.55 | K52: 9.15 | L52: 8.65 | M52: 39.76607
A53: 43 | B53: BAJAJHLDNG | C53: 2703.05 | D53: 2754.22 | E53: 2548.48 | F53: 2393.92 | G53: 2188.18 | H53: 2908.78 | I53: 3114.52 | J53: 3269.08 | K53: 2959.95 | L53: 2599.65 | M53: 0.17445
A54: 44 | B54: BAJFINANCE | C54: 2023.3 | D54: 2067.05 | E54: 1919.50 | F54: 1815.70 | G54: 1668.15 | H54: 2170.85 | I54: 2318.40 | J54: 2422.20 | K54: 2214.6 | L54: 1963.25 | M54: 34.70441
A55: 45 | B55: BALKRISIND | C55: 1002.35 | D55: 1016.82 | E55: 979.53 | F55: 956.72 | G55: 919.43 | H55: 1039.63 | I55: 1076.92 | J55: 1099.73 | K55: 1054.1 | L55: 994 | M55: 8.09561
A56: 46 | B56: BALLARPUR | C56: 6.55 | D56: 6.63 | E56: 6.42 | F56: 6.28 | G56: 6.07 | H56: 6.77 | I56: 6.98 | J56: 7.12 | K56: 6.85 | L56: 6.5 | M56: 3.50565
A57: 47 | B57: BALMLAWRIE | C57: 182.35 | D57: 182.88 | E57: 179.87 | F57: 177.38 | G57: 174.37 | H57: 185.37 | I57: 188.38 | J57: 190.87 | K57: 185.9 | L57: 180.4 | M57: 0.91957
A58: 48 | B58: BALRAMCHIN | C58: 75.85 | D58: 76.57 | E58: 73.23 | F58: 70.62 | G58: 67.28 | H58: 79.18 | I58: 82.52 | J58: 85.13 | K58: 79.9 | L58: 73.95 | M58: 80.47167
A59: 49 | B59: BANKBARODA | C59: 99.1 | D59: 100.28 | E59: 96.37 | F59: 93.63 | G59: 89.72 | H59: 103.02 | I59: 106.93 | J59: 109.67 | K59: 104.2 | L59: 97.55 | M59: 382.98074
A60: 50 | B60: BANKINDIA | C60: 76.8 | D60: 77.42 | E60: 74.88 | F60: 72.97 | G60: 70.43 | H60: 79.33 | I60: 81.87 | J60: 83.78 | K60: 79.95 | L60: 75.5 | M60: 76.98118
A61: 51 | B61: BASF | C61: 1663.95 | D61: 1686.30 | E61: 1627.65 | F61: 1591.35 | G61: 1532.70 | H61: 1722.60 | I61: 1781.25 | J61: 1817.55 | K61: 1744.95 | L61: 1650 | M61: 0.07528
A62: 52 | B62: BATAINDIA | C62: 860.3 | D62: 863.13 | E62: 849.77 | F62: 839.23 | G62: 825.87 | H62: 873.67 | I62: 887.03 | J62: 897.57 | K62: 876.5 | L62: 852.6 | M62: 12.10299
A63: 53 | B63: BBTC | C63: 1182.4 | D63: 1202.20 | E63: 1150.40 | F63: 1118.40 | G63: 1066.60 | H63: 1234.20 | I63: 1286.00 | J63: 1318.00 | K63: 1254 | L63: 1170.2 | M63: 3.43757
A64: 54 | B64: BEL | C64: 80.6 | D64: 81.15 | E64: 79.05 | F64: 77.50 | G64: 75.40 | H64: 82.70 | I64: 84.80 | J64: 86.35 | K64: 83.25 | L64: 79.6 | M64: 69.81811
A65: 55 | B65: BEML | C65: 575.9 | D65: 585.63 | E65: 546.27 | F65: 516.63 | G65: 477.27 | H65: 615.27 | I65: 654.63 | J65: 684.27 | K65: 625 | L65: 556 | M65: 11.53412
A66: 56 | B66: BERGEPAINT | C66: 267.9 | D66: 269.47 | E66: 263.98 | F66: 260.07 | G66: 254.58 | H66: 273.38 | I66: 278.87 | J66: 282.78 | K66: 274.95 | L66: 265.55 | M66: 8.46114
A67: 57 | B67: BFUTILITIE | C67: 204.1 | D67: 207.45 | E67: 198.70 | F67: 193.30 | G67: 184.55 | H67: 212.85 | I67: 221.60 | J67: 227.00 | K67: 216.2 | L67: 202.05 | M67: 2.52268
A68: 58 | B68: BGRENERGY | C68: 54.9 | D68: 55.08 | E68: 53.77 | F68: 52.63 | G68: 51.32 | H68: 56.22 | I68: 57.53 | J68: 58.67 | K68: 56.4 | L68: 53.95 | M68: 0.78132
A69: 59 | B69: BHARATFIN | C69: 997.7 | D69: 998.42 | E69: 980.83 | F69: 963.97 | G69: 946.38 | H69: 1015.28 | I69: 1032.87 | J69: 1049.73 | K69: 1016 | L69: 981.55 | M69: 9.64923
A70: 60 | B70: BHARATFORG | C70: 576.95 | D70: 582.65 | E70: 569.30 | F70: 561.65 | G70: 548.30 | H70: 590.30 | I70: 603.65 | J70: 611.30 | K70: 596 | L70: 575 | M70: 9.02066
A71: 61 | B71: BHARTIARTL | C71: 298.6 | D71: 302.13 | E71: 288.37 | F71: 278.13 | G71: 264.37 | H71: 312.37 | I71: 326.13 | J71: 336.37 | K71: 315.9 | L71: 291.9 | M71: 71.68719
A72: 62 | B72: BHEL | C72: 70.4 | D72: 71.38 | E72: 68.77 | F72: 67.13 | G72: 64.52 | H72: 73.02 | I72: 75.63 | J72: 77.27 | K72: 74 | L72: 69.75 | M72: 93.85085
A73: 63 | B73: BHUSANSTL | C73: 27.8 | D73: 27.80 | E73: 27.80 | F73: 27.80 | G73: 27.80 | H73: 27.80 | I73: 27.80 | J73: 27.80 | K73: 27.8 | L73: 27.8 | M73: 1.79853
A74: 64 | B74: BIOCON | C74: 611.95 | D74: 617.98 | E74: 598.77 | F74: 585.58 | G74: 566.37 | H74: 631.17 | I74: 650.38 | J74: 663.57 | K74: 637.2 | L74: 604.8 | M74: 27.45902
A75: 65 | B75: BIRLACORPN | C75: 603.2 | D75: 609.40 | E75: 589.00 | F75: 574.80 | G75: 554.40 | H75: 623.60 | I75: 644.00 | J75: 658.20 | K75: 629.8 | L75: 595.2 | M75: 0.73749
A76: 66 | B76: BLISSGVS | C76: 166.3 | D76: 167.87 | E76: 163.48 | F76: 160.67 | G76: 156.28 | H76: 170.68 | I76: 175.07 | J76: 177.88 | K76: 172.25 | L76: 165.05 | M76: 0.79158
A77: 67 | B77: BLUEDART | C77: 2892.25 | D77: 2918.73 | E77: 2855.52 | F77: 2818.78 | G77: 2755.57 | H77: 2955.47 | I77: 3018.68 | J77: 3055.42 | K77: 2981.95 | L77: 2882 | M77: 0.11873
A78: 68 | B78: BLUESTARCO | C78: 573.95 | D78: 572.12 | E78: 563.23 | F78: 552.52 | G78: 543.63 | H78: 582.83 | I78: 591.72 | J78: 602.43 | K78: 581 | L78: 561.4 | M78: 0.27779
A79: 69 | B79: BOMDYEING | C79: 136.75 | D79: 136.75 | E79: 136.75 | F79: 136.75 | G79: 136.75 | H79: 136.75 | I79: 136.75 | J79: 136.75 | K79: 136.75 | L79: 136.75 | M79: 0.18516
A80: 70 | B80: BOSCHLTD | C80: 18813.9 | D80: 18887.68 | E80: 18625.37 | F80: 18436.83 | G80: 18174.52 | H80: 19076.22 | I80: 19338.53 | J80: 19527.07 | K80: 19150 | L80: 18699.15 | M80: 0.14961
A81: 71 | B81: BPCL | C81: 265.3 | D81: 267.30 | E81: 236.55 | F81: 207.80 | G81: 177.05 | H81: 296.05 | I81: 326.80 | J81: 355.55 | K81: 298.05 | L81: 238.55 | M81: 557.20377
A82: 72 | B82: BRFL | C82: 15.1 | D82: 15.00 | E82: 14.65 | F82: 14.20 | G82: 13.85 | H82: 15.45 | I82: 15.80 | J82: 16.25 | K82: 15.35 | L82: 14.55 | M82: 0.50282
A83: 73 | B83: BRIGADE | C83: 189.35 | D83: 188.62 | E83: 186.83 | F83: 184.32 | G83: 182.53 | H83: 191.13 | I83: 192.92 | J83: 195.43 | K83: 190.4 | L83: 186.1 | M83: 0.17008
A84: 74 | B84: BRITANNIA | C84: 5447.7 | D84: 5480.95 | E84: 5346.90 | F84: 5246.10 | G84: 5112.05 | H84: 5581.75 | I84: 5715.80 | J84: 5816.60 | K84: 5615 | L84: 5380.15 | M84: 2.59162
A85: 75 | B85: BSE | C85: 662.15 | D85: 664.87 | E85: 651.28 | F85: 640.42 | G85: 626.83 | H85: 675.73 | I85: 689.32 | J85: 700.18 | K85: 678.45 | L85: 654 | M85: 1.31841
A86: 77 | B86: CADILAHC | C86: 378.35 | D86: 381.27 | E86: 373.08 | F86: 367.82 | G86: 359.63 | H86: 386.53 | I86: 394.72 | J86: 399.98 | K86: 389.45 | L86: 376 | M86: 18.04396
A87: 78 | B87: CANBK | C87: 219.35 | D87: 221.90 | E87: 212.45 | F87: 205.55 | G87: 196.10 | H87: 228.80 | I87: 238.25 | J87: 245.15 | K87: 231.35 | L87: 215 | M87: 67.99304
A88: 79 | B88: CANFINHOME | C88: 236.95 | D88: 240.13 | E88: 228.42 | F88: 219.88 | G88: 208.17 | H88: 248.67 | I88: 260.38 | J88: 268.92 | K88: 251.85 | L88: 231.6 | M88: 11.95049
A89: 80 | B89: CAPF | C89: 476.65 | D89: 480.10 | E89: 465.20 | F89: 453.75 | G89: 438.85 | H89: 491.55 | I89: 506.45 | J89: 517.90 | K89: 495 | L89: 468.65 | M89: 5.26846
A90: 81 | B90: CAPLIPOINT | C90: 418.3 | D90: 423.10 | E90: 405.20 | F90: 392.10 | G90: 374.20 | H90: 436.20 | I90: 454.10 | J90: 467.20 | K90: 441 | L90: 410 | M90: 0.29857
A91: 82 | B91: CARBORUNIV | C91: 332.8 | D91: 338.57 | E91: 323.28 | F91: 313.77 | G91: 298.48 | H91: 348.08 | I91: 363.37 | J91: 372.88 | K91: 353.85 | L91: 329.05 | M91: 0.59288
A92: 83 | B92: CARERATING | C92: 1113.65 | D92: 1118.22 | E92: 1095.43 | F92: 1077.22 | G92: 1054.43 | H92: 1136.43 | I92: 1159.22 | J92: 1177.43 | K92: 1141 | L92: 1100 | M92: 0.34271
A93: 84 | B93: CASTROLIND | C93: 136.8 | D93: 138.20 | E93: 133.60 | F93: 130.40 | G93: 125.80 | H93: 141.40 | I93: 146.00 | J93: 149.20 | K93: 142.8 | L93: 135 | M93: 22.14518
A94: 85 | B94: CCL | C94: 248.8 | D94: 248.78 | E94: 246.52 | F94: 244.23 | G94: 241.97 | H94: 251.07 | I94: 253.33 | J94: 255.62 | K94: 251.05 | L94: 246.5 | M94: 0.21325
A95: 86 | B95: CDSL | C95: 229.55 | D95: 229.07 | E95: 220.53 | F95: 211.52 | G95: 202.98 | H95: 238.08 | I95: 246.62 | J95: 255.63 | K95: 237.6 | L95: 220.05 | M95: 2.05857
A96: 87 | B96: CEATLTD | C96: 1050.5 | D96: 1053.33 | E96: 1027.17 | F96: 1003.83 | G96: 977.67 | H96: 1076.67 | I96: 1102.83 | J96: 1126.17 | K96: 1079.5 | L96: 1030 | M96: 5.41665
A97: 88 | B97: CENTRALBK | C97: 33.4 | D97: 34.00 | E97: 32.00 | F97: 30.60 | G97: 28.60 | H97: 35.40 | I97: 37.40 | J97: 38.80 | K97: 36 | L97: 32.6 | M97: 25.1168
A98: 89 | B98: CENTURYPLY | C98: 161.7 | D98: 161.47 | E98: 150.23 | F98: 138.77 | G98: 127.53 | H98: 172.93 | I98: 184.17 | J98: 195.63 | K98: 172.7 | L98: 150 | M98: 4.28445
A99: 90 | B99: CENTURYTEX | C99: 763.6 | D99: 772.87 | E99: 745.13 | F99: 726.67 | G99: 698.93 | H99: 791.33 | I99: 819.07 | J99: 837.53 | K99: 800.6 | L99: 754.4 | M99: 6.14859
A100: 91 | B100: CERA | C100: 2450.85 | D100: 2457.48 | E100: 2443.37 | F100: 2435.88 | G100: 2421.77 | H100: 2464.97 | I100: 2479.08 | J100: 2486.57 | K100: 2471.6 | L100: 2450 | M100: 0.01456
A101: 92 | B101: CGPOWER | C101: 41.3 | D101: 42.03 | E101: 39.52 | F101: 37.73 | G101: 35.22 | H101: 43.82 | I101: 46.33 | J101: 48.12 | K101: 44.55 | L101: 40.25 | M101: 24.24841
A102: 93 | B102: CHAMBLFERT | C102: 143.4 | D102: 144.80 | E102: 139.70 | F102: 136.00 | G102: 130.90 | H102: 148.50 | I102: 153.60 | J102: 157.30 | K102: 149.9 | L102: 141.1 | M102: 5.64994
A103: 94 | B103: CHENNPETRO | C103: 256.2 | D103: 260.32 | E103: 249.68 | F103: 243.17 | G103: 232.53 | H103: 266.83 | I103: 277.47 | J103: 283.98 | K103: 270.95 | L103: 253.8 | M103: 7.26076
A104: 95 | B104: CHOLAFIN | C104: 1111.15 | D104: 1126.10 | E104: 1070.20 | F104: 1029.25 | G104: 973.35 | H104: 1167.05 | I104: 1222.95 | J104: 1263.90 | K104: 1182 | L104: 1085.15 | M104: 3.4704
A105: 96 | B105: CIPLA | C105: 636.65 | D105: 639.07 | E105: 628.58 | F105: 620.52 | G105: 610.03 | H105: 647.13 | I105: 657.62 | J105: 665.68 | K105: 649.55 | L105: 631 | M105: 18.0615
A106: 97 | B106: COALINDIA | C106: 263 | D106: 266.15 | E106: 258.15 | F106: 253.30 | G106: 245.30 | H106: 271.00 | I106: 279.00 | J106: 283.85 | K106: 274.15 | L106: 261.3 | M106: 40.49564
A107: 98 | B107: COCHINSHIP | C107: 380.75 | D107: 383.35 | E107: 376.45 | F107: 372.15 | G107: 365.25 | H107: 387.65 | I107: 394.55 | J107: 398.85 | K107: 390.25 | L107: 379.05 | M107: 1.14708
A108: 99 | B108: COFFEEDAY | C108: 259.75 | D108: 261.42 | E108: 253.88 | F108: 248.02 | G108: 240.48 | H108: 267.28 | I108: 274.82 | J108: 280.68 | K108: 268.95 | L108: 255.55 | M108: 1.52765
A109: 100 | B109: COLPAL | C109: 1069.55 | D109: 1068.45 | E109: 1057.90 | F109: 1046.25 | G109: 1035.70 | H109: 1080.10 | I109: 1090.65 | J109: 1102.30 | K109: 1079 | L109: 1056.8 | M109: 3.0046
A110: 101 | B110: CONCOR | C110: 605.75 | D110: 603.57 | E110: 588.38 | F110: 571.02 | G110: 555.83 | H110: 620.93 | I110: 636.12 | J110: 653.48 | K110: 618.75 | L110: 586.2 | M110: 6.78508
A111: 102 | B111: COROMANDEL | C111: 371.85 | D111: 375.93 | E111: 362.32 | F111: 352.78 | G111: 339.17 | H111: 385.47 | I111: 399.08 | J111: 408.62 | K111: 389.55 | L111: 366.4 | M111: 1.21482
A112: 103 | B112: COX&KINGS | C112: 174.6 | D112: 175.53 | E112: 171.07 | F112: 167.53 | G112: 163.07 | H112: 179.07 | I112: 183.53 | J112: 187.07 | K112: 180 | L112: 172 | M112: 1.98973
A113: 104 | B113: CRISIL | C113: 1626.1 | D113: 1621.15 | E113: 1606.05 | F113: 1586.00 | G113: 1570.90 | H113: 1641.20 | I113: 1656.30 | J113: 1676.35 | K113: 1636.25 | L113: 1601.1 | M113: 0.18484
A114: 105 | B114: CROMPTON | C114: 211.25 | D114: 210.08 | E114: 205.17 | F114: 199.08 | G114: 194.17 | H114: 216.17 | I114: 221.08 | J114: 227.17 | K114: 215 | L114: 204 | M114: 5.21823
A115: 106 | B115: CUB | C115: 161.9 | D115: 162.07 | E115: 158.23 | F115: 154.57 | G115: 150.73 | H115: 165.73 | I115: 169.57 | J115: 173.23 | K115: 165.9 | L115: 158.4 | M115: 9.99565
A116: 107 | B116: CUMMINSIND | C116: 658.25 | D116: 663.65 | E116: 649.60 | F116: 640.95 | G116: 626.90 | H116: 672.30 | I116: 686.35 | J116: 695.00 | K116: 677.7 | L116: 655 | M116: 1.08912
A117: 108 | B117: CYIENT | C117: 722.25 | D117: 726.18 | E117: 695.37 | F117: 668.48 | G117: 637.67 | H117: 753.07 | I117: 783.88 | J117: 810.77 | K117: 757 | L117: 699.3 | M117: 3.54659
A118: 109 | B118: DABUR | C118: 420.05 | D118: 416.33 | E118: 407.67 | F118: 395.28 | G118: 386.62 | H118: 428.72 | I118: 437.38 | J118: 449.77 | K118: 425 | L118: 403.95 | M118: 37.97505
A119: 110 | B119: DBCORP | C119: 195.85 | D119: 197.35 | E119: 191.70 | F119: 187.55 | G119: 181.90 | H119: 201.50 | I119: 207.15 | J119: 211.30 | K119: 203 | L119: 193.2 | M119: 0.42998
A120: 111 | B120: DBL | C120: 607.5 | D120: 617.17 | E120: 592.33 | F120: 577.17 | G120: 552.33 | H120: 632.33 | I120: 657.17 | J120: 672.33 | K120: 642 | L120: 602 | M120: 1.79864
A121: 112 | B121: DBREALTY | C121: 20.8 | D121: 21.12 | E121: 20.23 | F121: 19.67 | G121: 18.78 | H121: 21.68 | I121: 22.57 | J121: 23.13 | K121: 22 | L121: 20.55 | M121: 3.93397
A122: 113 | B122: DCAL | C122: 224.95 | D122: 230.12 | E122: 217.23 | F122: 209.52 | G122: 196.63 | H122: 237.83 | I122: 250.72 | J122: 258.43 | K122: 243 | L122: 222.4 | M122: 1.25395
A123: 114 | B123: DCBBANK | C123: 145.9 | D123: 145.45 | E123: 141.45 | F123: 137.00 | G123: 133.00 | H123: 149.90 | I123: 153.90 | J123: 158.35 | K123: 149.45 | L123: 141 | M123: 14.48951
A124: 115 | B124: DCMSHRIRAM | C124: 371 | D124: 382.37 | E124: 350.73 | F124: 330.47 | G124: 298.83 | H124: 402.63 | I124: 434.27 | J124: 454.53 | K124: 414 | L124: 362.1 | M124: 1.59932
A125: 116 | B125: DEEPAKFERT | C125: 191.85 | D125: 193.13 | E125: 188.72 | F125: 185.58 | G125: 181.17 | H125: 196.27 | I125: 200.68 | J125: 203.82 | K125: 197.55 | L125: 190 | M125: 0.62294
A126: 117 | B126: DELTACORP | C126: 207.65 | D126: 209.80 | E126: 198.85 | F126: 190.05 | G126: 179.10 | H126: 218.60 | I126: 229.55 | J126: 238.35 | K126: 220.75 | L126: 201 | M126: 15.9313
A127: 118 | B127: DEN | C127: 57.95 | D127: 58.65 | E127: 55.40 | F127: 52.85 | G127: 49.60 | H127: 61.20 | I127: 64.45 | J127: 67.00 | K127: 61.9 | L127: 56.1 | M127: 2.28271
A128: 119 | B128: DENABANK | C128: 15.05 | D128: 15.15 | E128: 14.90 | F128: 14.75 | G128: 14.50 | H128: 15.30 | I128: 15.55 | J128: 15.70 | K128: 15.4 | L128: 15 | M128: 11.47002
A129: 120 | B129: DHFL | C129: 275.15 | D129: 281.98 | E129: 258.17 | F129: 241.18 | G129: 217.37 | H129: 298.97 | I129: 322.78 | J129: 339.77 | K129: 305.8 | L129: 265 | M129: 152.28207
A130: 121 | B130: DISHTV | C130: 52.3 | D130: 52.92 | E130: 49.93 | F130: 47.57 | G130: 44.58 | H130: 55.28 | I130: 58.27 | J130: 60.63 | K130: 55.9 | L130: 50.55 | M130: 83.82714
A131: 122 | B131: DIVISLAB | C131: 1281.65 | D131: 1288.35 | E131: 1261.70 | F131: 1241.75 | G131: 1215.10 | H131: 1308.30 | I131: 1334.95 | J131: 1354.90 | K131: 1315 | L131: 1268.4 | M131: 8.76772
A132: 123 | B132: DIXON | C132: 2455.2 | D132: 2502.07 | E132: 2404.13 | F132: 2353.07 | G132: 2255.13 | H132: 2553.13 | I132: 2651.07 | J132: 2702.13 | K132: 2600 | L132: 2451 | M132: 1.07297
A133: 124 | B133: DLF | C133: 149.25 | D133: 152.80 | E133: 141.75 | F133: 134.25 | G133: 123.20 | H133: 160.30 | I133: 171.35 | J133: 178.85 | K133: 163.85 | L133: 145.3 | M133: 110.93634
A134: 125 | B134: DMART | C134: 1331.2 | D134: 1345.05 | E134: 1297.40 | F134: 1263.60 | G134: 1215.95 | H134: 1378.85 | I134: 1426.50 | J134: 1460.30 | K134: 1392.7 | L134: 1311.25 | M134: 5.64118
A135: 126 | B135: DREDGECORP | C135: 309.8 | D135: 313.90 | E135: 302.05 | F135: 294.30 | G135: 282.45 | H135: 321.65 | I135: 333.50 | J135: 341.25 | K135: 325.75 | L135: 306.15 | M135: 0.88439
A136: 127 | B136: DRREDDY | C136: 2394.55 | D136: 2391.32 | E136: 2353.53 | F136: 2312.52 | G136: 2274.73 | H136: 2432.33 | I136: 2470.12 | J136: 2511.13 | K136: 2429.1 | L136: 2350.3 | M136: 7.36953
A137: 128 | B137: ECLERX | C137: 1027.95 | D137: 1028.05 | E137: 1017.90 | F137: 1007.85 | G137: 997.70 | H137: 1038.10 | I137: 1048.25 | J137: 1058.30 | K137: 1038.2 | L137: 1018 | M137: 0.03739
A138: 129 | B138: EDELWEISS | C138: 175.9 | D138: 179.12 | E138: 166.78 | F138: 157.67 | G138: 145.33 | H138: 188.23 | I138: 200.57 | J138: 209.68 | K138: 191.45 | L138: 170 | M138: 40.90228
A139: 130 | B139: EICHERMOT | C139: 21190.45 | D139: 21611.67 | E139: 20553.88 | F139: 19917.32 | G139: 18859.53 | H139: 22248.23 | I139: 23306.02 | J139: 23942.58 | K139: 22669.45 | L139: 20975.1 | M139: 1.79115
A140: 131 | B140: EIDPARRY | C140: 185.9 | D140: 188.38 | E140: 181.57 | F140: 177.23 | G140: 170.42 | H140: 192.72 | I140: 199.53 | J140: 203.87 | K140: 195.2 | L140: 184.05 | M140: 2.61161
A141: 132 | B141: EIHOTEL | C141: 148.85 | D141: 145.58 | E141: 140.82 | F141: 132.78 | G141: 128.02 | H141: 153.62 | I141: 158.38 | J141: 166.42 | K141: 150.35 | L141: 137.55 | M141: 3.60175
A142: 133 | B142: EMAMILTD | C142: 446.85 | D142: 443.95 | E142: 417.90 | F142: 388.95 | G142: 362.90 | H142: 472.90 | I142: 498.95 | J142: 527.90 | K142: 470 | L142: 415 | M142: 15.67636
A143: 134 | B143: ENDURANCE | C143: 1229.45 | D143: 1240.37 | E143: 1204.43 | F143: 1179.42 | G143: 1143.48 | H143: 1265.38 | I143: 1301.32 | J143: 1326.33 | K143: 1276.3 | L143: 1215.35 | M143: 0.73255
A144: 135 | B144: ENGINERSIN | C144: 103 | D144: 106.20 | E144: 99.00 | F144: 95.00 | G144: 87.80 | H144: 110.20 | I144: 117.40 | J144: 121.40 | K144: 113.4 | L144: 102.2 | M144: 64.23794
A145: 136 | B145: EQUITAS | C145: 112.35 | D145: 114.40 | E145: 108.45 | F145: 104.55 | G145: 98.60 | H145: 118.30 | I145: 124.25 | J145: 128.15 | K145: 120.35 | L145: 110.5 | M145: 39.5747
A146: 137 | B146: ERIS | C146: 691.35 | D146: 685.53 | E146: 671.07 | F146: 650.78 | G146: 636.32 | H146: 705.82 | I146: 720.28 | J146: 740.57 | K146: 700 | L146: 665.25 | M146: 0.21757
A147: 138 | B147: EROSMEDIA | C147: 78.1 | D147: 78.42 | E147: 76.03 | F147: 73.97 | G147: 71.58 | H147: 80.48 | I147: 82.87 | J147: 84.93 | K147: 80.8 | L147: 76.35 | M147: 5.65915
A148: 139 | B148: ESCORTS | C148: 584.55 | D148: 593.12 | E148: 568.18 | F148: 551.82 | G148: 526.88 | H148: 609.48 | I148: 634.42 | J148: 650.78 | K148: 618.05 | L148: 576.75 | M148: 14.08254
A149: 140 | B149: EVEREADY | C149: 203 | D149: 205.50 | E149: 195.00 | F149: 187.00 | G149: 176.50 | H149: 213.50 | I149: 224.00 | J149: 232.00 | K149: 216 | L149: 197.5 | M149: 0.54319
A150: 141 | B150: EXIDEIND | C150: 248.65 | D150: 249.52 | E150: 245.03 | F150: 241.42 | G150: 236.93 | H150: 253.13 | I150: 257.62 | J150: 261.23 | K150: 254 | L150: 245.9 | M150: 17.04372
A151: 142 | B151: FCONSUMER | C151: 37.85 | D151: 38.37 | E151: 36.78 | F151: 35.72 | G151: 34.13 | H151: 39.43 | I151: 41.02 | J151: 42.08 | K151: 39.95 | L151: 37.3 | M151: 29.90652
A152: 143 | B152: FEDERALBNK | C152: 68.3 | D152: 68.50 | E152: 66.90 | F152: 65.50 | G152: 63.90 | H152: 69.90 | I152: 71.50 | J152: 72.90 | K152: 70.1 | L152: 67.1 | M152: 107.82812
A153: 144 | B153: FINCABLES | C153: 495.05 | D153: 498.67 | E153: 488.58 | F153: 482.12 | G153: 472.03 | H153: 505.13 | I153: 515.22 | J153: 521.68 | K153: 508.75 | L153: 492.2 | M153: 0.19265
A154: 145 | B154: FINPIPE | C154: 521.85 | D154: 521.67 | E154: 518.43 | F154: 515.02 | G154: 511.78 | H154: 525.08 | I154: 528.32 | J154: 531.73 | K154: 524.9 | L154: 518.25 | M154: 0.857
A155: 146 | B155: FLFL | C155: 391.35 | D155: 390.67 | E155: 386.38 | F155: 381.42 | G155: 377.13 | H155: 395.63 | I155: 399.92 | J155: 404.88 | K155: 394.95 | L155: 385.7 | M155: 0.09356
A156: 147 | B156: FSL | C156: 57.15 | D156: 57.73 | E156: 55.47 | F156: 53.78 | G156: 51.52 | H156: 59.42 | I156: 61.68 | J156: 63.37 | K156: 60 | L156: 56.05 | M156: 23.77436
A157: 148 | B157: GAIL | C157: 332.05 | D157: 325.43 | E157: 301.87 | F157: 271.68 | G157: 248.12 | H157: 355.62 | I157: 379.18 | J157: 409.37 | K157: 349 | L157: 295.25 | M157: 210.45602
A158: 149 | B158: GATI | C158: 80.35 | D158: 81.42 | E158: 78.03 | F158: 75.72 | G158: 72.33 | H158: 83.73 | I158: 87.12 | J158: 89.43 | K158: 84.8 | L158: 79.1 | M158: 11.52032
A159: 150 | B159: GDL | C159: 147.3 | D159: 148.40 | E159: 143.90 | F159: 140.50 | G159: 136.00 | H159: 151.80 | I159: 156.30 | J159: 159.70 | K159: 152.9 | L159: 145 | M159: 0.26215
A160: 151 | B160: GEPIL | C160: 738.7 | D160: 735.07 | E160: 724.23 | F160: 709.77 | G160: 698.93 | H160: 749.53 | I160: 760.37 | J160: 774.83 | K160: 745.9 | L160: 720.6 | M160: 0.11727
A161: 152 | B161: GESHIP | C161: 284.45 | D161: 284.20 | E161: 280.90 | F161: 277.35 | G161: 274.05 | H161: 287.75 | I161: 291.05 | J161: 294.60 | K161: 287.5 | L161: 280.65 | M161: 0.44445
A162: 153 | B162: GET&D | C162: 258.75 | D162: 260.93 | E162: 251.37 | F162: 243.98 | G162: 234.42 | H162: 268.32 | I162: 277.88 | J162: 285.27 | K162: 270.5 | L162: 253.55 | M162: 2.20966
A163: 154 | B163: GHCL | C163: 210.4 | D163: 211.73 | E163: 207.47 | F163: 204.53 | G163: 200.27 | H163: 214.67 | I163: 218.93 | J163: 221.87 | K163: 216 | L163: 208.8 | M163: 1.78523
A164: 155 | B164: GICRE | C164: 318.1 | D164: 319.70 | E164: 314.90 | F164: 311.70 | G164: 306.90 | H164: 322.90 | I164: 327.70 | J164: 330.90 | K164: 324.5 | L164: 316.5 | M164: 0.85984
A165: 156 | B165: GILLETTE | C165: 6542.8 | D165: 6545.18 | E165: 6468.62 | F165: 6394.43 | G165: 6317.87 | H165: 6619.37 | I165: 6695.93 | J165: 6770.12 | K165: 6621.75 | L165: 6471 | M165: 0.01854
A166: 157 | B166: GLAXO | C166: 1360.25 | D166: 1370.08 | E166: 1340.17 | F166: 1320.08 | G166: 1290.17 | H166: 1390.17 | I166: 1420.08 | J166: 1440.17 | K166: 1400 | L166: 1350 | M166: 0.22596
A167: 158 | B167: GLENMARK | C167: 585.7 | D167: 592.93 | E167: 572.87 | F167: 560.03 | G167: 539.97 | H167: 605.77 | I167: 625.83 | J167: 638.67 | K167: 613 | L167: 580.1 | M167: 8.22352
A168: 159 | B168: GMDCLTD | C168: 86.75 | D168: 87.47 | E168: 85.63 | F168: 84.52 | G168: 82.68 | H168: 88.58 | I168: 90.42 | J168: 91.53 | K168: 89.3 | L168: 86.35 | M168: 2.71542
A169: 160 | B169: GMRINFRA | C169: 15.95 | D169: 16.12 | E169: 15.58 | F169: 15.22 | G169: 14.68 | H169: 16.48 | I169: 17.02 | J169: 17.38 | K169: 16.65 | L169: 15.75 | M169: 270.8696
A170: 161 | B170: GNFC | C170: 334.35 | D170: 332.65 | E170: 328.70 | F170: 323.05 | G170: 319.10 | H170: 338.30 | I170: 342.25 | J170: 347.90 | K170: 336.6 | L170: 327 | M170: 2.99853
A171: 162 | B171: GODFRYPHLP | C171: 682.3 | D171: 689.08 | E171: 666.17 | F171: 650.03 | G171: 627.12 | H171: 705.22 | I171: 728.13 | J171: 744.27 | K171: 712 | L171: 672.95 | M171: 3.78723
A172: 163 | B172: GODREJAGRO | C172: 515.55 | D172: 519.90 | E172: 508.85 | F172: 502.15 | G172: 491.10 | H172: 526.60 | I172: 537.65 | J172: 544.35 | K172: 530.95 | L172: 513.2 | M172: 0.52526
A173: 164 | B173: GODREJCP | C173: 701.2 | D173: 698.40 | E173: 682.80 | F173: 664.40 | G173: 648.80 | H173: 716.80 | I173: 732.40 | J173: 750.80 | K173: 714 | L173: 680 | M173: 24.06165
A174: 165 | B174: GODREJIND | C174: 472.25 | D174: 475.85 | E174: 465.20 | F174: 458.15 | G174: 447.50 | H174: 482.90 | I174: 493.55 | J174: 500.60 | K174: 486.5 | L174: 468.8 | M174: 4.36854
A175: 166 | B175: GODREJPROP | C175: 564.35 | D175: 569.95 | E175: 548.75 | F175: 533.15 | G175: 511.95 | H175: 585.55 | I175: 606.75 | J175: 622.35 | K175: 591.15 | L175: 554.35 | M175: 3.01627
A176: 167 | B176: GPPL | C176: 100.75 | D176: 101.25 | E176: 99.50 | F176: 98.25 | G176: 96.50 | H176: 102.50 | I176: 104.25 | J176: 105.50 | K176: 103 | L176: 100 | M176: 0.64478
A177: 168 | B177: GRANULES | C177: 93.65 | D177: 93.37 | E177: 91.03 | F177: 88.42 | G177: 86.08 | H177: 95.98 | I177: 98.32 | J177: 100.93 | K177: 95.7 | L177: 90.75 | M177: 44.11352
A178: 169 | B178: GRAPHITE | C178: 803.1 | D178: 804.13 | E178: 784.27 | F178: 765.43 | G178: 745.57 | H178: 822.97 | I178: 842.83 | J178: 861.67 | K178: 824 | L178: 785.3 | M178: 3.48742
A179: 170 | B179: GRASIM | C179: 922.75 | D179: 933.27 | E179: 906.53 | F179: 890.32 | G179: 863.58 | H179: 949.48 | I179: 976.22 | J179: 992.43 | K179: 960 | L179: 917.05 | M179: 13.00211
A180: 171 | B180: GREAVESCOT | C180: 127.05 | D180: 127.00 | E180: 125.15 | F180: 123.25 | G180: 121.40 | H180: 128.90 | I180: 130.75 | J180: 132.65 | K180: 128.85 | L180: 125.1 | M180: 3.19756
A181: 172 | B181: GREENPLY | C181: 142.15 | D181: 143.90 | E181: 139.25 | F181: 136.35 | G181: 131.70 | H181: 146.80 | I181: 151.45 | J181: 154.35 | K181: 148.55 | L181: 141 | M181: 0.63898
A182: 173 | B182: GRUH | C182: 274.65 | D182: 275.68 | E182: 268.82 | F182: 262.98 | G182: 256.12 | H182: 281.52 | I182: 288.38 | J182: 294.22 | K182: 282.55 | L182: 269.85 | M182: 3.80637
A183: 174 | B183: GSFC | C183: 93.75 | D183: 93.83 | E183: 91.92 | F183: 90.08 | G183: 88.17 | H183: 95.67 | I183: 97.58 | J183: 99.42 | K183: 95.75 | L183: 92 | M183: 13.73577
A184: 175 | B184: GSKCONS | C184: 6556.75 | D184: 6531.58 | E184: 6379.17 | F184: 6201.58 | G184: 6049.17 | H184: 6709.17 | I184: 6861.58 | J184: 7039.17 | K184: 6684 | L184: 6354 | M184: 0.20869
A185: 176 | B185: GSPL | C185: 176.3 | D185: 177.03 | E185: 172.47 | F185: 168.63 | G185: 164.07 | H185: 180.87 | I185: 185.43 | J185: 189.27 | K185: 181.6 | L185: 173.2 | M185: 3.73732
A186: 177 | B186: GUJALKALI | C186: 594 | D186: 592.68 | E186: 585.52 | F186: 577.03 | G186: 569.87 | H186: 601.17 | I186: 608.33 | J186: 616.82 | K186: 599.85 | L186: 584.2 | M186: 0.4741
A187: 178 | B187: GUJFLUORO | C187: 779.15 | D187: 779.75 | E187: 760.90 | F187: 742.65 | G187: 723.80 | H187: 798.00 | I187: 816.85 | J187: 835.10 | K187: 798.6 | L187: 761.5 | M187: 1.17289
A188: 179 | B188: GUJGASLTD | C188: 610.9 | D188: 607.95 | E188: 597.95 | F188: 585.00 | G188: 575.00 | H188: 620.90 | I188: 630.90 | J188: 643.85 | K188: 617.95 | L188: 595 | M188: 0.33488
A189: 180 | B189: GULFOILLUB | C189: 722.65 | D189: 729.58 | E189: 714.07 | F189: 705.48 | G189: 689.97 | H189: 738.17 | I189: 753.68 | J189: 762.27 | K189: 745.1 | L189: 721 | M189: 0.13255
A190: 181 | B190: GVKPIL | C190: 7.5 | D190: 7.65 | E190: 7.30 | F190: 7.10 | G190: 6.75 | H190: 7.85 | I190: 8.20 | J190: 8.40 | K190: 8 | L190: 7.45 | M190: 36.78775
A191: 182 | B191: HATHWAY | C191: 26.5 | D191: 26.97 | E191: 25.63 | F191: 24.77 | G191: 23.43 | H191: 27.83 | I191: 29.17 | J191: 30.03 | K191: 28.3 | L191: 26.1 | M191: 11.99695
A192: 183 | B192: HATSUN | C192: 632.3 | D192: 640.10 | E192: 622.20 | F192: 612.10 | G192: 594.20 | H192: 650.20 | I192: 668.10 | J192: 678.20 | K192: 658 | L192: 630 | M192: 0.03616
A193: 184 | B193: HAVELLS | C193: 594.55 | D193: 595.30 | E193: 585.60 | F193: 576.65 | G193: 566.95 | H193: 604.25 | I193: 613.95 | J193: 622.90 | K193: 605 | L193: 586.35 | M193: 15.20121
A194: 185 | B194: HCC | C194: 11.1 | D194: 11.23 | E194: 10.82 | F194: 10.53 | G194: 10.12 | H194: 11.52 | I194: 11.93 | J194: 12.22 | K194: 11.65 | L194: 10.95 | M194: 57.57395
A195: 186 | B195: HCL-INSYS | C195: 22.8 | D195: 22.87 | E195: 22.38 | F195: 21.97 | G195: 21.48 | H195: 23.28 | I195: 23.77 | J195: 24.18 | K195: 23.35 | L195: 22.45 | M195: 5.53539
A196: 187 | B196: HCLTECH | C196: 1084 | D196: 1084.03 | E196: 1070.07 | F196: 1056.13 | G196: 1042.17 | H196: 1097.97 | I196: 1111.93 | J196: 1125.87 | K196: 1098 | L196: 1070.1 | M196: 14.47957
A197: 188 | B197: HDFC | C197: 1708.65 | D197: 1722.47 | E197: 1669.93 | F197: 1631.22 | G197: 1578.68 | H197: 1761.18 | I197: 1813.72 | J197: 1852.43 | K197: 1775 | L197: 1683.75 | M197: 41.09132
A198: 189 | B198: HDFCBANK | C198: 1965.3 | D198: 1965.15 | E198: 1940.30 | F198: 1915.30 | G198: 1890.45 | H198: 1990.15 | I198: 2015.00 | J198: 2040.00 | K198: 1990 | L198: 1940.15 | M198: 39.32295
A199: 190 | B199: HDIL | C199: 19.3 | D199: 19.78 | E199: 18.82 | F199: 18.33 | G199: 17.37 | H199: 20.27 | I199: 21.23 | J199: 21.72 | K199: 20.75 | L199: 19.3 | M199: 55.11114
A200: 191 | B200: HEG | C200: 3247.75 | D200: 3252.58 | E200: 3155.17 | F200: 3062.58 | G200: 2965.17 | H200: 3345.17 | I200: 3442.58 | J200: 3535.17 | K200: 3350 | L200: 3160 | M200: 1.69132
A201: 192 | B201: HEIDELBERG | C201: 136.05 | D201: 136.98 | E201: 133.57 | F201: 131.08 | G201: 127.67 | H201: 139.47 | I201: 142.88 | J201: 145.37 | K201: 140.4 | L201: 134.5 | M201: 1.59593
A202: 193 | B202: HERITGFOOD | C202: 492.35 | D202: 495.00 | E202: 487.35 | F202: 482.35 | G202: 474.70 | H202: 500.00 | I202: 507.65 | J202: 512.65 | K202: 502.65 | L202: 490 | M202: 0.0913
A203: 194 | B203: HEROMOTOCO | C203: 2740.75 | D203: 2737.57 | E203: 2695.18 | F203: 2649.62 | G203: 2607.23 | H203: 2783.13 | I203: 2825.52 | J203: 2871.08 | K203: 2779.95 | L203: 2692 | M203: 8.11688
A204: 195 | B204: HEXAWARE | C204: 408.95 | D204: 404.37 | E204: 395.73 | F204: 382.52 | G204: 373.88 | H204: 417.58 | I204: 426.22 | J204: 439.43 | K204: 413 | L204: 391.15 | M204: 18.39671
A205: 196 | B205: HFCL | C205: 18.9 | D205: 18.97 | E205: 18.63 | F205: 18.37 | G205: 18.03 | H205: 19.23 | I205: 19.57 | J205: 19.83 | K205: 19.3 | L205: 18.7 | M205: 29.94512
A206: 197 | B206: HIMATSEIDE | C206: 226.75 | D206: 230.57 | E206: 221.23 | F206: 215.72 | G206: 206.38 | H206: 236.08 | I206: 245.42 | J206: 250.93 | K206: 239.9 | L206: 225.05 | M206: 0.39415
... 304 more rows

Sheet Bulk Deals
E6: Back To Main Page
A7: Subject : | B7: BULK DEAL | D7: =Main!B10 -> 2018-10-08
A9: Date | B9: Scrip code | C9: Scrip Name | D9: Client Name | E9: Buy / Sell | F9: Quantity Traded | G9: Trade Price / Wt.Avg.trade price | H9: Exchange
A10: 2018-10-05 | B10: 541152 | C10: ADVITIYA | D10: ASIAN BULLS CAPITAL PRIVATE LIMITED | E10: BUY | F10: 128,000 | G10: 15.06 | H10: BSE
A11: 2018-10-05 | B11: 541152 | C11: ADVITIYA | D11: VAGABOUND TRADEX PRIVATE LIMITED | E11: BUY | F11: 64,000 | G11: 15.1 | H11: BSE
A12: 2018-10-05 | B12: 541152 | C12: ADVITIYA | D12: R S SERVICES PRIVATE LIMITED | E12: SELL | F12: 112,000 | G12: 15.06 | H12: BSE
A13: 2018-10-05 | B13: 541152 | C13: ADVITIYA | D13: RISHU AGARWAL | E13: SELL | F13: 88,000 | G13: 15.08 | H13: BSE
A14: 2018-10-05 | B14: 540024 | C14: ASHARI | D14: VIRPAL SINGH | E14: SELL | F14: 90,023 | G14: 28.15 | H14: BSE
A15: 2018-10-05 | B15: 541865 | C15: ASPL | D15: VIBRANT INVESTMENTS | E15: SELL | F15: 60,000 | G15: 26.63 | H15: BSE
A16: 2018-10-05 | B16: 541865 | C16: ASPL | D16: SAPNA MAHESH RUPANI | E16: BUY | F16: 60,000 | G16: 26.63 | H16: BSE
A17: 2018-10-05 | B17: 540824 | C17: ASTRON | D17: PALLAS FINCAP PRIVATE LIMITED . | E17: BUY | F17: 275,000 | G17: 118.38 | H17: BSE
A18: 2018-10-05 | B18: 539770 | C18: DARJEELING | D18: ARVIND SHANTILAL SHAH | E18: SELL | F18: 20,500 | G18: 66.84 | H18: BSE
A19: 2018-10-05 | B19: 538902 | C19: DHUNTEAIND | D19: KARUNA MITTAL | E19: BUY | F19: 76,526 | G19: 228 | H19: BSE
A20: 2018-10-05 | B20: 538902 | C20: DHUNTEAIND | D20: GYAN TRADERS LIMITED | E20: SELL | F20: 76,576 | G20: 228.01 | H20: BSE
A21: 2018-10-05 | B21: 541983 | C21: INNOVATIVE | D21: RIKHAV SECURITIES LIMITED | E21: BUY | F21: 699,000 | G21: 41.99 | H21: BSE
A22: 2018-10-05 | B22: 541983 | C22: INNOVATIVE | D22: VALUEWORTH CAPITAL MANAGEMENT PRIVATE LIMITED | E22: BUY | F22: 126,000 | G22: 42.58 | H22: BSE
A23: 2018-10-05 | B23: 541983 | C23: INNOVATIVE | D23: PARKER MULTI COMMODITIES INDIA PRIVATE LIMITED | E23: SELL | F23: 432,000 | G23: 42.47 | H23: BSE
A24: 2018-10-05 | B24: 541983 | C24: INNOVATIVE | D24: JACKEY CHAMPALAL SHAH | E24: SELL | F24: 90,000 | G24: 42 | H24: BSE
A25: 2018-10-05 | B25: 541983 | C25: INNOVATIVE | D25: LAHERCHAND BABULAL MODI | E25: BUY | F25: 99,000 | G25: 42 | H25: BSE
A26: 2018-10-05 | B26: 541983 | C26: INNOVATIVE | D26: BHARTIBEN LABHSHANKAR GHURIA | E26: BUY | F26: 75,000 | G26: 42 | H26: BSE
A27: 2018-10-05 | B27: 541983 | C27: INNOVATIVE | D27: DHARABEN MANISHBHAI GHURIA | E27: BUY | F27: 75,000 | G27: 42 | H27: BSE
A28: 2018-10-05 | B28: 541983 | C28: INNOVATIVE | D28: NIRAJ LAHERCHAND MODI | E28: BUY | F28: 597,000 | G28: 42.02 | H28: BSE
A29: 2018-10-05 | B29: 541983 | C29: INNOVATIVE | D29: KAUSHAL JAYESHBHAI SHAH | E29: SELL | F29: 78,000 | G29: 42 | H29: BSE
A30: 2018-10-05 | B30: 541983 | C30: INNOVATIVE | D30: VIRATKUMAR SEVANTILAL SHAH | E30: SELL | F30: 108,000 | G30: 42 | H30: BSE
A31: 2018-10-05 | B31: 541983 | C31: INNOVATIVE | D31: HARSHIT BIPINKUMAR SHAH | E31: BUY | F31: 63,000 | G31: 43 | H31: BSE
A32: 2018-10-05 | B32: 502933 | C32: KATRSPG | D32: SHLOK RAJESH KATARE | E32: SELL | F32: 24,000 | G32: 6.78 | H32: BSE
A33: 2018-10-05 | B33: 541974 | C33: MANORAMA | D33: KARAN SURESHCHANDRA MAJITHIA | E33: BUY | F33: 105,600 | G33: 187.2 | H33: BSE
A34: 2018-10-05 | B34: 500337 | C34: PRIMESECU | D34: MANISH RASIKLAL MANSATA | E34: SELL | F34: 225,000 | G34: 34.65 | H34: BSE
A35: 2018-10-05 | B35: 500337 | C35: PRIMESECU | D35: GEETA CHETAN SHAH | E35: BUY | F35: 250,000 | G35: 34.65 | H35: BSE
A36: 2018-10-05 | B36: 541945 | C36: RANJEET | D36: DKL BROKING & INFRA LLP | E36: BUY | F36: 78,000 | G36: 27.11 | H36: BSE
A37: 2018-10-05 | B37: 541945 | C37: RANJEET | D37: MAHESHKUMAR KANTILAL SHAH | E37: SELL | F37: 54,000 | G37: 27 | H37: BSE
A38: 2018-10-05 | B38: 538891 | C38: SIPROJECTS | D38: DIPIKABEN S DOSHI | E38: SELL | F38: 28,892 | G38: 236.98 | H38: BSE
A39: 2018-10-05 | B39: 541967 | C39: SKYGOLD | D39: DOSHI HETAL S | E39: SELL | F39: 40,000 | G39: 180.9 | H39: BSE
A40: 2018-10-05 | B40: 541967 | C40: SKYGOLD | D40: ARYAMAN BROKING LIMITED | E40: SELL | F40: 800 | G40: 181 | H40: BSE
A41: 2018-10-05 | B41: 541967 | C41: SKYGOLD | D41: ARYAMAN BROKING LIMITED | E41: BUY | F41: 38,400 | G41: 180.79 | H41: BSE
A42: 2018-10-05 | B42: 539040 | C42: TTIL | D42: JITENDRA KAMLAPRASAD YADAV | E42: SELL | F42: 31,200 | G42: 3.75 | H42: BSE
A43: 2018-10-05 | B43: 539040 | C43: TTIL | D43: USHA KAILASH YADAV | E43: SELL | F43: 31,000 | G43: 3.75 | H43: BSE
A44: 2018-10-05 | B44: 539040 | C44: TTIL | D44: JITENDRA TUKARAM SHINDE | E44: SELL | F44: 26,385 | G44: 3.75 | H44: BSE
A45: 2018-10-05 | B45: 539040 | C45: TTIL | D45: ARTLINK VINTRADE LIMITED | E45: BUY | F45: 135,000 | G45: 3.75 | H45: BSE
A46: 2018-10-05 | B46: 539040 | C46: TTIL | D46: NITIN TUKARAM SHINDE | E46: SELL | F46: 24,985 | G46: 3.75 | H46: BSE
A47: 2018-10-05 | B47: 539040 | C47: TTIL | D47: RESHMA GULAMRASUL SHEIKH | E47: SELL | F47: 20,000 | G47: 3.75 | H47: BSE
A48: 2018-10-05 | B48: 541338 | C48: UHZAVERI | D48: NNM SECURITIES PVT LTD | E48: SELL | F48: 234,000 | G48: 10.75 | H48: BSE
A49: 2018-10-05 | B49: 522108 | C49: YUKEN | D49: MULTIPLIER SHARE & STOCK ADVI. | E49: BUY | F49: 80,000 | G49: 571.4 | H49: BSE
A50: 2018-10-05 | B50: GRETEX | C50: Gretex Industries Ltd. | D50: MEGHKUMAR MAHENDRAKUMAR SHAH | E50: BUY | F50: 30,000 | G50: 12.5 | H50: NSE
A51: 2018-10-05 | B51: GSS | C51: GSS Infotech Limited | D51: ARCADIA SHARE & STOCK BROKERS PRIVATE LIMITED | E51: BUY | F51: 90,812 | G51: 103.92 | H51: NSE
A52: 2018-10-05 | B52: JETAIRWAYS | C52: Jet Airways (India) Ltd. | D52: ALPHAGREP SECURITIES PRIVATE LIMITED | E52: BUY | F52: 907,605 | G52: 187.51 | H52: NSE
A53: 2018-10-05 | B53: JETAIRWAYS | C53: Jet Airways (India) Ltd. | D53: CROSSLAND TRADING CO | E53: BUY | F53: 756,981 | G53: 188.01 | H53: NSE
A54: 2018-10-05 | B54: JETAIRWAYS | C54: Jet Airways (India) Ltd. | D54: SHAASTRA SECURITIES TRADING PRIVATE LIMITED | E54: BUY | F54: 941,258 | G54: 187.56 | H54: NSE
A55: 2018-10-05 | B55: LAGNAM | C55: Lagnam Spintex Limited | D55: MICRONE TEX FAB PRIVATE LIMITED | E55: BUY | F55: 99,000 | G55: 20.05 | H55: NSE
A56: 2018-10-05 | B56: PCJEWELLER | C56: PC Jeweller Ltd | D56: SHAASTRA SECURITIES TRADING PRIVATE LIMITED | E56: BUY | F56: 2,298,017 | G56: 60.32 | H56: NSE
A57: 2018-10-05 | B57: SPECTRUM | C57: Spectrum Electric Ind Ltd | D57: ARIHANT CAPITAL MARKETS LIMITED | E57: BUY | F57: 200,000 | G57: 65.5 | H57: NSE
A58: 2018-10-05 | B58: SPECTRUM | C58: Spectrum Electric Ind Ltd | D58: FESTINO VINCOM LIMITED | E58: BUY | F58: 80,000 | G58: 64 | H58: NSE
A59: 2018-10-05 | B59: GRETEX | C59: Gretex Industries Ltd. | D59: VISHWAMURTE TRAD INVEST PE LTD | E59: SELL | F59: 30,000 | G59: 12.5 | H59: NSE
A60: 2018-10-05 | B60: GSS | C60: GSS Infotech Limited | D60: ARCADIA SHARE & STOCK BROKERS PRIVATE LIMITED | E60: SELL | F60: 81,378 | G60: 104.01 | H60: NSE
A61: 2018-10-05 | B61: JETAIRWAYS | C61: Jet Airways (India) Ltd. | D61: ALPHAGREP SECURITIES PRIVATE LIMITED | E61: SELL | F61: 907,605 | G61: 187.6 | H61: NSE
A62: 2018-10-05 | B62: JETAIRWAYS | C62: Jet Airways (India) Ltd. | D62: CROSSLAND TRADING CO | E62: SELL | F62: 756,981 | G62: 187.94 | H62: NSE
A63: 2018-10-05 | B63: JETAIRWAYS | C63: Jet Airways (India) Ltd. | D63: SHAASTRA SECURITIES TRADING PRIVATE LIMITED | E63: SELL | F63: 941,258 | G63: 187.63 | H63: NSE
A64: 2018-10-05 | B64: PCJEWELLER | C64: PC Jeweller Ltd | D64: SHAASTRA SECURITIES TRADING PRIVATE LIMITED | E64: SELL | F64: 2,298,017 | G64: 60.46 | H64: NSE
A65: 2018-10-05 | B65: SPECTRUM | C65: Spectrum Electric Ind Ltd | D65: SAGAR RAJESHBHAI JHAVERI | E65: SELL | F65: 80,000 | G65: 64 | H65: NSE

Sheet Call Tracker (Equity & F&O)
M5: Back To Main Page
A6: Retail Research Technical Calls & Fundamental Performance Report for the month of October -2018
M7: =Main!B10 -> 2018-10-08
B8: Positional Call
A9: Sr.no | B9: Date | D9: Company | E9: Rec | F9: Rec Price | G9: Stop Loss*** | H9: Call Closed At | I9: Target | J9: Remark | K9: Profit / Loss per Share | L9: Gain / Loss % | M9: Status | N9: Closed Date | O9: NSE Closed Price
A10: 1 | B10: 2018-09-24 | D10: SUNPHARMA | E10: Buy | F10: 632.5 | G10: 610 | H10: 605 | I10: 670-680 | J10: Loss of Rs. 27.50/- | K10: =H10-F10 -> -27.5 | L10: =K10/F10 -> -4.35% | M10: Unsuccessful | N10: 2018-10-04 | R10: H
A11: 2 | B11: 2018-09-26 | D11: SBIN | E11: Buy | F11: 266 | G11: 249.7 | H11: 274.5 | I11: 285-295 | J11: Profit of Rs. 8.50/- | K11: =H11-F11 -> 8.5 | L11: =K11/F11 -> 3.20% | M11: Successful | N11: 2018-10-01 | R11: R
A12: 3 | B12: 2018-09-27 | D12: ITC | E12: Buy | F12: 291.5 | G12: 278 | H12: 301.5 | I12: 320 | J12: Profit of Rs. 10/- | K12: 10 | L12: =K12/F12 -> 3.43% | M12: Successful | N12: 2018-10-01 | R12: H
A13: 4 | B13: 2018-09-28 | D13: RBLBANK | E13: Buy | F13: 520 | G13: 499 | H13: 538 | I13: 570-580 | J13: Profit of Rs. 18/- | K13: 18 | L13: =K13/F13 -> 3.46% | M13: Successful | N13: 2018-10-03 | R13: H
A14: 5 | B14: 2018-09-28 | D14: PIDILITIND | E14: Buy | F14: 1049.5 | G14: 1017.7 | H14: 998 | I14: 1100-1120 | J14: Loss of Rs. 51.50/- | K14: -51.5 | L14: =K14/F14 -> -4.91% | M14: Unsuccessful | N14: 2018-10-03 | R14: R
A15: 6 | B15: 2018-10-01 | D15: M&MFIN | E15: Buy | F15: 400 | G15: 379 | H15: 414 | I15: 440 | J15: Profit of Rs. 14/- | K15: 14 | L15: =K15/F15 -> 3.50% | M15: Successful | N15: 2018-10-01 | R15: H
A16: 7 | B16: 2018-10-01 | D16: CONCOR | E16: Buy | F16: 634 | G16: 598.7 | H16: 659 | I16: 690-700 | J16: Profit of Rs. 25/- | K16: 25 | L16: 3.94% | M16: Successful | N16: 2018-10-01 | R16: R
A17: 8 | B17: 2018-10-03 | D17: SUDARSCHEM | E17: Buy | F17: 402 | G17: 384.4 | H17: 384.4 | I17: 430-440 | J17: Loss of Rs. 17.60/- | K17: =H17-F17 -> -17.6 | L17: -4.38% | M17: Unsuccessful | N17: 2018-10-04 | R17: R
A18: 9 | B18: 2018-10-03 | D18: CEATLTD | E18: Buy | F18: 1133 | G18: 1078 | H18: 1073 | I18: 1200-1220 | J18: Loss of Rs. 60/- | K18: =H18-F18 -> -60 | L18: =K18/F18 -> -5.30% | M18: Unsuccessful | N18: 2018-10-04 | R18: H
A19: 10 | B19: 2018-10-03 | D19: INDUSINDBK | E19: Buy | F19: 1655 | G19: 1597.7 | H19: 1570 | I19: 1760-1780 | J19: Loss of Rs. 85/- | K19: =H19-F19 -> -85 | L19: =K19/F19 -> -5.14% | M19: Unsuccessful | N19: 2018-10-04 | R19: R
A20: 11 | B20: 2018-10-04 | D20: RBLBANK | E20: Buy | F20: 512.55 | G20: 489 | H20: 492 | I20: 550-560 | J20: Loss of Rs. 20.55/- | K20: =H20-F20 -> -20.55 | L20: =K20/F20 -> -4.01% | M20: Unsuccessful | N20: 2018-10-05 | R20: H
A21: 12 | B21: 2018-10-05 | D21: ITC | E21: Buy | F21: 282-284 | G21: 274 | I21: 300 | J21: Open
A31: CLBS = Closing Basis *** | F31: Reinitiated $
A32: Dividend adjusted <> | F32: Revised stoploss #
A33: Part book {}
A34: Master Trade High Risk
A35: Sr.no | B35: Date | D35: Company | E35: Rec | F35: Rec Price | G35: Stop Loss | H35: Call Closed At | I35: Target | J35: Remark | K35: Profit / Loss per share | L35: Gain / Loss per Lot | M35: Lot | N35: Status | O35: Closed Date
A36: 1 | B36: 2018-09-28 | D36: HDFCBANK OCT FUT | E36: Buy | F36: 2020 | G36: 1980 | H36: 2051.5 | I36: 2100 | J36: Profit of Rs 19.50/- | K36: =H36-F36 -> 31.5 | L36: 9750 | M36: 500 | N36: Successful | O36: 2018-10-01 | R36: H
D37: HDFCBANK OCT 2060 CE | E37: Sell | F37: 23 | H37: 35 | K37: =F37-H37 -> -12
A38: 2 | B38: 2018-10-01 | D38: NIFTY OCT FUT | E38: Buy | F38: 10920 | G38: 10780 | H38: 11030 | I38: 11200 | J38: Profit of Rs 85/- | K38: =H38-F38 -> 110 | L38: 6375 | M38: 75 | N38: Successful | O38: 2018-10-01 | R38: H
D39: NIFTY OCT 11100 CE | E39: Sell | F39: 112.5 | H39: 137.5 | K39: =F39-H39 -> -25
A40: 3 | B40: 2018-10-03 | D40: NIFTY OCT FUT | E40: Buy | F40: 10952.5 | G40: 10850 | H40: 10780 | I40: 11150 | J40: Loss of Rs.172.5/- | K40: =H40-F40 -> -172.5 | L40: =M40*K40 -> -12937.5 | M40: 75 | N40: Unsuccessful | O40: 2018-10-04 | R40: H
A41: 4 | B41: 2018-10-03 | D41: MARUTI OCT FUT | E41: Buy | F41: 7310 | G41: 7117 | H41: 7010 | I41: 7650-7700 | J41: Loss of Rs.300/- | K41: =H41-F41 -> -300 | L41: =M41*K41 -> -22500 | M41: 75 | N41: Unsuccessful | O41: 2018-10-05 | R41: R
A42: 5 | B42: 2018-10-03 | D42: RELIANCE OCT FUT | E42: Buy | F42: 1222.5 | G42: 1195 | H42: 1195 | I42: 1270-1280 | J42: Loss of Rs.16/- | K42: =H42-F42 -> -27.5 | L42: =-16*M42 -> -16000 | M42: 1000 | N42: Unsuccessful | O42: 2018-10-04 | R42: H
D43: RELIANCE OCT 1260 CE | E43: Sell | F43: 26 | H43: 14.5 | K43: =F43-H43 -> 11.5
A44: 6 | B44: 2018-10-05 | D44: NIFTY OCT FUT | E44: Buy | F44: 10535 | G44: 10400 | H44: 10410 | I44: 10800 | J44: Loss of Rs.55/- | K44: =H44-F44 -> -125 | L44: =-55*75 -> -4125 | M44: 75 | N44: Unsuccessful | O44: 2018-10-05 | R44: H
D45: NIFTY OCT 10700 CE | E45: Sell | F45: 132.5 | H45: 62.5 | K45: =F45-H45 -> 70
A49: Master Trade Medium Risk
A50: Sr.no | B50: Date | D50: Company | E50: Rec | F50: Rec Price | G50: Stop Loss | H50: Call Closed At | I50: Target | J50: Remark | K50: Profit/ Loss per lot | L50: Gain / Loss per Lot | M50: Lot | N50: Status | O50: Closed Date
B63: Smart Delivery Trade
A64: Sr.no | B64: Date | D64: Company | E64: Rec | F64: Rec Price | G64: Stop Loss*** | H64: Call Closed At | I64: Target | J64: Remark | K64: Profit / Loss per Share | L64: Gain / Loss % | M64: Status | N64: Closed Date | O64: NSE Closed Price
A65: 1 | B65: 2018-09-27 | D65: COLPAL | E65: Buy | F65: 1090-1098 | G65: 1058 | I65: 1140-1160 | J65: Open | O65: =VLOOKUP(D65,Sheet2!$A$1:M2262,6,0) -> 1069.55 | R65: H
A66: 2 | B66: 2018-10-03 | D66: BAJFINACE | E66: Buy | F66: 2210 | G66: 2140 | H66: 2275 | I66: 2300-2350 | J66: Profit of Rs. 65/- | K66: =H66-F66 -> 65 | L66: =K66/F66 -> 2.94% | M66: Successful | N66: 2018-10-03 | R66: H
A67: 3 | B67: 2018-10-03 | D67: ADVENZYMES | E67: Buy | F67: 185-187 | G67: 179.7 | I67: 197-200 | J67: Open | O67: =VLOOKUP(D67,Sheet2!$A$1:M2264,6,0) -> 175.2 | R67: R
A68: 4 | B68: 2018-10-03 | D68: LT | E68: Buy | F68: 1249.5 | G68: 1195 | H68: 1277.5 | I68: 1330-1350 | J68: Profit of Rs. 28/- | K68: =H68-F68 -> 28 | L68: =K68/F68 -> 2.24% | M68: Successful | N68: 2018-10-04 | R68: H
A69: 5 | B69: 2018-10-04 | D69: BAJFINANCE | E69: Buy | F69: 2180 | G69: 2135 | H69: 2135 | I69: 2250-2300 | J69: Profit of Rs. 45/- | K69: =H69-F69 -> -45 | L69: =K69/F69 -> -2.06% | M69: Unsuccessful | N69: 2018-10-05 | R69: H
A74: CLBS = Closing Basis *** | F74: Reinitiated $
A75: Dividend adjusted <> | F75: Revised stoploss #
B78: Momentum Call
A79: Sr.no | B79: Date | D79: Company | E79: Rec | F79: Rec Price | G79: Stop Loss | H79: Call Closed At | I79: Target | J79: Remark | K79: Profit / Loss per Share/Lot | L79: Gain / Loss % | M79: Gain / Loss per Lot | N79: Lot | O79: Status | P79: Closed Date
A80: 1 | B80: 2018-10-01 | D80: INFRATEL OCT FUT | E80: Buy | F80: 268 | G80: 260 | H80: 260 | I80: 282 | J80: Loss of Rs.8/- | K80: =H80-F80 -> -8 | M80: =N80*K80 -> -13600 | N80: 1700 | O80: Unsuccessful | P80: 2018-10-03 | R80: N
A81: 2 | B81: 2018-10-03 | D81: TATASTEEL OCT FUT | E81: Buy | F81: 591.5 | G81: 579 | H81: 578 | I81: 610 | J81: Loss of Rs.13.5/- | K81: =H81-F81 -> -13.5 | M81: =N81*K81 -> -14323.5 | N81: 1061 | O81: Unsuccessful | P81: 2018-10-04 | R81: N
A82: 3 | B82: 2018-10-03 | D82: UPL OCT FUT | E82: Buy | F82: 647 | G82: 636 | H82: 640 | I82: 665-670 | J82: Loss of Rs.7/- | K82: =H82-F82 -> -7 | M82: =N82*K82 -> -8400 | N82: 1200 | O82: Unsuccessful | P82: 2018-10-04 | R82: N
A89: CLBS = Closing Basis ***
A90: Dividend adjusted <> | F90: Reinitiated $
F91: Revised stoploss #
B92: Quick Pick Intraday
A93: Sr.no | B93: Date | D93: Company | E93: Rec | F93: Rec Price | G93: Stop Loss*** | H93: Call Closed At | I93: Target | J93: Remark | K93: Profit / Loss per Share | L93: Status | M93: Closed Date
A107: Techno -Funda (positional)
A108: Sr.no | B108: Date | D108: Company | E108: Rec | F108: Rec Price | G108: Stop Loss*** | H108: Call Closed At | I108: Target | J108: Remark | K108: Profit / Loss per Share | L108: Gain / Loss % | M108: Status | N108: Closed Date | O108: NSE Closed Price
A111: CLBS = Closing Basis *** | F111: Reinitiated $
A112: Dividend adjusted <> | F112: Revised stoploss #
B117: Investment Idea
A118: Sr.no | B118: Date | D118: Company | E118: Rec | F118: Rec Price | G118: Point of Review | H118: Close Rate | I118: Target | J118: Remark | K118: Profit / Loss per Share | L118: Gain / Loss % | M118: Status | N118: Closed Date
A119: 1 | B119: 2013-11-01 | D119: L&T Finance Holding | E119: Accu | F119: 82.00 | G119: - | H119: 100 | I119: 100.00 | J119: Target Achieved | K119: =H119-F119 -> 18.00 | L119: =K119/F119 -> 21.95% | M119: Successful | N119: 2016-10-14
A120: 2 | B120: 2014-06-04 | D120: Finolex Inds | E120: Buy | F120: 257.00 | G120: - | H120: 300 | I120: 300.00 | J120: Target Achieved | K120: =H120-F120 -> 43.00 | L120: 16.73% | M120: Successful | N120: 2014-07-02
A121: =1+A120 -> 3 | B121: 2014-07-08 | D121: JK Cement | E121: Buy | F121: 393.00 | G121: - | H121: 468 | I121: 468.00 | J121: Target Achieved | K121: =H121-F121 -> 75.00 | L121: 19.08% | M121: Successful | N121: 2014-08-12
A122: 4 | B122: 2014-08-06 | D122: Finolex Cables | E122: Buy | F122: 205.00 | G122: - | H122: 275 | I122: 250.00 | J122: Target Achieved | K122: 70.00 | L122: 34.15% | M122: Successful | N122: 2014-11-19
A123: 5 | B123: 2014-09-04 | D123: Exide Inds | E123: Buy | F123: 162.00 | G123: - | H123: 190 | I123: 190.00 | J123: Target Achieved | K123: 28.00 | L123: 17.28% | M123: Successful | N123: 2015-01-02
A124: 6 | B124: 2014-09-04 | D124: Deepak Nitrite | E124: Buy | F124: 75.00 | G124: - | H124: 91.5 | I124: 95-100 | J124: Profit of Rs.16.50/- | K124: 16.50 | L124: 22.00% | M124: Successful | N124: 2014-11-11
A125: 7 | B125: 2014-10-01 | D125: Mercks | E125: Buy | F125: 850.00 | G125: - | H125: 982.5 | I125: 1050.00 | J125: Profit of Rs.132.50/- | K125: 132.50 | L125: 15.59% | M125: Successful | N125: 2015-02-04
A126: 8 | B126: 2014-10-01 | D126: Grindwell Norton | E126: Buy | F126: 475.00 | G126: - | H126: 515 | I126: 600.00 | J126: Profit of Rs.40/- | K126: 40.00 | L126: 8.42% | M126: Successful | N126: 2014-10-27
A127: 9 | B127: 2014-10-01 | D127: Snowman Logistics | E127: Buy | F127: 86.00 | G127: - | H127: 99 | I127: 140.00 | J127: Profit of Rs.13.00/- | K127: 13.00 | L127: 15.12% | M127: Successful | N127: 2014-10-27
A128: 10 | B128: 2014-10-14 | D128: Birla Corp | E128: Buy | F128: 496.60 | G128: - | H128: 621 | I128: 580.00 | J128: Target Achieved | K128: 124.40 | L128: 25.05% | M128: Successful | N128: 2016-08-23
A129: 11 | B129: 2014-10-14 | D129: Ultratech Cem | E129: Buy | F129: 2481.90 | G129: - | H129: 2840 | I129: 2870.00 | J129: Profit of Rs.358.10/- | K129: 358.10 | L129: 14.43% | M129: Successful | N129: 2015-01-13
A130: =1+A127 -> 10 | B130: 2014-10-16 | D130: Sintex Inds | E130: Buy | F130: 84.50 | G130: - | H130: 93 | I130: 110.00 | J130: Profit of Rs.8.50/- | K130: 8.50 | L130: 10.06% | M130: Successful | N130: 2014-10-27
A131: =1+A130 -> 11 | B131: 2014-10-16 | D131: HSIL | E131: Buy | F131: 401.00 | G131: - | H131: 428 | I131: 450.00 | J131: Profit of Rs.27.00/- | K131: 27.00 | L131: 6.73% | M131: Successful | N131: 2015-01-16
A132: 12 | B132: 2014-10-16 | D132: Eveready Inds | E132: Buy | F132: 101.00 | G132: - | H132: 112 | I132: 120.00 | J132: Profit of Rs.11.00/- | K132: 11.00 | L132: 10.89% | M132: Successful | N132: 2014-10-27
A133: 13 | B133: 2014-11-11 | D133: Pennar Inds | E133: Buy | F133: 59.00 | G133: - | H133: 76 | I133: 76.00 | J133: Target Achieved | K133: 17.00 | L133: 28.81% | M133: Successful | N133: 2017-10-24
A134: 14 | B134: 2014-11-11 | D134: Snowman Logistics | E134: Buy | F134: 99.00 | G134: - | H134: 120 | I134: 120.00 | J134: Profit of Rs.21/- | K134: 21.00 | L134: 21.21% | M134: Successful | N134: 2014-11-17
A135: 15 | B135: 2014-11-13 | D135: Dharamsi Morarji Chem | E135: Buy | F135: 22.00 | G135: - | H135: 33.55 | I135: 32.00 | J135: Profit of Rs 11.55/- | K135: 11.55 | L135: 52.50% | M135: Successful | N135: 2015-07-03
A136: 16 | B136: 2014-12-03 | D136: Tatachem | E136: Buy | F136: 440.00 | G136: - | H136: 520 | I136: 520.00 | J136: Profit of Rs 80.00/- | K136: 80.00 | L136: 18.18% | M136: Successful | N136: 2015-07-23
A137: 17 | B137: 2014-12-03 | D137: Advanta | E137: Buy | F137: 360.00 | G137: - | H137: 427 | I137: 425.00 | J137: Profit of Rs.67.00/- | K137: 67.00 | L137: 18.61% | M137: Successful | N137: 2015-02-23
A138: 18 | B138: 2015-01-08 | D138: GDL | E138: Buy | F138: 360.00 | G138: - | H138: 455 | I138: 420.00 | J138: Profit of Rs.95.00/- | K138: 95.00 | L138: 26.39% | M138: Successful | N138: 2015-01-20
A139: 19 | B139: 2015-01-08 | D139: NRB Bearing | E139: Buy | F139: 130.00 | H139: 175.5 | I139: 165.00 | J139: Profit of Rs 45.50/- | K139: 45.50 | L139: 35.00% | M139: Successful | N139: 2017-12-19
A140: 20 | B140: 2015-02-05 | D140: GSFC | E140: Accu | F140: 98.00 | H140: 120 | I140: 120.00 | J140: Target Achieved | K140: 22.00 | L140: 22.45% | M140: Successful | N140: 2017-01-18
A141: 21 | B141: 2015-02-05 | D141: Sundrmfast | E141: Accu | F141: 196.00 | H141: 262 | I141: 255.00 | J141: Target Achieved | K141: 66.00 | L141: 33.67% | M141: Successful | N141: 2016-08-17
A142: 22 | B142: 2015-03-04 | D142: GPPL | E142: Accu | F142: 230-240 | I142: 280-285 | J142: Open
A143: 23 | B143: 2015-03-04 | D143: ORIENTCEM | E143: Accu | F143: 185.00 | H143: 224 | I143: 220-225 | J143: Target Achieved | K143: 39.00 | L143: =K143/F143 -> 21.08% | M143: Successful | N143: 2016-10-04
A144: 24 | B144: 2015-03-27 | D144: PFS | E144: Accu | F144: 49-50 | I144: 67.00 | J144: Open
A145: 25 | B145: 2015-03-30 | D145: Walchandnagar Ind Ltd | E145: Accu | F145: 183.50 | H145: 219 | I145: 218.00 | J145: Profit of Rs.35.50/- | K145: 35.50 | L145: =K145/F145 -> 19.35% | M145: Successful | N145: 2015-04-09
A146: 26 | B146: 2015-04-20 | D146: Kalpataru Power Transmission Ltd | E146: Accu | F146: =(227+237)/2 -> 232.00 | H146: 298 | I146: 298.00 | J146: Target Achieved | K146: 66.00 | L146: 28.45% | M146: Successful | N146: 2017-03-29
A147: 27 | B147: 2015-05-04 | D147: Mastek Ltd | E147: Buy | F147: 385.00 | H147: =212.5+331 -> 543.5 | I147: 510.00 | J147: Profit of Rs 158.50/- | K147: 158.50 | L147: 41.17% | M147: Successful | N147: 2015-08-19
A148: 28 | B148: 2015-05-04 | D148: Suprajit Eng | E148: Buy | F148: 115.50 | H148: 146 | I148: 142.00 | J148: Profit of Rs 30.50/- | K148: 30.50 | L148: 26.41% | M148: Successful | N148: 2015-07-17
A149: 29 | B149: 2015-05-27 | D149: TCI | E149: Buy | F149: 237.50 | H149: 279.5 | I149: 278.00 | J149: Target Achieved | K149: 42.00 | L149: 17.68% | M149: Successful | N149: 2015-08-06
A150: 30 | B150: 2015-06-19 | D150: HSIL | E150: Accu | F150: 340.00 | H150: 448 | I150: 448.00 | J150: Target Achieved | K150: 108.00 | L150: 31.76% | M150: Successful | N150: 2017-10-10
A151: 31 | B151: 2015-07-06 | D151: Capital First | E151: Accu | F151: 390.00 | H151: 460 | I151: 460.00 | J151: Target Achieved | K151: 70.00 | L151: 17.95% | M151: Successful | N151: 2016-04-18
A152: 32 | B152: 2015-07-10 | D152: Dolphin OffShore | E152: Accu | F152: 122.5 | H152: 61.00 | I152: 172.00 | J152: Loss of Rs.61.50/- | K152: -61.50 | L152: -50.20% | M152: Unsuccessful | N152: 2018-08-21
A153: 33 | B153: 2015-08-03 | D153: Allcargo logistics | E153: Accu | F153: 297.50 | H153: 350 | I153: 360.00 | J153: Profit of Rs 52.50/- | K153: 52.50 | L153: =K153/F153 -> 17.65% | M153: Successful | N153: 2015-08-16
A154: 34 | B154: 2015-08-03 | D154: Camline Fine | E154: Accu | F154: 115.50 | H154: 149 | I154: 140.00 | J154: Profit of Rs 33.50/- | K154: 33.50 | L154: 29.00% | M154: Successful | N154: 2017-01-05
A155: 35 | B155: 2015-09-04 | D155: TCI | E155: Accu | F155: 226.00 | H155: 292 | I155: 292.00 | J155: Target Achieved | K155: 66.00 | L155: 29.20% | M155: Successful | N155: 2015-10-09
A156: 36 | B156: 2015-09-07 | D156: Kalpataru Power Transmission Ltd | E156: Accu | F156: 232.50 | H156: 312.5 | I156: 310.00 | J156: Target Achieved | K156: 80.00 | L156: 34.41% | M156: Successful | N156: 2017-03-29
A157: 37 | B157: 2015-09-21 | D157: LLOYD ELECTRIC & ENG LTD | E157: Accu | F157: 196.50 | H157: 238 | I157: 238.00 | J157: Target Achieved | K157: 41.50 | L157: 21.12% | M157: Successful | N157: 2015-10-14
A158: 38 | B158: 2015-09-24 | D158: L&T Finance Holding | E158: Accu | F158: 65.00 | H158: 82 | I158: 82.00 | J158: Target Achieved | K158: 17.00 | L158: 26.15% | M158: Successful | N158: 2016-07-27
A159: 39 | B159: 2015-10-14 | D159: KEC International ltd | E159: Accu | F159: 144.00 | H159: 182.5 | I159: 181.00 | J159: Target Achieved | K159: 38.50 | L159: 26.74% | M159: Successful | N159: 2017-03-23
A160: 40 | B160: 2015-10-14 | D160: Gruh Finance | E160: Accu | F160: 264.00 | H160: 311 | I160: 311.00 | J160: Target Achieved | K160: 47.00 | L160: 17.80% | M160: Successful | N160: 2016-08-22
A161: 41 | B161: 2015-11-10 | D161: Pidilitind | E161: Buy | F161: 549.50 | H161: 630 | I161: 630.00 | J161: Target Achieved | K161: 80.50 | L161: 14.65% | M161: Successful | N161: 2016-02-19
A162: 42 | B162: 2015-12-04 | D162: Zensar Technology | E162: Accu | F162: 1027.50 | H162: 1315 | I162: 1250.00 | J162: Target Achieved | K162: =H162-F162 -> 287.50 | L162: 27.98% | M162: Successful | N162: 2018-05-24
A163: 43 | B163: 2015-12-29 | D163: Vinati Organics Ltd | E163: Accu | F163: 465.00 | H163: 540 | I163: 540.00 | J163: Target Achieved | K163: 75.00 | L163: =K163/F163 -> 16.13% | M163: Successful | N163: 2016-06-09
A164: 44 | B164: 2016-01-11 | D164: GSFC | E164: Buy | F164: 81.00 | H164: 110 | I164: 110.00 | J164: Target Achieved | K164: 29.00 | L164: 35.80% | M164: Successful | N164: 2017-01-10
A165: 45 | B165: 2016-01-13 | D165: SSWL | E165: Buy | F165: 417.50 | H165: 547 | I165: 535.00 | J165: Target Achieved | K165: 129.50 | L165: 31.02% | M165: Successful | N165: 2016-07-27
A166: 46 | B166: 2016-02-08 | D166: Persistent System Ltd | E166: Accu | F166: 650.00 | H166: 800 | I166: 800.00 | J166: Target Achieved | K166: 150.00 | L166: 23.08% | M166: Successful | N166: 2018-02-23
A167: 47 | B167: 2016-03-04 | D167: UPL | E167: Accu | F167: 437.50 | H167: 504.5 | I167: 522.00 | J167: Profit of Rs.67/- | K167: 67.00 | L167: 15.31% | M167: Successful | N167: 2016-04-20
A168: 48 | B168: 2016-03-09 | D168: Ashoka Buildcon Ltd | E168: Accu | F168: 189.50 | H168: 218 | I168: 218.00 | J168: Target Achieved | K168: 28.50 | L168: 15.04% | M168: Successful | N168: 2017-10-26
A169: 49 | B169: 2016-04-11 | D169: PTC INDIA FIN SERV LTD | E169: Accu | F169: 36-37 | I169: 60.00 | J169: Open
A170: 50 | B170: 2016-04-12 | D170: CAMLINFINE $ | E170: Accu | F170: 93.00 | H170: 149 | I170: 140.00 | J170: Profit of Rs 56/- | K170: 56.00 | L170: =K170/F170 -> 60.22% | M170: Successful | N170: 2017-01-05
A171: 51 | B171: 2016-04-12 | D171: Greaves Cotton Ltd. | E171: Accu | F171: 130.00 | H171: 150 | I171: 150-155 | J171: Target Achieved | K171: 20.00 | L171: 15.38% | M171: Successful | N171: 2016-07-13
A172: 52 | B172: 2016-04-13 | D172: DHFL | E172: Accu | F172: 196.00 | H172: 299 | I172: 299.00 | J172: Target Achieved | K172: 103.00 | L172: 52.55% | M172: Successful | N172: 2016-09-07
A173: 53 | B173: 2016-04-13 | D173: Magma | E173: Accu | F173: 88.00 | H173: 103 | I173: 103.00 | J173: Target Achieved | K173: 15.00 | L173: 17.05% | M173: Successful | N173: 2016-06-09
A174: 54 | B174: 2016-05-02 | D174: KEC International ltd $ | E174: Accu | F174: 127.50 | H174: 148 | I174: 148-150 | J174: Target Achieved | K174: 20.50 | L174: 16.08% | M174: Successful | N174: 2016-07-13
A175: 55 | B175: 2016-05-03 | D175: Mindtree | E175: Accu | F175: 675.00 | H175: 815 | I175: 790-800 | J175: Target Achieved | K175: 140.00 | L175: 20.74% | M175: Successful | N175: 2018-02-23
A176: 56 | B176: 2016-06-01 | D176: Atulauto | E176: Accu | F176: 495-505 | I176: 565-570 | J176: Open
A177: 57 | B177: 2016-06-06 | D177: TRITURBINE | E177: Accu | F177: 110.00 | H177: 126.5 | I177: 125.00 | J177: Profit of Rs.16.50/- | K177: 16.50 | L177: =K177/F177 -> 15.00% | M177: Successful | N177: 2016-07-01
A178: 58 | B178: 2016-06-17 | D178: Pennar Industries Ltd | E178: Accu | F178: 44.00 | H178: 69.5 | I178: 69.50 | J178: Profit of Rs.25.50/- | K178: 25.50 | L178: =K178/F178 -> 57.95% | M178: Successful | N178: 2017-08-30
A179: 59 | B179: 2016-06-28 | D179: EVEREADY INDS. IND. LTD. | E179: Accu | F179: 262.50 | H179: 340 | I179: 333.00 | J179: Profit of Rs.77.50/- | K179: 77.50 | L179: =K179/F179 -> 29.52% | M179: Successful | N179: 2017-10-09
A180: 60 | B180: 2016-06-28 | D180: FIEM INDUSTRIES LIMITED | E180: Accu | F180: 840.00 | H180: 1230 | I180: 1230.00 | J180: Target Achieved | K180: 390.00 | L180: =K180/F180 -> 46.43% | M180: Successful | N180: 2016-10-06
A181: 61 | B181: 2016-07-05 | D181: Bajaj Corp Ltd | E181: Accu | F181: 395 | H181: 468.50 | I181: 510.00 | J181: Part profit of Rs.73.50/- | K181: 73.50 | L181: =K181/F181 -> 19% | M181: Successful | N181: 2017-08-30
A182: 62 | B182: 2016-08-02 | D182: GPPL $ | E182: Buy | F182: 167-172 | I182: 198-200 | J182: Open
A183: 63 | B183: 2016-08-04 | D183: WONDERLA HOLIDAYS LTD | E183: Accu | F183: 395-405 | I183: 475.00 | J183: Open
A184: 64 | B184: 2016-08-11 | D184: CAMLINFINE | E184: Accu | F184: 86.50 | H184: 130 | I184: 130.00 | J184: Profit of Rs.43.50/- | K184: =H184-F184 -> 43.50 | L184: =K184/F184 -> 50.29% | M184: Successful | N184: 2017-12-22
A185: 65 | B185: 2016-08-18 | D185: GRANULES | E185: Accu | F185: 133.5 | H185: 126.50 | I185: 178.00 | J185: Exit | K185: -7.00 | L185: -5.24% | M185: Unsuccessful | N185: 2016-09-02
A186: 66 | B186: 2016-08-31 | D186: VA TECH WABAG | E186: Accu | F186: 560.00 | H186: 725 | I186: 725.00 | J186: Target Achieved | K186: 165.00 | L186: 29.46% | M186: Successful | N186: 2016-03-27
A187: 67 | B187: 2016-09-01 | D187: SKIPPER LIMITED | E187: Accu | F187: 160.50 | H187: 210 | I187: 210.00 | J187: Target Achieved | K187: 49.50 | L187: 30.84% | M187: Successful | N187: 2017-05-16
A188: 68 | B188: 2016-10-03 | D188: IFB Industries | E188: Accu | F188: 430.00 | H188: 596 | I188: 575.00 | J188: Profit of Rs.166/- | K188: 166.00 | L188: 38.60% | M188: Successful | N188: 2017-02-03
A189: 69 | B189: 2016-10-14 | D189: ASIANTILES | E189: Accu | F189: 280.00 | H189: 345 | I189: 345.00 | J189: Target Achieved | K189: 65.00 | L189: 23.21% | M189: Successful | N189: 2017-03-20
A190: 70 | B190: 2016-10-14 | D190: DEEPIND | E190: Accu | F190: 245.00 | H190: 325.5 | I190: 330.00 | J190: Profit of Rs.80.5/- | K190: 80.50 | L190: 32.86% | M190: Successful | N190: 2017-02-03
A191: 71 | B191: 2016-10-17 | D191: DCBBANK | E191: Accu | F191: 125.00 | H191: 160 | I191: 160.00 | J191: Target Achieved | K191: 35.00 | L191: 28.00% | M191: Successful | N191: 2017-03-09
A192: 72 | B192: 2016-10-17 | D192: ORIENTREF | E192: Accu | F192: 114.00 | H192: 145 | I192: 145.00 | J192: Target Achieved | K192: 31.00 | L192: =K192/F192 -> 27.19% | M192: Successful | N192: 2017-05-04
A193: 73 | B193: 2016-10-17 | D193: GANECOS | E193: Accu | F193: 212.00 | H193: 280 | I193: 276.00 | J193: Profit of Rs.68/- | K193: 68.00 | L193: =K193/F193 -> 32.08% | M193: Successful | N193: 2017-05-03
A194: 74 | B194: 2016-11-04 | D194: NBCC | E194: Accu | F194: 155.00 | H194: 210 | I194: 210.00 | J194: Profit of Rs.55/- | K194: 55.00 | L194: =K194/F194 -> 35.48% | M194: Successful | N194: 2017-07-28
A195: 75 | B195: 2016-12-06 | D195: PRECAM | E195: Accu | F195: 150.5 | H195: 72.50 | I195: 174.00 | J195: Loss of Rs.78/- | K195: -78.00 | L195: =K195/F195 -> -51.83% | M195: Unsuccessful | N195: 2018-08-21
A196: 76 | B196: 2016-12-08 | D196: INFRATEL | E196: Accu | F196: 380.00 | H196: 478 | I196: 468.00 | J196: Target Achieved | K196: 98.00 | L196: =K196/F196 -> 25.79% | M196: Successful | N196: 2017-10-17
A197: 77 | B197: 2016-12-30 | D197: GODREJPROP | E197: Accu | F197: 305.00 | H197: 375 | I197: 375.00 | J197: Target Achieved | K197: 70.00 | L197: 22.95% | M197: Successful | N197: 2017-02-02
A198: 78 | B198: 2017-01-04 | D198: DEEPAKNTR | E198: Accu | F198: 99.50 | H198: 158 | I198: 158.00 | J198: Target Achieved | K198: 58.50 | L198: 58.79% | M198: Successful | N198: 2017-06-12
A199: 79 | B199: 2017-02-20 | D199: SUBROS | E199: Accu | F199: 202.50 | H199: 234 | I199: 234.00 | J199: Target Achieved | K199: 31.50 | L199: 15.56% | M199: Successful | N199: 2017-04-11
A200: 80 | B200: 2017-02-20 | D200: RECLTD | E200: Accu | F200: 140.50 | H200: 220 | I200: 220.00 | J200: Target Achieved | K200: 79.50 | L200: 56.58% | M200: Successful | N200: 2017-05-09
A201: 81 | B201: 2017-03-24 | D201: VRLLOG | E201: Accu | F201: 300.50 | H201: 417.5 | I201: 420.00 | J201: Profit of Rs.117/- | K201: 117.00 | L201: 38.94% | M201: Successful | N201: 2017-12-01
A202: 82 | B202: 2017-03-24 | D202: FIEMIND | E202: Accu | F202: 850.00 | H202: 1042.5 | I202: 1023.00 | J202: Profit of Rs 192.50/- | K202: 192.50 | L202: 22.65% | M202: Successful | N202: 2017-04-05
A203: 83 | B203: 2017-04-05 | D203: RATNAMANI | E203: Accu | F203: 785.00 | H203: 930 | I203: 920.00 | J203: Profit of Rs.145/- | K203: 145.00 | L203: 18.47% | M203: Successful | N203: 2017-08-29
A204: 84 | B204: 2017-04-06 | D204: ZEEMEDIA | E204: Accu | F204: 39-41 | I204: 60.00 | J204: Open
A205: 85 | B205: 2017-04-12 | D205: DABUR | E205: Accu | F205: 289.50 | H205: 354 | I205: 360.00 | J205: Profit of Rs.64.5/- | K205: 64.50 | L205: =K205/F205 -> 22.28% | M205: Successful | N205: 2017-11-01
A206: 86 | B206: 2017-04-20 | D206: KPRMILL | E206: Accu | F206: 700.00 | H206: 840 | I206: 840.00 | J206: Profit of Rs.140/- | K206: 140.00 | L206: =K206/F206 -> 20.00% | M206: Successful | N206: 2017-06-07
A207: 87 | B207: 2017-05-22 | D207: GREAVESCOT | E207: Accu | F207: 153-158 | I207: 190.00 | J207: Open
A208: 88 | B208: 2017-06-01 | D208: ESSELPACK | E208: Accu | F208: 260 | H208: 311.00 | I208: 340.00 | J208: Part profit of Rs.51/- | K208: =H208-F208 -> 51.00 | L208: =K208/F208 -> 20% | M208: Successful | N208: 2017-11-17
A209: 89 | B209: 2017-06-15 | D209: KEI | E209: Accu | F209: 214.50 | H209: 262 | I209: 262.00 | J209: Profit of Rs.47.5/- | K209: =H209-F209 -> 47.50 | L209: 22.14% | M209: Successful | N209: 2017-08-30
A210: 90 | B210: 2017-07-17 | D210: MAYURUNIQ | E210: Accu | F210: 370.00 | H210: 447.5 | I210: 450.00 | J210: Target Achieved | K210: 77.50 | L210: 20.95% | M210: Successful | N210: 2017-10-27
A211: 91 | B211: 2017-07-27 | D211: RAMCOCEM | E211: Accu | F211: 657.50 | H211: 825 | I211: 820.00 | J211: Target Achieved | K211: 167.50 | L211: 25.48% | M211: Successful | N211: 2017-12-21
A212: 92 | B212: 2017-08-17 | D212: FINPIPE | E212: Accu | F212: 605.00 | H212: 750 | I212: 750.00 | J212: Profit of Rs.145/- | K212: 145.00 | L212: 23.97% | M212: Successful | N212: 2017-10-19
A213: 93 | B213: 2017-09-01 | D213: SHK | E213: Accu | F213: 255 | H213: 307.50 | I213: 320.00 | J213: Part profit of Rs.52.5/- | K213: 52.50 | L213: 21% | M213: Successful | N213: 2017-12-29
A214: 94 | B214: 2017-09-19 | D214: SKIPPER | E214: Accu | F214: 215.00 | H214: 258 | I214: 258.00 | J214: Target Achieved | K214: 43.00 | L214: 20.00% | M214: Successful | N214: 2017-11-01
A215: 95 | B215: 2017-09-20 | D215: CAMLINFINE | E215: Accu | F215: 75.00 | H215: 90 | I215: 90.00 | J215: Profit of Rs.15.00/- | K215: 15.00 | L215: 20.00% | M215: Successful | N215: 2017-10-11
A216: 96 | B216: 2017-10-03 | D216: GNA | E216: Accu | F216: 315.00 | H216: 392 | I216: 384.00 | J216: Profit of Rs.77/- | K216: 77.00 | L216: 24.44% | M216: Successful | N216: 2017-10-09
A217: 97 | B217: 2017-10-05 | D217: NOCIL | E217: Accu | F217: 145.00 | H217: 179 | I217: 180.00 | J217: Profit of Rs.34/- | K217: 34.00 | L217: 23.45% | M217: Successful | N217: 2017-10-17
A218: 98 | B218: 2017-10-06 | D218: CENTURYPLY | E218: Accu | F218: 256.00 | H218: 323 | I218: 320.00 | J218: Target Achieved | K218: 67.00 | L218: 26.17% | M218: Successful | N218: 2017-11-28
A219: 99 | B219: 2017-10-09 | D219: RECLTD | E219: Accu | F219: 152.5 | H219: 183.50 | I219: 210.00 | J219: Part Profit of Rs.31/- | K219: 31.00 | L219: 20% | M219: Successful | N219: 2017-11-03
A220: 100 | B220: 2017-10-09 | D220: EIHOTEL | E220: Accu | F220: 137.50 | H220: 184 | I220: 183.00 | J220: Profit of Rs.46.5/- | K220: 46.50 | L220: 33.82% | M220: Successful | N220: 2018-01-08
A221: 101 | B221: 2017-10-10 | D221: BOROSIL | E221: Accu | F221: 895.00 | H221: 1122.5 | I221: 1078.00 | J221: Profit of Rs.227.5/- | K221: 227.50 | L221: 25.42% | M221: Successful | N221: 2018-01-17
A222: 102 | B222: 2017-10-10 | D222: NRBBEARING | E222: Accu | F222: 125.50 | H222: 158 | I222: 155.00 | J222: Profit of Rs.32.5/- | K222: 32.50 | L222: 25.90% | M222: Successful | N222: 2017-11-28
A223: 103 | B223: 2017-10-12 | D223: CYIENT | E223: Accu | F223: 525.00 | H223: 629 | I223: 629.00 | J223: Target Achieved | K223: 104.00 | L223: 19.81% | M223: Successful | N223: 2018-01-19
A224: 104 | B224: 2017-11-07 | D224: HATSUN | E224: Accu | F224: 740.00 | H224: 892.5 | I224: 900.00 | J224: Profit of Rs.152.5/- | K224: 152.50 | L224: 20.61% | M224: Successful | N224: 2017-11-13
A225: 105 | B225: 2017-12-04 | D225: SANGHIIND | E225: Accu | F225: 118.50 | H225: 143.5 | I225: 145.00 | J225: Profit of Rs.25/- | K225: 25.00 | L225: 21.10% | M225: Successful | N225: 2017-12-28
A226: 106 | B226: 2017-12-05 | D226: ALLCARGO | E226: Accu | F226: 177.5 | H226: 215.00 | I226: 230.00 | J226: Part Profit of Rs.37.5/- | K226: 37.50 | L226: 21% | M226: Successful | N226: 2017-12-27
A227: 107 | B227: 2017-12-21 | D227: KAJARIACER | E227: Accu | F227: 710-720 | I227: 872.00 | J227: Open
A228: 108 | B228: 2017-12-29 | D228: GNA | E228: Accu | F228: 435.00 | H228: 542.5 | I228: 539.00 | J228: Target Achieved | K228: =H228-F228 -> 107.50 | L228: =K228/F228 -> 24.71% | M228: Successful | N228: 2018-04-16
A229: 109 | B229: 2017-12-29 | D229: ZENSARTECH | E229: Accu | F229: 885.00 | H229: 1090 | I229: 1084.00 | J229: Target Achieved | K229: 205.00 | L229: =K229/F229 -> 23.16% | M229: Successful | N229: 2018-04-23
A230: 110 | B230: 2018-02-07 | D230: GREAVESCOT | E230: Accu | F230: 130-132 | I230: 190.00 | J230: Open
A231: 111 | B231: 2018-02-27 | D231: MOLDTKPAC | E231: Accu | F231: 320-330 | I231: 398.00 | J231: Open
A232: 112 | B232: 2018-03-05 | D232: LICHSGFIN | E232: Accu | F232: 505-515 | I232: 672.00 | J232: Open
A233: 113 | B233: 2018-04-02 | D233: EVERESTIND | E233: Accu | F233: 492.5 | H233: 589.00 | I233: 613.00 | J233: Part Profit of Rs.37.5/- | K233: =H233-F233 -> 96.50 | L233: =K233/F233 -> 20% | M233: Successful | N233: 2018-08-21
A234: 114 | B234: 2018-04-04 | D234: GPPL | E234: Accu | F234: 140-143 | I234: 180.00 | J234: Open
A235: 115 | B235: 2018-04-19 | D235: MANPASAND | E235: Accu | F235: 430 | H235: 220.00 | I235: 537.00 | J235: Loss of Rs.210/- | K235: =H235-F235 -> -210.00 | L235: =K235/F235 -> -48.84% | M235: Unsuccessful | N235: 2018-06-01
A236: 116 | B236: 2018-04-30 | D236: HEIDELBERG | E236: Accu | F236: 154-158 | I236: 196.00 | J236: Open
A237: 117 | B237: 2018-05-17 | D237: PHILIPCARB | E237: Accu | F237: 230-240 | I237: 348.00 | J237: Open
A238: 118 | B238: 2018-06-07 | D238: KEC | E238: Accu | F238: 340-345 | I238: 439.00 | J238: Open
A239: 119 | B239: 2018-07-04 | D239: ASHOKLEY | E239: Accu | F239: 125-130 | I239: 170.00 | J239: Open
A240: 120 | B240: 2018-07-13 | D240: FCONSUMER | E240: Accu | F240: 46-47 | I240: 59.00 | J240: Open
A241: 121 | B241: 2018-07-25 | D241: ZEEMEDIA | E241: Accu | F241: 27-28 | I241: 44.00 | J241: Open
A242: 122 | B242: 2018-08-06 | D242: GABRIEL | E242: Accu | F242: 148-152 | I242: 182.00 | J242: Open
A243: 123 | B243: 2018-08-23 | D243: INDIANHUME | E243: Accu | F243: 280-290 | I243: 364.00 | J243: Open
A244: 124 | B244: 2018-08-29 | D244: GRINDWELL | E244: Accu | F244: 520-530 | I244: 635.00 | J244: Open
F248: Reinitiated $
A250: Disclaimer:
A251: This document has been prepared by the Retail Research Desk of Asit C Mehta
A252: Investment Intermediates Ltd. and is meant for use of the recipient only
A253: and is not for circulation. This document is not to be reported or
A254: copied or made available to others. It should not be considered to be
A255: taken as an offer to sell or a solicitation to buy any security. The
A256: information contained herein is from sources believed reliable. We do
A257: not represent that it is accurate or complete and it should not be
A258: relied upon as such. We may from time to time have positions in and buy
A259: and sell securities referred to herein

Sheet Sheet2 (hidden)
A1: SYMBOL | B1: SERIES | C1: OPEN | D1: HIGH | E1: LOW | F1: CLOSE | G1: LAST | H1: PREVCLOSE | I1: TOTTRDQTY | J1: TOTTRDVAL | K1: TIMESTAMP | L1: TOTALTRADES | M1: ISIN | N1: ISIN
A2: 20MICRONS | B2: EQ | C2: 43 | D2: 43 | E2: 40 | F2: 40.45 | G2: 40.8 | H2: 41.8 | I2: 44714 | J2: 1821287.35 | K2: 2018-10-05 | L2: 383 | M2: INE144J01027
A3: 21STCENMGM | B3: EQ | C3: 26.75 | D3: 27.5 | E3: 26.75 | F3: 26.75 | G3: 26.75 | H3: 27.25 | I3: 2745 | J3: 73798.25 | K3: 2018-10-05 | L3: 20 | M3: INE253B01015
A4: 3IINFOTECH | B4: EQ | C4: 3.4 | D4: 3.4 | E4: 3.2 | F4: 3.25 | G4: 3.3 | H4: 3.35 | I4: 3306501 | J4: 10926975.8 | K4: 2018-10-05 | L4: 1073 | M4: INE748C01020
A5: 3MINDIA | B5: EQ | C5: 22473 | D5: 22697 | E5: 21610 | F5: 21917.2 | G5: 21700 | H5: 22701.4 | I5: 1463 | J5: 32312804.8 | K5: 2018-10-05 | L5: 713 | M5: INE470A01017
A6: 5PAISA | B6: EQ | C6: 201 | D6: 209 | E6: 196 | F6: 199.75 | G6: 197.7 | H6: 206 | I6: 7670 | J6: 1531440.7 | K6: 2018-10-05 | L6: 192 | M6: INE618L01018
A7: 63MOONS | B7: EQ | C7: 65.8 | D7: 67 | E7: 62.05 | F7: 63.4 | G7: 62.5 | H7: 65.85 | I7: 141646 | J7: 9144253.85 | K7: 2018-10-05 | L7: 1795 | M7: INE111B01023
A8: 8KMILES | B8: BE | C8: 155.95 | D8: 155.95 | E8: 155.95 | F8: 155.95 | G8: 155.95 | H8: 164.15 | I8: 128563 | J8: 20049399.85 | K8: 2018-10-05 | L8: 919 | M8: INE650K01021
A9: A2ZINFRA | B9: EQ | C9: 8.6 | D9: 9.2 | E9: 8.15 | F9: 9.2 | G9: 9.2 | H9: 8.4 | I9: 735590 | J9: 6650325.3 | K9: 2018-10-05 | L9: 1120 | M9: INE619I01012
A10: AARTIDRUGS | B10: EQ | C10: 554.45 | D10: 563.25 | E10: 536 | F10: 546.4 | G10: 542.2 | H10: 554.45 | I10: 24933 | J10: 13815288.45 | K10: 2018-10-05 | L10: 3600 | M10: INE767A01016
A11: AARTIIND | B11: EQ | C11: 1207.6 | D11: 1208.8 | E11: 1180 | F11: 1199.55 | G11: 1199 | H11: 1203.5 | I11: 27697 | J11: 33249494.25 | K11: 2018-10-05 | L11: 5820 | M11: INE769A01020
A12: AARVEEDEN | B12: EQ | C12: 24.5 | D12: 25.05 | E12: 23.75 | F12: 24.2 | G12: 24.2 | H12: 24.15 | I12: 10431 | J12: 251463.6 | K12: 2018-10-05 | L12: 55 | M12: INE273D01019
A13: ABAN | B13: EQ | C13: 80 | D13: 80.75 | E13: 76 | F13: 76.95 | G13: 76.6 | H13: 80.9 | I13: 531642 | J13: 41269845.15 | K13: 2018-10-05 | L13: 6701 | M13: INE421A01028
A14: ABB | B14: EQ | C14: 1393.25 | D14: 1393.25 | E14: 1333 | F14: 1374.75 | G14: 1387 | H14: 1382.9 | I14: 103463 | J14: 141235216.1 | K14: 2018-10-05 | L14: 10407 | M14: INE117A01022
A15: ABBOTINDIA | B15: EQ | C15: 7305 | D15: 7376 | E15: 7206.15 | F15: 7317.45 | G15: 7310 | H15: 7330.95 | I15: 7647 | J15: 56028014.6 | K15: 2018-10-05 | L15: 2131 | M15: INE358A01014
A16: ABCAPITAL | B16: EQ | C16: 111 | D16: 111.45 | E16: 106.3 | F16: 107.8 | G16: 106.8 | H16: 111.25 | I16: 1516268 | J16: 165539925.1 | K16: 2018-10-05 | L16: 17098 | M16: INE674K01013
A17: ABFRL | B17: EQ | C17: 183 | D17: 185.4 | E17: 178.15 | F17: 180.9 | G17: 179 | H17: 182.55 | I17: 746959 | J17: 135693390 | K17: 2018-10-05 | L17: 11485 | M17: INE647O01011
A18: ABMINTLTD | B18: BE | C18: 16.6 | D18: 16.6 | E18: 16.6 | F18: 16.6 | G18: 16.6 | H18: 17.4 | I18: 1 | J18: 16.6 | K18: 2018-10-05 | L18: 1 | M18: INE251C01017
A19: ACC | B19: EQ | C19: 1515 | D19: 1519 | E19: 1465.15 | F19: 1478.6 | G19: 1470.15 | H19: 1527.9 | I19: 897662 | J19: 1337113901 | K19: 2018-10-05 | L19: 47542 | M19: INE012A01025
A20: ACCELYA | B20: EQ | C20: 1027.55 | D20: 1042 | E20: 1010 | F20: 1024.25 | G20: 1032 | H20: 1027.55 | I20: 5817 | J20: 5976455.4 | K20: 2018-10-05 | L20: 493 | M20: INE793A01012
A21: ACE | B21: EQ | C21: 90.55 | D21: 92.5 | E21: 84.9 | F21: 86.55 | G21: 84.9 | H21: 89.25 | I21: 167328 | J21: 14894120.15 | K21: 2018-10-05 | L21: 1861 | M21: INE731H01025
A22: ADANIENT | B22: EQ | C22: 131.55 | D22: 135.75 | E22: 128.25 | F22: 130.2 | G22: 129.35 | H22: 132.95 | I22: 6099515 | J22: 807739049.1 | K22: 2018-10-05 | L22: 31859 | M22: INE423A01024
A23: ADANIGREEN | B23: EQ | C23: 33.65 | D23: 33.65 | E23: 33.65 | F23: 33.65 | G23: 33.65 | H23: 35.4 | I23: 80519 | J23: 2709464.35 | K23: 2018-10-05 | L23: 455 | M23: INE364U01010
A24: ADANIPORTS | B24: EQ | C24: 317.1 | D24: 318.4 | E24: 298 | F24: 301.8 | G24: 298 | H24: 317.05 | I24: 7177862 | J24: 2209599998 | K24: 2018-10-05 | L24: 64377 | M24: INE742F01042
A25: ADANIPOWER | B25: EQ | C25: 24.3 | D25: 24.9 | E25: 22.9 | F25: 23.45 | G25: 23.7 | H25: 24.35 | I25: 15616716 | J25: 375227379.2 | K25: 2018-10-05 | L25: 18266 | M25: INE814H01011
A26: ADANITRANS | B26: BE | C26: 153.7 | D26: 153.7 | E26: 145.2 | F26: 148.9 | G26: 148 | H26: 149.75 | I26: 47470 | J26: 7098247.4 | K26: 2018-10-05 | L26: 394 | M26: INE931S01010
A27: ADFFOODS | B27: EQ | C27: 209 | D27: 209.5 | E27: 204 | F27: 206.1 | G27: 204 | H27: 209.55 | I27: 25194 | J27: 5201818 | K27: 2018-10-05 | L27: 675 | M27: INE982B01019
A28: ADHUNIK | B28: BE | C28: 2.8 | D28: 2.95 | E28: 2.8 | F28: 2.95 | G28: 2.95 | H28: 2.85 | I28: 36335 | J28: 106029.25 | K28: 2018-10-05 | L28: 29 | M28: INE400H01019
A29: ADHUNIKIND | B29: EQ | C29: 59.15 | D29: 59.9 | E29: 53.7 | F29: 58.8 | G29: 58.15 | H29: 59.7 | I29: 34956 | J29: 2007993.7 | K29: 2018-10-05 | L29: 124 | M29: INE452L01012
A30: ADLABS | B30: EQ | C30: 17.65 | D30: 17.65 | E30: 16.1 | F30: 16.2 | G30: 16.2 | H30: 17.1 | I30: 138438 | J30: 2278815.85 | K30: 2018-10-05 | L30: 748 | M30: INE172N01012
A31: ADORWELD | B31: EQ | C31: 300 | D31: 307.95 | E31: 291 | F31: 295.8 | G31: 307.95 | H31: 300.95 | I31: 9298 | J31: 2745191.8 | K31: 2018-10-05 | L31: 340 | M31: INE045A01017
A32: ADROITINFO | B32: BE | C32: 24.25 | D32: 24.25 | E32: 22.1 | F32: 24 | G32: 24 | H32: 23.1 | I32: 1005 | J32: 23295 | K32: 2018-10-05 | L32: 6 | M32: INE737B01033
A33: ADSL | B33: EQ | C33: 13.5 | D33: 13.5 | E33: 12.1 | F33: 12.65 | G33: 13.1 | H33: 13.05 | I33: 13039 | J33: 165142.3 | K33: 2018-10-05 | L33: 95 | M33: INE102I01027
A34: ADVANIHOTR | B34: EQ | C34: 48 | D34: 50 | E34: 47 | F34: 48.5 | G34: 49.2 | H34: 47.95 | I34: 24060 | J34: 1174916.5 | K34: 2018-10-05 | L34: 128 | M34: INE199C01026
A35: ADVENZYMES | B35: EQ | C35: 181.15 | D35: 183.75 | E35: 171.4 | F35: 175.2 | G35: 174.8 | H35: 181.15 | I35: 77088 | J35: 13725665.2 | K35: 2018-10-05 | L35: 2568 | M35: INE837H01020
A36: AEGISCHEM | B36: EQ | C36: 192.8 | D36: 192.8 | E36: 181.55 | F36: 185.05 | G36: 184.8 | H36: 187.95 | I36: 92526 | J36: 17220796.2 | K36: 2018-10-05 | L36: 4468 | M36: INE208C01025
A37: AFL | B37: EQ | C37: 56 | D37: 57.95 | E37: 53.3 | F37: 53.3 | G37: 53.3 | H37: 59.2 | I37: 66899 | J37: 3680213.15 | K37: 2018-10-05 | L37: 233 | M37: INE020G01017
A38: AGARIND | B38: EQ | C38: 217 | D38: 217 | E38: 198.5 | F38: 206.35 | G38: 200.2 | H38: 208.55 | I38: 4401 | J38: 909618.6 | K38: 2018-10-05 | L38: 54 | M38: INE204E01012
A39: AGCNET | B39: EQ | C39: 66 | D39: 69.3 | E39: 64.5 | F39: 68.7 | G39: 69 | H39: 68.15 | I39: 3617 | J39: 240809.55 | K39: 2018-10-05 | L39: 98 | M39: INE676A01019
A40: AGLSL | B40: EQ | C40: 70 | D40: 71.9 | E40: 69.7 | F40: 70.65 | G40: 71.7 | H40: 70.2 | I40: 1954 | J40: 137048.1 | K40: 2018-10-05 | L40: 17 | M40: INE517U01013
A41: AGRITECH | B41: EQ | C41: 57 | D41: 63.95 | E41: 56.45 | F41: 63.05 | G41: 61.1 | H41: 59.05 | I41: 17607 | J41: 1087938.35 | K41: 2018-10-05 | L41: 266 | M41: INE449G01018
A42: AHLEAST | B42: EQ | C42: 242 | D42: 249.1 | E42: 241 | F42: 244.2 | G42: 249.1 | H42: 244 | I42: 2765 | J42: 670183.3 | K42: 2018-10-05 | L42: 47 | M42: INE926K01017
A43: AHLUCONT | B43: EQ | C43: 270.85 | D43: 274 | E43: 267.4 | F43: 272.15 | G43: 270.05 | H43: 273.65 | I43: 113734 | J43: 30485707.55 | K43: 2018-10-05 | L43: 116 | M43: INE758C01029
A44: AHLWEST | B44: EQ | C44: 284.1 | D44: 290 | E44: 283 | F44: 283.05 | G44: 283 | H44: 286 | I44: 405 | J44: 116396 | K44: 2018-10-05 | L44: 56 | M44: INE915K01010
A45: AIAENG | B45: EQ | C45: 1703 | D45: 1716.5 | E45: 1687 | F45: 1697.95 | G45: 1700 | H45: 1703 | I45: 41832 | J45: 71131970.65 | K45: 2018-10-05 | L45: 5127 | M45: INE212H01026
A46: AICHAMP | B46: BE | C46: 13.1 | D46: 13.1 | E46: 13.1 | F46: 13.1 | G46: 13.1 | H46: 13.75 | I46: 798 | J46: 10453.8 | K46: 2018-10-05 | L46: 8 | M46: INE768E01024
A47: AIFL | B47: EQ | C47: 199.35 | D47: 199.35 | E47: 199.35 | F47: 199.35 | G47: 199.35 | H47: 221.5 | I47: 1658 | J47: 330522.3 | K47: 2018-10-05 | L47: 57 | M47: INE428O01016
A48: AIONJSW | B48: BE | C48: 41.3 | D48: 41.3 | E48: 41.3 | F48: 41.3 | G48: 41.3 | H48: 39.35 | I48: 28060 | J48: 1158878 | K48: 2018-10-05 | L48: 158 | M48: INE743C01021
A49: AJANTPHARM | B49: EQ | C49: 1004 | D49: 1032 | E49: 995 | F49: 1019.5 | G49: 1023 | H49: 1005.35 | I49: 288190 | J49: 294332467.9 | K49: 2018-10-05 | L49: 10673 | M49: INE031B01049
A50: AJMERA | B50: EQ | C50: 156.2 | D50: 160 | E50: 154.1 | F50: 156.35 | G50: 155.05 | H50: 156.25 | I50: 34858 | J50: 5492422.6 | K50: 2018-10-05 | L50: 920 | M50: INE298G01027
A51: AKSHARCHEM | B51: EQ | C51: 475 | D51: 486.75 | E51: 450 | F51: 453.45 | G51: 450 | H51: 479.35 | I51: 5917 | J51: 2757424 | K51: 2018-10-05 | L51: 315 | M51: INE542B01011
A52: AKSHOPTFBR | B52: EQ | C52: 23.3 | D52: 24 | E52: 23 | F52: 23.35 | G52: 23.3 | H52: 23.8 | I52: 1149289 | J52: 26887373 | K52: 2018-10-05 | L52: 4288 | M52: INE523B01011
A53: AKZOINDIA | B53: EQ | C53: 1578.85 | D53: 1591.95 | E53: 1551.55 | F53: 1561.85 | G53: 1553 | H53: 1592.65 | I53: 3350 | J53: 5276713.2 | K53: 2018-10-05 | L53: 290 | M53: INE133A01011
A54: ALANKIT | B54: EQ | C54: 19.55 | D54: 19.8 | E54: 18.25 | F54: 18.6 | G54: 18.5 | H54: 19.5 | I54: 687386 | J54: 13095141.95 | K54: 2018-10-05 | L54: 1074 | M54: INE914E01040
A55: ALBERTDAVD | B55: EQ | C55: 592.95 | D55: 594.7 | E55: 552 | F55: 568.8 | G55: 567 | H55: 574.65 | I55: 16695 | J55: 9663178.6 | K55: 2018-10-05 | L55: 1040 | M55: INE155C01010
A56: ALBK | B56: EQ | C56: 35.6 | D56: 36.2 | E56: 35.05 | F56: 35.35 | G56: 35.15 | H56: 36.05 | I56: 2897728 | J56: 103255401.8 | K56: 2018-10-05 | L56: 7668 | M56: INE428A01015
A57: ALCHEM | B57: BE | C57: 4.7 | D57: 4.7 | E57: 4.5 | F57: 4.55 | G57: 4.7 | H57: 4.7 | I57: 160 | J57: 733.6 | K57: 2018-10-05 | L57: 6 | M57: INE964B01033
A58: ALEMBICLTD | B58: EQ | C58: 42.5 | D58: 43.55 | E58: 41.3 | F58: 41.9 | G58: 41.75 | H58: 42.55 | I58: 358331 | J58: 15125508.1 | K58: 2018-10-05 | L58: 2188 | M58: INE426A01027
A59: ALICON | B59: EQ | C59: 625.65 | D59: 628.9 | E59: 605 | F59: 614.1 | G59: 605 | H59: 629.35 | I59: 5902 | J59: 3652080.9 | K59: 2018-10-05 | L59: 289 | M59: INE062D01024
A60: ALKALI | B60: EQ | C60: 59.5 | D60: 59.5 | E60: 54.9 | F60: 55.25 | G60: 55.15 | H60: 56.9 | I60: 5465 | J60: 304744 | K60: 2018-10-05 | L60: 99 | M60: INE773I01017
A61: ALKEM | B61: EQ | C61: 2043 | D61: 2063.1 | E61: 2024.1 | F61: 2038.9 | G61: 2050 | H61: 2043 | I61: 46286 | J61: 94821909.45 | K61: 2018-10-05 | L61: 3501 | M61: INE540L01014
A62: ALKYLAMINE | B62: EQ | C62: 574.9 | D62: 574.9 | E62: 550.35 | F62: 560 | G62: 560 | H62: 561.3 | I62: 2312 | J62: 1294493.25 | K62: 2018-10-05 | L62: 67 | M62: INE150B01021
A63: ALLCARGO | B63: EQ | C63: 97.7 | D63: 100.85 | E63: 95.4 | F63: 96.35 | G63: 96.05 | H63: 98.95 | I63: 467070 | J63: 46214478.6 | K63: 2018-10-05 | L63: 3529 | M63: INE418H01029
A64: ALLSEC | B64: EQ | C64: 234 | D64: 240.05 | E64: 230 | F64: 234.05 | G64: 233.05 | H64: 233.15 | I64: 19611 | J64: 4541703.25 | K64: 2018-10-05 | L64: 384 | M64: INE835G01018
A65: ALMONDZ | B65: BE | C65: 27 | D65: 28.25 | E65: 26.95 | F65: 26.95 | G65: 26.95 | H65: 28.35 | I65: 4306 | J65: 116140.55 | K65: 2018-10-05 | L65: 16 | M65: INE326B01027
A66: ALOKTEXT | B66: BE | C66: 3.6 | D66: 3.75 | E66: 3.6 | F66: 3.75 | G66: 3.75 | H66: 3.6 | I66: 852975 | J66: 3191329.6 | K66: 2018-10-05 | L66: 596 | M66: INE270A01011
A67: ALPA | B67: EQ | C67: 27.4 | D67: 27.4 | E67: 24.8 | F67: 25 | G67: 24.8 | H67: 25.2 | I67: 13820 | J67: 350282.8 | K67: 2018-10-05 | L67: 108 | M67: INE385I01010
A68: ALPHAGEO | B68: EQ | C68: 531.85 | D68: 544 | E68: 511.1 | F68: 521.85 | G68: 528 | H68: 531.85 | I68: 6392 | J68: 3391752.65 | K68: 2018-10-05 | L68: 725 | M68: INE137C01018
A69: ALPSINDUS | B69: BE | C69: 2.85 | D69: 2.95 | E69: 2.75 | F69: 2.75 | G69: 2.75 | H69: 2.85 | I69: 11475 | J69: 32407.45 | K69: 2018-10-05 | L69: 17 | M69: INE093B01015
A70: AMARAJABAT | B70: EQ | C70: 733.65 | D70: 739.7 | E70: 712.45 | F70: 719.35 | G70: 714.95 | H70: 729.25 | I70: 449889 | J70: 327650067.2 | K70: 2018-10-05 | L70: 16321 | M70: INE885A01032
A71: AMBER | B71: EQ | C71: 911.4 | D71: 924 | E71: 890.05 | F71: 897.65 | G71: 899 | H71: 919.95 | I71: 6309 | J71: 5711375.6 | K71: 2018-10-05 | L71: 825 | M71: INE371P01015
A72: AMBIKCO | B72: EQ | C72: 1091 | D72: 1125.4 | E72: 1091 | F72: 1122.5 | G72: 1125 | H72: 1125.4 | I72: 4504 | J72: 5016471.95 | K72: 2018-10-05 | L72: 351 | M72: INE540G01014
A73: AMBUJACEM | B73: EQ | C73: 213 | D73: 214.25 | E73: 207 | F73: 208.45 | G73: 208.25 | H73: 213.7 | I73: 3007099 | J73: 632982958.4 | K73: 2018-10-05 | L73: 24791 | M73: INE079A01024
A74: AMDIND | B74: EQ | C74: 18.3 | D74: 19.8 | E74: 18.25 | F74: 19 | G74: 19 | H74: 19.15 | I74: 3067 | J74: 57796.6 | K74: 2018-10-05 | L74: 28 | M74: INE005I01014
A75: AMJLAND | B75: EQ | C75: 20.3 | D75: 20.3 | E75: 18.5 | F75: 18.7 | G75: 18.65 | H75: 19.75 | I75: 17422 | J75: 332504.9 | K75: 2018-10-05 | L75: 148 | M75: INE606A01024
A76: AMRUTANJAN | B76: EQ | C76: 256.7 | D76: 256.7 | E76: 250 | F76: 251.95 | G76: 251 | H76: 252.75 | I76: 11230 | J76: 2833549.1 | K76: 2018-10-05 | L76: 541 | M76: INE098F01031
A77: ANANTRAJ | B77: EQ | C77: 37.7 | D77: 38 | E77: 36.05 | F77: 36.5 | G77: 36.15 | H77: 37.9 | I77: 608846 | J77: 22492010.65 | K77: 2018-10-05 | L77: 3308 | M77: INE242C01024
A78: ANDHRABANK | B78: EQ | C78: 27.6 | D78: 27.8 | E78: 26.6 | F78: 26.85 | G78: 26.7 | H78: 27.35 | I78: 1635907 | J78: 44459138.35 | K78: 2018-10-05 | L78: 4484 | M78: INE434A01013
A79: ANDHRACEMT | B79: EQ | C79: 5.95 | D79: 6.1 | E79: 5.8 | F79: 5.95 | G79: 5.9 | H79: 5.9 | I79: 132751 | J79: 792603.35 | K79: 2018-10-05 | L79: 244 | M79: INE666E01012
A80: ANDHRSUGAR | B80: EQ | C80: 341.8 | D80: 346.9 | E80: 326 | F80: 330.05 | G80: 326.05 | H80: 335.8 | I80: 53945 | J80: 18107128.85 | K80: 2018-10-05 | L80: 3047 | M80: INE715B01013
A81: ANGIND | B81: BE | C81: 2.4 | D81: 2.4 | E81: 2.2 | F81: 2.25 | G81: 2.4 | H81: 2.3 | I81: 6090 | J81: 13474.5 | K81: 2018-10-05 | L81: 22 | M81: INE017D01010
A82: ANIKINDS | B82: EQ | C82: 26.5 | D82: 26.5 | E82: 25.05 | F82: 25.45 | G82: 25.05 | H82: 25.6 | I82: 2682 | J82: 68798.9 | K82: 2018-10-05 | L82: 30 | M82: INE087B01017
A83: ANKITMETAL | B83: BE | C83: 0.5 | D83: 0.55 | E83: 0.5 | F83: 0.5 | G83: 0.5 | H83: 0.55 | I83: 13368 | J83: 6721.5 | K83: 2018-10-05 | L83: 21 | M83: INE106I01010
A84: ANSALAPI | B84: EQ | C84: 11.85 | D84: 11.85 | E84: 11 | F84: 11.1 | G84: 11.2 | H84: 11.35 | I84: 31598 | J84: 354199.25 | K84: 2018-10-05 | L84: 110 | M84: INE436A01026
A85: ANSALHSG | B85: EQ | C85: 11 | D85: 11.6 | E85: 10.55 | F85: 10.75 | G85: 10.8 | H85: 11.05 | I85: 37837 | J85: 414650.95 | K85: 2018-10-05 | L85: 167 | M85: INE880B01015
A86: ANTGRAPHIC | B86: BE | C86: 0.5 | D86: 0.5 | E86: 0.5 | F86: 0.5 | G86: 0.5 | H86: 0.55 | I86: 2464 | J86: 1232 | K86: 2018-10-05 | L86: 7 | M86: INE414B01021
A87: APARINDS | B87: EQ | C87: 584.95 | D87: 584.95 | E87: 553.5 | F87: 562.25 | G87: 560 | H87: 565.2 | I87: 26969 | J87: 15222372.75 | K87: 2018-10-05 | L87: 445 | M87: INE372A01015
A88: APCL | B88: EQ | C88: 120.35 | D88: 126.5 | E88: 115.1 | F88: 116.1 | G88: 116 | H88: 118.35 | I88: 3776 | J88: 456545.95 | K88: 2018-10-05 | L88: 92 | M88: INE071F01012
A89: APCOTEXIND | B89: EQ | C89: 569.95 | D89: 569.95 | E89: 529.7 | F89: 533.6 | G89: 531.8 | H89: 561.65 | I89: 6740 | J89: 3642886.65 | K89: 2018-10-05 | L89: 456 | M89: INE116A01024
A90: APEX | B90: EQ | C90: 360.55 | D90: 377.75 | E90: 351.5 | F90: 357.35 | G90: 357.9 | H90: 366.85 | I90: 58161 | J90: 21262042.55 | K90: 2018-10-05 | L90: 2275 | M90: INE346W01013
A91: APLAPOLLO | B91: EQ | C91: 1230 | D91: 1282 | E91: 1202.65 | F91: 1271.55 | G91: 1276.05 | H91: 1253.55 | I91: 24985 | J91: 31540907.85 | K91: 2018-10-05 | L91: 1693 | M91: INE702C01019
A92: APLLTD | B92: EQ | C92: 595.9 | D92: 622 | E92: 592 | F92: 594.85 | G92: 595 | H92: 591.9 | I92: 116814 | J92: 70526994.8 | K92: 2018-10-05 | L92: 4060 | M92: INE901L01018
A93: APOLLO | B93: EQ | C93: 115.65 | D93: 119 | E93: 114.05 | F93: 115.2 | G93: 115.05 | H93: 117.35 | I93: 26753 | J93: 3118640.25 | K93: 2018-10-05 | L93: 825 | M93: INE713T01010
A94: APOLLOHOSP | B94: EQ | C94: 1039.7 | D94: 1074 | E94: 1035 | F94: 1057.2 | G94: 1065.3 | H94: 1047.2 | I94: 387404 | J94: 410218254.7 | K94: 2018-10-05 | L94: 20732 | M94: INE437A01024
A95: APOLLOTYRE | B95: EQ | C95: 201.25 | D95: 204.2 | E95: 194 | F95: 198 | G95: 194 | H95: 203.3 | I95: 2951857 | J95: 592743413.3 | K95: 2018-10-05 | L95: 33794 | M95: INE438A01022
A96: APOLSINHOT | B96: EQ | C96: 1093 | D96: 1184 | E96: 1090 | F96: 1104.65 | G96: 1090 | H96: 1123 | I96: 1466 | J96: 1633400.4 | K96: 2018-10-05 | L96: 80 | M96: INE451F01016
A97: APTECHT | B97: EQ | C97: 144.8 | D97: 146.75 | E97: 141 | F97: 142.6 | G97: 141.4 | H97: 146.2 | I97: 147223 | J97: 21179560.2 | K97: 2018-10-05 | L97: 3249 | M97: INE266F01018
A98: ARCHIDPLY | B98: EQ | C98: 40 | D98: 41.9 | E98: 39.2 | F98: 39.8 | G98: 39.6 | H98: 39.9 | I98: 25681 | J98: 1039606 | K98: 2018-10-05 | L98: 235 | M98: INE877I01016
A99: ARCHIES | B99: EQ | C99: 26.45 | D99: 26.9 | E99: 24.9 | F99: 25.1 | G99: 25 | H99: 26.45 | I99: 34855 | J99: 896150.5 | K99: 2018-10-05 | L99: 220 | M99: INE731A01020
A100: ARCOTECH | B100: BE | C100: 8.55 | D100: 8.55 | E100: 8.55 | F100: 8.55 | G100: 8.55 | H100: 8.95 | I100: 30135 | J100: 257654.25 | K100: 2018-10-05 | L100: 96 | M100: INE574I01035
A101: ARIES | B101: EQ | C101: 94.95 | D101: 95.3 | E101: 87.1 | F101: 91.2 | G101: 92 | H101: 94.25 | I101: 27721 | J101: 2538568.35 | K101: 2018-10-05 | L101: 687 | M101: INE298I01015
A102: ARIHANT | B102: EQ | C102: 29.5 | D102: 33.6 | E102: 28.35 | F102: 29.9 | G102: 28.35 | H102: 31.1 | I102: 2929 | J102: 91945.25 | K102: 2018-10-05 | L102: 20 | M102: INE413D01011
A103: ARIHANTSUP | B103: EQ | C103: 57.9 | D103: 58 | E103: 51.1 | F103: 52.2 | G103: 51.7 | H103: 55.7 | I103: 22349 | J103: 1231387.5 | K103: 2018-10-05 | L103: 335 | M103: INE643K01018
A104: ARMANFIN | B104: EQ | C104: 335 | D104: 335 | E104: 310.15 | F104: 320.45 | G104: 320 | H104: 333.8 | I104: 6143 | J104: 2014759.05 | K104: 2018-10-05 | L104: 274 | M104: INE109C01017
A105: AROGRANITE | B105: EQ | C105: 52 | D105: 53.9 | E105: 51.3 | F105: 51.95 | G105: 51.3 | H105: 52.2 | I105: 4457 | J105: 233276.3 | K105: 2018-10-05 | L105: 75 | M105: INE210C01013
A106: ARROWGREEN | B106: EQ | C106: 90 | D106: 99.15 | E106: 90 | F106: 99.15 | G106: 99.15 | H106: 94.45 | I106: 11321 | J106: 1082708.55 | K106: 2018-10-05 | L106: 158 | M106: INE570D01018
A107: ARROWTEX | B107: EQ | C107: 26.6 | D107: 26.6 | E107: 25.5 | F107: 26.2 | G107: 26.3 | H107: 26.05 | I107: 5469 | J107: 142990.5 | K107: 2018-10-05 | L107: 52 | M107: INE933J01015
A108: ARSHIYA | B108: EQ | C108: 33.15 | D108: 34.3 | E108: 33 | F108: 33.35 | G108: 33 | H108: 33.5 | I108: 1249867 | J108: 42148104.8 | K108: 2018-10-05 | L108: 1269 | M108: INE968D01022
A109: ARSSINFRA | B109: EQ | C109: 21.2 | D109: 22 | E109: 21.1 | F109: 21.3 | G109: 21.15 | H109: 22.2 | I109: 14729 | J109: 313544.15 | K109: 2018-10-05 | L109: 98 | M109: INE267I01010
A110: ARVIND | B110: EQ | C110: 313 | D110: 322.8 | E110: 309 | F110: 313.8 | G110: 310 | H110: 317 | I110: 1358206 | J110: 431164115.8 | K110: 2018-10-05 | L110: 24028 | M110: INE034A01011
A111: ARVSMART | B111: EQ | C111: 110.95 | D111: 113.35 | E111: 105 | F111: 109.2 | G111: 107 | H111: 112.8 | I111: 37310 | J111: 4097068.15 | K111: 2018-10-05 | L111: 424 | M111: INE034S01021
A112: ASAHIINDIA | B112: EQ | C112: 302.05 | D112: 310 | E112: 292 | F112: 295.2 | G112: 296 | H112: 304.2 | I112: 32645 | J112: 9705199.2 | K112: 2018-10-05 | L112: 1000 | M112: INE439A01020
A113: ASAHISONG | B113: EQ | C113: 234 | D113: 239.9 | E113: 231.1 | F113: 233.65 | G113: 231.1 | H113: 238 | I113: 2668 | J113: 627413.85 | K113: 2018-10-05 | L113: 142 | M113: INE228I01012
A114: ASAL | B114: EQ | C114: 45 | D114: 45.9 | E114: 43.1 | F114: 43.85 | G114: 43.5 | H114: 44.3 | I114: 3874 | J114: 173000.65 | K114: 2018-10-05 | L114: 93 | M114: INE900C01027
A115: ASHAPURMIN | B115: EQ | C115: 29 | D115: 29.9 | E115: 26.1 | F115: 26.75 | G115: 26.8 | H115: 29.6 | I115: 132221 | J115: 3670211.15 | K115: 2018-10-05 | L115: 1152 | M115: INE348A01023
A116: ASHIANA | B116: EQ | C116: 126.15 | D116: 127 | E116: 120 | F116: 120.55 | G116: 120 | H116: 126.15 | I116: 53009 | J116: 6544577.8 | K116: 2018-10-05 | L116: 1035 | M116: INE365D01021
A117: ASHIMASYN | B117: EQ | C117: 14.5 | D117: 15.5 | E117: 14.2 | F117: 14.5 | G117: 14.8 | H117: 14.65 | I117: 91383 | J117: 1356524.85 | K117: 2018-10-05 | L117: 395 | M117: INE440A01010
A118: ASHOKA | B118: EQ | C118: 107.95 | D118: 108.95 | E118: 94.6 | F118: 103.5 | G118: 105.65 | H118: 107 | I118: 741869 | J118: 74676262.5 | K118: 2018-10-05 | L118: 10165 | M118: INE442H01029
A119: ASHOKLEY | B119: EQ | C119: 117.1 | D119: 117.95 | E119: 101.65 | F119: 107.75 | G119: 107.75 | H119: 118.05 | I119: 31157884 | J119: 3505776072 | K119: 2018-10-05 | L119: 125901 | M119: INE208A01029
A120: ASIANHOTNR | B120: EQ | C120: 173.15 | D120: 184.7 | E120: 173.15 | F120: 176.7 | G120: 175.1 | H120: 175.8 | I120: 304 | J120: 53790.75 | K120: 2018-10-05 | L120: 17 | M120: INE363A01022
A121: ASIANPAINT | B121: EQ | C121: 1221.45 | D121: 1240 | E121: 1191.85 | F121: 1209.5 | G121: 1197.45 | H121: 1224.7 | I121: 1344685 | J121: 1632914325 | K121: 2018-10-05 | L121: 59924 | M121: INE021A01026
A122: ASIANTILES | B122: EQ | C122: 171.2 | D122: 174.9 | E122: 170.7 | F122: 172.15 | G122: 172.25 | H122: 173.95 | I122: 34507 | J122: 5951758.55 | K122: 2018-10-05 | L122: 1445 | M122: INE022I01019
A123: ASPINWALL | B123: EQ | C123: 186.05 | D123: 189.95 | E123: 177 | F123: 182.9 | G123: 180 | H123: 189.95 | I123: 2209 | J123: 412629.75 | K123: 2018-10-05 | L123: 46 | M123: INE991I01015
A124: ASSAMCO | B124: BE | C124: 2.75 | D124: 2.75 | E124: 2.75 | F124: 2.75 | G124: 2.75 | H124: 2.85 | I124: 45619 | J124: 125452.25 | K124: 2018-10-05 | L124: 61 | M124: INE442A01024
A125: ASTEC | B125: EQ | C125: 529 | D125: 539 | E125: 527 | F125: 535.3 | G125: 535 | H125: 533.8 | I125: 11242 | J125: 6001548.8 | K125: 2018-10-05 | L125: 425 | M125: INE563J01010
A126: ASTERDM | B126: EQ | C126: 162 | D126: 162 | E126: 155.5 | F126: 160.6 | G126: 160.5 | H126: 159.2 | I126: 73691 | J126: 11800354.1 | K126: 2018-10-05 | L126: 2007 | M126: INE914M01019
A127: ASTRAL | B127: EQ | C127: 846 | D127: 860 | E127: 831.95 | F127: 842.2 | G127: 835.55 | H127: 877.7 | I127: 88316 | J127: 74758934.85 | K127: 2018-10-05 | L127: 12154 | M127: INE006I01046
A128: ASTRAMICRO | B128: EQ | C128: 90.3 | D128: 90.3 | E128: 85.1 | F128: 86.1 | G128: 86 | H128: 89.25 | I128: 347454 | J128: 30090231.4 | K128: 2018-10-05 | L128: 4886 | M128: INE386C01029
A129: ASTRAZEN | B129: EQ | C129: 1541 | D129: 1560 | E129: 1495 | F129: 1538.3 | G129: 1555 | H129: 1540.05 | I129: 11452 | J129: 17556675.1 | K129: 2018-10-05 | L129: 1212 | M129: INE203A01020
A130: ASTRON | B130: EQ | C130: 120.7 | D130: 120.7 | E130: 115.25 | F130: 116.65 | G130: 116.7 | H130: 119.7 | I130: 131355 | J130: 15568021.6 | K130: 2018-10-05 | L130: 2111 | M130: INE646X01014
A131: ATFL | B131: EQ | C131: 536.5 | D131: 540 | E131: 522 | F131: 525.6 | G131: 523 | H131: 540.5 | I131: 4640 | J131: 2457947.55 | K131: 2018-10-05 | L131: 278 | M131: INE209A01019
A132: ATLANTA | B132: EQ | C132: 24.35 | D132: 24.35 | E132: 22.95 | F132: 22.95 | G132: 22.95 | H132: 24.15 | I132: 78024 | J132: 1798777.85 | K132: 2018-10-05 | L132: 575 | M132: INE285H01022
A133: ATUL | B133: EQ | C133: 3112.6 | D133: 3194 | E133: 2830.1 | F133: 3033.35 | G133: 2999.9 | H133: 3099.7 | I133: 92504 | J133: 281748081.5 | K133: 2018-10-05 | L133: 6397 | M133: INE100A01010
A134: ATULAUTO | B134: EQ | C134: 303 | D134: 310.9 | E134: 288 | F134: 289.65 | G134: 290 | H134: 302.85 | I134: 18759 | J134: 5544211.7 | K134: 2018-10-05 | L134: 1688 | M134: INE951D01028
A135: AUBANK | B135: EQ | C135: 559.85 | D135: 566 | E135: 549.05 | F135: 550.7 | G135: 551.7 | H135: 555.7 | I135: 248164 | J135: 137326481.4 | K135: 2018-10-05 | L135: 11111 | M135: INE949L01017
A136: AURIONPRO | B136: EQ | C136: 144 | D136: 149.45 | E136: 137.1 | F136: 139.8 | G136: 137.1 | H136: 145.45 | I136: 25033 | J136: 3501870.05 | K136: 2018-10-05 | L136: 372 | M136: INE132H01018
A137: AUROPHARMA | B137: EQ | C137: 754 | D137: 762.4 | E137: 735.05 | F137: 744.25 | G137: 735.05 | H137: 757.05 | I137: 2170891 | J137: 1631413304 | K137: 2018-10-05 | L137: 68215 | M137: INE406A01037
A138: AUSOMENT | B138: EQ | C138: 58.75 | D138: 58.8 | E138: 53.15 | F138: 53.5 | G138: 53.75 | H138: 54.85 | I138: 14965 | J138: 820179.7 | K138: 2018-10-05 | L138: 264 | M138: INE218C01016
A139: AUTOAXLES | B139: EQ | C139: 1205.55 | D139: 1239.75 | E139: 1180 | F139: 1186.5 | G139: 1189.9 | H139: 1234.65 | I139: 18001 | J139: 21654356.3 | K139: 2018-10-05 | L139: 1507 | M139: INE449A01011
A140: AUTOIND | B140: EQ | C140: 59.95 | D140: 62.5 | E140: 58.15 | F140: 59 | G140: 58.2 | H140: 59.7 | I140: 30328 | J140: 1824466.65 | K140: 2018-10-05 | L140: 458 | M140: INE718H01014
A141: AUTOLITIND | B141: EQ | C141: 40 | D141: 42.9 | E141: 40 | F141: 40.7 | G141: 41 | H141: 41.25 | I141: 5854 | J141: 239664.85 | K141: 2018-10-05 | L141: 125 | M141: INE448A01013
A142: AVADHSUGAR | B142: EQ | C142: 412 | D142: 431 | E142: 385.1 | F142: 393.65 | G142: 393 | H142: 410.65 | I142: 155075 | J142: 64005536.15 | K142: 2018-10-05 | L142: 4148 | M142: INE349W01017
A143: AVANTIFEED | B143: EQ | C143: 357.8 | D143: 371.65 | E143: 356 | F143: 365 | G143: 365 | H143: 356.3 | I143: 522907 | J143: 190806335.6 | K143: 2018-10-05 | L143: 14978 | M143: INE871C01038
A144: AVTNPL | B144: EQ | C144: 26.9 | D144: 27.2 | E144: 26 | F144: 26.1 | G144: 26.05 | H144: 26.95 | I144: 69160 | J144: 1820369.55 | K144: 2018-10-05 | L144: 281 | M144: INE488D01021
A145: AXISBANK | B145: EQ | C145: 586 | D145: 590.5 | E145: 565 | F145: 568.5 | G145: 570.65 | H145: 586.25 | I145: 9860010 | J145: 5704816490 | K145: 2018-10-05 | L145: 123568 | M145: INE238A01034
A146: AXISCADES | B146: EQ | C146: 74.5 | D146: 75.7 | E146: 69.1 | F146: 70.7 | G146: 70.5 | H146: 74.05 | I146: 52110 | J146: 3809382.3 | K146: 2018-10-05 | L146: 1031 | M146: INE555B01013
A147: AXISGOLD | B147: EQ | C147: 2750 | D147: 2755.1 | E147: 2721 | F147: 2750.85 | G147: 2755.1 | H147: 2749.05 | I147: 128 | J147: 351506 | K147: 2018-10-05 | L147: 19 | M147: INF846K01347
A148: AXISNIFTY | B148: EQ | C148: 1070 | D148: 1072.53 | E148: 1048.26 | F148: 1056.14 | G148: 1048.26 | H148: 1078.07 | I148: 243 | J148: 258390.98 | K148: 2018-10-05 | L148: 17 | M148: INF846K01ZL0
A149: AYMSYNTEX | B149: EQ | C149: 31.75 | D149: 33.95 | E149: 30.35 | F149: 31.5 | G149: 31.35 | H149: 31.85 | I149: 37042 | J149: 1181489.25 | K149: 2018-10-05 | L149: 211 | M149: INE193B01039
A150: BAFNAPHARM | B150: EQ | C150: 11.7 | D150: 11.95 | E150: 10.95 | F150: 11.2 | G150: 11.25 | H150: 11.7 | I150: 18403 | J150: 208617.25 | K150: 2018-10-05 | L150: 128 | M150: INE878I01014
A151: BAGFILMS | B151: BE | C151: 4.5 | D151: 4.55 | E151: 4.3 | F151: 4.4 | G151: 4.3 | H151: 4.5 | I151: 103247 | J151: 450028 | K151: 2018-10-05 | L151: 264 | M151: INE116D01028
A152: BAJAJ-AUTO | B152: EQ | C152: 2635 | D152: 2635 | E152: 2520 | F152: 2543.05 | G152: 2520 | H152: 2657 | I152: 947343 | J152: 2436138265 | K152: 2018-10-05 | L152: 71491 | M152: INE917I01010
A153: BAJAJCORP | B153: EQ | C153: 396.6 | D153: 401 | E153: 389.55 | F153: 396.8 | G153: 398.75 | H153: 399 | I153: 29056 | J153: 11533196.55 | K153: 2018-10-05 | L153: 4494 | M153: INE933K01021
A154: BAJAJELEC | B154: EQ | C154: 495 | D154: 495 | E154: 470 | F154: 488.75 | G154: 483 | H154: 496.25 | I154: 366736 | J154: 177268980.7 | K154: 2018-10-05 | L154: 38297 | M154: INE193E01025
A155: BAJAJFINSV | B155: EQ | C155: 5614 | D155: 5721 | E155: 5222.9 | F155: 5375.65 | G155: 5333.4 | H155: 5632.1 | I155: 252881 | J155: 1398978422 | K155: 2018-10-05 | L155: 28953 | M155: INE918I01018
A156: BAJAJHIND | B156: EQ | C156: 8.75 | D156: 9.15 | E156: 8.65 | F156: 8.75 | G156: 8.65 | H156: 8.6 | I156: 3976607 | J156: 35284166.25 | K156: 2018-10-05 | L156: 5976 | M156: INE306A01021
A157: BAJAJHLDNG | B157: EQ | C157: 2920 | D157: 2959.95 | E157: 2599.65 | F157: 2703.05 | G157: 2729.1 | H157: 2930.05 | I157: 17445 | J157: 48933969.7 | K157: 2018-10-05 | L157: 2584 | M157: INE118A01012
A158: BAJFINANCE | B158: EQ | C158: 2160 | D158: 2214.6 | E158: 1963.25 | F158: 2023.3 | G158: 1965 | H158: 2179.15 | I158: 3470441 | J158: 7332376310 | K158: 2018-10-05 | L158: 126458 | M158: INE296A01024
A159: BALAJITELE | B159: EQ | C159: 103 | D159: 107.95 | E159: 103 | F159: 105.1 | G159: 105 | H159: 105.1 | I159: 29459 | J159: 3099207 | K159: 2018-10-05 | L159: 360 | M159: INE794B01026
A160: BALAMINES | B160: EQ | C160: 445.3 | D160: 474.05 | E160: 440 | F160: 447.05 | G160: 448.7 | H160: 460.6 | I160: 20071 | J160: 9225210.1 | K160: 2018-10-05 | L160: 1065 | M160: INE050E01027
A161: BALKRISHNA | B161: EQ | C161: 48.2 | D161: 50.9 | E161: 48 | F161: 48.5 | G161: 48 | H161: 48.85 | I161: 17549 | J161: 851759.8 | K161: 2018-10-05 | L161: 211 | M161: INE875R01011
A162: BALKRISIND | B162: EQ | C162: 1042.05 | D162: 1054.1 | E162: 994 | F162: 1002.35 | G162: 998.75 | H162: 1046.4 | I162: 809561 | J162: 828119626 | K162: 2018-10-05 | L162: 30369 | M162: INE787D01026
A163: BALLARPUR | B163: EQ | C163: 6.8 | D163: 6.85 | E163: 6.5 | F163: 6.55 | G163: 6.5 | H163: 6.8 | I163: 350565 | J163: 2333954.95 | K163: 2018-10-05 | L163: 504 | M163: INE294A01037
A164: BALMLAWRIE | B164: EQ | C164: 185.9 | D164: 185.9 | E164: 180.4 | F164: 182.35 | G164: 181.8 | H164: 185.8 | I164: 91957 | J164: 16894275.55 | K164: 2018-10-05 | L164: 1690 | M164: INE164A01016
A165: BALPHARMA | B165: EQ | C165: 78.2 | D165: 79.3 | E165: 77 | F165: 77.65 | G165: 77 | H165: 78.3 | I165: 15852 | J165: 1240500.35 | K165: 2018-10-05 | L165: 354 | M165: INE083D01012
A166: BALRAMCHIN | B166: EQ | C166: 75.85 | D166: 79.9 | E166: 73.95 | F166: 75.85 | G166: 74.75 | H166: 75.2 | I166: 8047167 | J166: 627482058.8 | K166: 2018-10-05 | L166: 38358 | M166: INE119A01028
A167: BANARBEADS | B167: EQ | C167: 48.7 | D167: 50.5 | E167: 46.2 | F167: 49 | G167: 49 | H167: 50.9 | I167: 604 | J167: 29585.5 | K167: 2018-10-05 | L167: 15 | M167: INE655B01011
A168: BANARISUG | B168: EQ | C168: 1430.1 | D168: 1549 | E168: 1430.1 | F168: 1456.35 | G168: 1456 | H168: 1479.15 | I168: 1514 | J168: 2263415.2 | K168: 2018-10-05 | L168: 186 | M168: INE459A01010
A169: BANCOINDIA | B169: EQ | C169: 188 | D169: 191.75 | E169: 164.9 | F169: 180.25 | G169: 180.9 | H169: 188.05 | I169: 117023 | J169: 20849770.1 | K169: 2018-10-05 | L169: 4491 | M169: INE213C01025
A170: BANDHANBNK | B170: EQ | C170: 460 | D170: 468.95 | E170: 451.75 | F170: 458.8 | G170: 458 | H170: 458.4 | I170: 2153997 | J170: 992259784.2 | K170: 2018-10-05 | L170: 49249 | M170: INE545U01014
A171: BANG | B171: EQ | C171: 48.55 | D171: 50.5 | E171: 47.5 | F171: 49.7 | G171: 49.7 | H171: 50.55 | I171: 5625 | J171: 277936.15 | K171: 2018-10-05 | L171: 71 | M171: INE863I01016
A172: BANKBARODA | B172: EQ | C172: 102.9 | D172: 104.2 | E172: 97.55 | F172: 99.1 | G172: 98.9 | H172: 103.35 | I172: 38298074 | J172: 3839829052 | K172: 2018-10-05 | L172: 216112 | M172: INE028A01039
A173: BANKBEES | B173: EQ | C173: 2531 | D173: 2555 | E173: 2480 | F173: 2505.61 | G173: 2486.32 | H173: 2531.15 | I173: 23731 | J173: 60343957.23 | K173: 2018-10-05 | L173: 661 | M173: INF732E01078
A174: BANKINDIA | B174: EQ | C174: 78.9 | D174: 79.95 | E174: 75.5 | F174: 76.8 | G174: 76 | H174: 79.1 | I174: 7698118 | J174: 604247480 | K174: 2018-10-05 | L174: 23994 | M174: INE084A01016
A175: BANSWRAS | B175: EQ | C175: 66.6 | D175: 67.7 | E175: 62.2 | F175: 63.8 | G175: 63.2 | H175: 67.6 | I175: 2948 | J175: 191371.2 | K175: 2018-10-05 | L175: 74 | M175: INE629D01012
A176: BARTRONICS | B176: EQ | C176: 6.8 | D176: 7.35 | E176: 6.7 | F176: 7.3 | G176: 7.3 | H176: 6.8 | I176: 53078 | J176: 376109.95 | K176: 2018-10-05 | L176: 151 | M176: INE855F01034
A177: BASF | B177: EQ | C177: 1743 | D177: 1744.95 | E177: 1650 | F177: 1663.95 | G177: 1667 | H177: 1743 | I177: 7528 | J177: 12717990.45 | K177: 2018-10-05 | L177: 1170 | M177: INE373A01013
A178: BASML | B178: EQ | C178: 195.1 | D178: 198.8 | E178: 190 | F178: 190 | G178: 190 | H178: 199.7 | I178: 2998 | J178: 572997.1 | K178: 2018-10-05 | L178: 54 | M178: INE186H01014
A179: BATAINDIA | B179: EQ | C179: 867 | D179: 876.5 | E179: 852.6 | F179: 860.3 | G179: 860.7 | H179: 867.85 | I179: 1210299 | J179: 1046786865 | K179: 2018-10-05 | L179: 25550 | M179: INE176A01028
A180: BAYERCROP | B180: EQ | C180: 4352.1 | D180: 4375 | E180: 4170 | F180: 4218.1 | G180: 4185.9 | H180: 4365.1 | I180: 7640 | J180: 32642613 | K180: 2018-10-05 | L180: 1786 | M180: INE462A01022
A181: BBL | B181: EQ | C181: 1120.55 | D181: 1152.85 | E181: 1094.1 | F181: 1105.35 | G181: 1094.1 | H181: 1124.85 | I181: 6044 | J181: 6793828.3 | K181: 2018-10-05 | L181: 800 | M181: INE464A01028
A182: BBTC | B182: EQ | C182: 1240 | D182: 1254 | E182: 1170.2 | F182: 1182.4 | G182: 1174 | H182: 1248.55 | I182: 343757 | J182: 411052076.6 | K182: 2018-10-05 | L182: 18625 | M182: INE050A01025
A183: BDL | B183: EQ | C183: 285 | D183: 285 | E183: 275.45 | F183: 276.1 | G183: 275.5 | H183: 280.4 | I183: 17910 | J183: 4981512.05 | K183: 2018-10-05 | L183: 1107 | M183: INE171Z01018
A184: BEARDSELL | B184: EQ | C184: 26.1 | D184: 27.4 | E184: 25.5 | F184: 26.35 | G184: 27.4 | H184: 27 | I184: 749 | J184: 19752.85 | K184: 2018-10-05 | L184: 29 | M184: INE520H01022
A185: BEDMUTHA | B185: BE | C185: 19.5 | D185: 21.35 | E185: 19.5 | F185: 20.9 | G185: 20.7 | H185: 20.35 | I185: 10771 | J185: 222679.55 | K185: 2018-10-05 | L185: 47 | M185: INE844K01012
A186: BEL | B186: EQ | C186: 82 | D186: 83.25 | E186: 79.6 | F186: 80.6 | G186: 79.6 | H186: 82.25 | I186: 6981811 | J186: 570494083.5 | K186: 2018-10-05 | L186: 32620 | M186: INE263A01024
A187: BEML | B187: EQ | C187: 612.5 | D187: 625 | E187: 556 | F187: 575.9 | G187: 562.6 | H187: 615.4 | I187: 1153412 | J187: 687688603.8 | K187: 2018-10-05 | L187: 24154 | M187: INE258A01016
A188: BEPL | B188: EQ | C188: 126.9 | D188: 129.55 | E188: 123.2 | F188: 124.4 | G188: 125 | H188: 126.5 | I188: 399548 | J188: 50514833.9 | K188: 2018-10-05 | L188: 4251 | M188: INE922A01025
A189: BERGEPAINT | B189: EQ | C189: 270.8 | D189: 274.95 | E189: 265.55 | F189: 267.9 | G189: 268 | H189: 273.25 | I189: 846114 | J189: 229084499.4 | K189: 2018-10-05 | L189: 14683 | M189: INE463A01038
A190: BFINVEST | B190: EQ | C190: 256 | D190: 264.55 | E190: 234.95 | F190: 243.4 | G190: 235.05 | H190: 258.1 | I190: 62671 | J190: 15796842.9 | K190: 2018-10-05 | L190: 3324 | M190: INE878K01010
A191: BFUTILITIE | B191: EQ | C191: 211.8 | D191: 216.2 | E191: 202.05 | F191: 204.1 | G191: 202.05 | H191: 213.15 | I191: 252268 | J191: 52650315.45 | K191: 2018-10-05 | L191: 9193 | M191: INE243D01012
A192: BGLOBAL | B192: BE | C192: 2.35 | D192: 2.45 | E192: 2.35 | F192: 2.45 | G192: 2.45 | H192: 2.45 | I192: 14120 | J192: 33765.45 | K192: 2018-10-05 | L192: 11 | M192: INE224M01013
A193: BGRENERGY | B193: EQ | C193: 54.5 | D193: 56.4 | E193: 53.95 | F193: 54.9 | G193: 55.95 | H193: 55.55 | I193: 78132 | J193: 4292545.7 | K193: 2018-10-05 | L193: 1059 | M193: INE661I01014
A194: BHAGERIA | B194: EQ | C194: 231 | D194: 237.25 | E194: 228 | F194: 230 | G194: 228 | H194: 234.25 | I194: 11236 | J194: 2608837.2 | K194: 2018-10-05 | L194: 573 | M194: INE354C01027
A195: BHAGYANGR | B195: BE | C195: 29 | D195: 29.35 | E195: 27.6 | F195: 29 | G195: 29.25 | H195: 28.55 | I195: 16010 | J195: 463126.55 | K195: 2018-10-05 | L195: 83 | M195: INE458B01036
A196: BHAGYAPROP | B196: EQ | C196: 23.25 | D196: 23.25 | E196: 21.75 | F196: 21.95 | G196: 21.9 | H196: 21.6 | I196: 2313 | J196: 51388.35 | K196: 2018-10-05 | L196: 13 | M196: INE363W01018
A197: BHANDARI | B197: EQ | C197: 1.95 | D197: 2 | E197: 1.85 | F197: 1.9 | G197: 1.85 | H197: 1.9 | I197: 277529 | J197: 534156.2 | K197: 2018-10-05 | L197: 190 | M197: INE474E01029
A198: BHARATFIN | B198: EQ | C198: 983 | D198: 1016 | E198: 981.55 | F198: 997.7 | G198: 990.25 | H198: 989.65 | I198: 964923 | J198: 967648189.3 | K198: 2018-10-05 | L198: 28777 | M198: INE180K01011
A199: BHARATFORG | B199: EQ | C199: 591.6 | D199: 596 | E199: 575 | F199: 576.95 | G199: 576.5 | H199: 591.65 | I199: 902066 | J199: 528156683.4 | K199: 2018-10-05 | L199: 29759 | M199: INE465A01025
A200: BHARATGEAR | B200: EQ | C200: 163 | D200: 165 | E200: 160.55 | F200: 161.85 | G200: 163 | H200: 160.25 | I200: 11151 | J200: 1816606.95 | K200: 2018-10-05 | L200: 542 | M200: INE561C01019
... 1436 more rows
